Workbook

Sheet 星取り表104
B1: =+データ１!$B$2 -> 2022/2/26 | C1: =+データ１!$B$4 -> 2022年
B2: =+データ１!B6 -> スーパーリ－グ 第１６回大会 Aブロック ２０２２ | C2: =+IF(B3="","",+B3) -> 大島中央 | F2: =+IF(B5="","",+B5) -> マッハブレーブス | I2: =+IF(B7="","",+B7) -> 本村クラブ | L2: =+IF(B9="","",+B9) -> 駒込チャイルド | O2: =+IF(B11="","",+B11) -> ブラザースクラブ | R2: =+IF(B13="","",+B13) -> 墨田スターズ | U2: =+IF(B15="","",+B15) -> 番町エンジェルス | X2: =+IF(B17="","",+B17) -> 新田ファイヤーズ | AA2: 勝 | AB2: 負 | AC2: 分 | AD2: 勝点 | AE2: 失点 | AF2: 得点 | AG2: 順位決定要素 | AH2: 順位
A3: 1 | B3: =IF(データ２!B2="","",VLOOKUP(A3,データ２!$A$2:$B$216,2)) -> 大島中央 | C3: ＊ | I3: A | J3: - | K3: 2 | L3: A | M3: - | N3: 3 | O3: A | P3: - | Q3: 4 | U3: A | V3: - | W3: 6 | X3: A | Y3: - | Z3: 7 | AA3: =COUNTIF(C3:Z4,"○") -> 1 | AB3: =COUNTIF(C3:Z4,"●") -> 0 | AC3: =COUNTIF(C3:Z4,"△") -> 1 | AD3: =+AA3*3+AC3*1 -> 4 | AE3: =+E4+H4+K4+N4+Q4+T4+W4+Z4 -> 8 | AF3: =C4+F4+I4+L4+O4+R4+U4+X4+AA4 -> 23 | AG3: =+RANK(AD3,$AD$3:$AD$18,0)*100+RANK(AE3,$AE$3:$AE$18,1)*10+RANK(AF3,$AF$3:$AF$18,0) -> 335 | AH3: =+RANK(AG3,$AG$3:$AG$18,1) -> 4
F4: 15 | G4: ○ | H4: 0 | J4: - | M4: - | P4: - | R4: 8 | S4: △ | T4: 8 | V4: - | Y4: -
A5: 2 | B5: =IF(データ２!B4="","",VLOOKUP(A5,データ２!$A$2:$B$216,2)) -> マッハブレーブス | F5: ＊ | R5: A | S5: - | T5: 11 | U5: A | V5: - | W5: 12 | AA5: =COUNTIF(C5:Z6,"○") -> 1 | AB5: =COUNTIF(C5:Z6,"●") -> 4 | AC5: =COUNTIF(C5:Z6,"△") -> 0 | AD5: =+AA5*3+AC5*1 -> 3 | AE5: =+E6+H6+K6+N6+Q6+T6+W6+Z6 -> 51 | AF5: =C6+F6+I6+L6+O6+R6+U6+X6+AA6 -> 25 | AG5: =+RANK(AD5,$AD$3:$AD$18,0)*100+RANK(AE5,$AE$3:$AE$18,1)*10+RANK(AF5,$AF$3:$AF$18,0) -> 583 | AH5: =+RANK(AG5,$AG$3:$AG$18,1) -> 6
C6: 0 | D6: ● | E6: 15 | I6: 0 | J6: ● | K6: 13 | L6: 19 | M6: ○ | N6: 0 | O6: 1 | P6: ● | Q6: 14 | S6: - | V6: - | X6: 5 | Y6: ● | Z6: 9
A7: 3 | B7: =IF(データ２!B6="","",VLOOKUP(A7,データ２!$A$2:$B$216,2)) -> 本村クラブ | C7: A | D7: - | E7: 2 | I7: ＊ | L7: A | M7: - | N7: 14 | O7: A | P7: - | Q7: 15 | R7: A | S7: - | T7: 16 | AA7: =COUNTIF(C7:Z8,"○") -> 3 | AB7: =COUNTIF(C7:Z8,"●") -> 0 | AC7: =COUNTIF(C7:Z8,"△") -> 0 | AD7: =+AA7*3+AC7*1 -> 9 | AE7: =+E8+H8+K8+N8+Q8+T8+W8+Z8 -> 5 | AF7: =C8+F8+I8+L8+O8+R8+U8+X8+AA8 -> 39 | AG7: =+RANK(AD7,$AD$3:$AD$18,0)*100+RANK(AE7,$AE$3:$AE$18,1)*10+RANK(AF7,$AF$3:$AF$18,0) -> 121 | AH7: =+RANK(AG7,$AG$3:$AG$18,1) -> 1
D8: - | F8: 13 | G8: ○ | H8: 0 | M8: - | P8: - | S8: - | U8: 14 | V8: ○ | W8: 2 | X8: 12 | Y8: ○ | Z8: 3
A9: 4 | B9: =IF(データ２!B8="","",VLOOKUP(A9,データ２!$A$2:$B$216,2)) -> 駒込チャイルド | C9: A | D9: - | E9: 3 | I9: A | J9: - | K9: 14 | L9: ＊ | O9: A | P9: - | Q9: 19 | U9: A | V9: - | W9: 21 | X9: A | Y9: - | Z9: 22 | AA9: =COUNTIF(C9:Z10,"○") -> 0 | AB9: =COUNTIF(C9:Z10,"●") -> 2 | AC9: =COUNTIF(C9:Z10,"△") -> 0 | AD9: =+AA9*3+AC9*1 -> 0 | AE9: =+E10+H10+K10+N10+Q10+T10+W10+Z10 -> 35 | AF9: =C10+F10+I10+L10+O10+R10+U10+X10+AA10 -> 0 | AG9: =+RANK(AD9,$AD$3:$AD$18,0)*100+RANK(AE9,$AE$3:$AE$18,1)*10+RANK(AF9,$AF$3:$AF$18,0) -> 778 | AH9: =+RANK(AG9,$AG$3:$AG$18,1) -> 8
D10: - | F10: 0 | G10: ● | H10: 19 | J10: - | P10: - | R10: 0 | S10: ● | T10: 16 | V10: - | Y10: -
A11: 5 | B11: =IF(データ２!B10="","",VLOOKUP(A11,データ２!$A$2:$B$216,2)) -> ブラザースクラブ | C11: A | D11: - | E11: 4 | I11: A | J11: - | K11: 15 | L11: A | M11: - | N11: 19 | O11: ＊ | R11: A | S11: - | T11: 23 | X11: A | Y11: - | Z11: 25 | AA11: =COUNTIF(C11:Z12,"○") -> 2 | AB11: =COUNTIF(C11:Z12,"●") -> 0 | AC11: =COUNTIF(C11:Z12,"△") -> 0 | AD11: =+AA11*3+AC11*1 -> 6 | AE11: =+E12+H12+K12+N12+Q12+T12+W12+Z12 -> 1 | AF11: =C12+F12+I12+L12+O12+R12+U12+X12+AA12 -> 33 | AG11: =+RANK(AD11,$AD$3:$AD$18,0)*100+RANK(AE11,$AE$3:$AE$18,1)*10+RANK(AF11,$AF$3:$AF$18,0) -> 212 | AH11: =+RANK(AG11,$AG$3:$AG$18,1) -> 2
D12: - | F12: 14 | G12: ○ | H12: 1 | J12: - | M12: - | S12: - | U12: 19 | V12: ○ | W12: 0 | Y12: -
A13: 6 | B13: =IF(データ２!B12="","",VLOOKUP(A13,データ２!$A$2:$B$216,2)) -> 墨田スターズ | F13: A | G13: - | H13: 11 | I13: A | J13: - | K13: 16 | O13: A | P13: - | Q13: 23 | R13: ＊ | U13: A | V13: - | W13: 26 | X13: A | Y13: - | Z13: 27 | AA13: =COUNTIF(C13:Z14,"○") -> 1 | AB13: =COUNTIF(C13:Z14,"●") -> 0 | AC13: =COUNTIF(C13:Z14,"△") -> 1 | AD13: =+AA13*3+AC13*1 -> 4 | AE13: =+E14+H14+K14+N14+Q14+T14+W14+Z14 -> 8 | AF13: =C14+F14+I14+L14+O14+R14+U14+X14+AA14 -> 24 | AG13: =+RANK(AD13,$AD$3:$AD$18,0)*100+RANK(AE13,$AE$3:$AE$18,1)*10+RANK(AF13,$AF$3:$AF$18,0) -> 334 | AH13: =+RANK(AG13,$AG$3:$AG$18,1) -> 3
C14: 8 | D14: △ | E14: 8 | G14: - | J14: - | L14: 16 | M14: ○ | N14: 0 | P14: - | V14: - | Y14: -
A15: 7 | B15: =IF(データ２!B14="","",VLOOKUP(A15,データ２!$A$2:$B$216,2)) -> 番町エンジェルス | C15: A | D15: - | E15: 6 | F15: A | G15: - | H15: 12 | L15: A | M15: - | N15: 21 | R15: A | S15: - | T15: 26 | U15: ＊ | X15: A | Y15: - | Z15: 28 | AA15: =COUNTIF(C15:Z16,"○") -> 0 | AB15: =COUNTIF(C15:Z16,"●") -> 2 | AC15: =COUNTIF(C15:Z16,"△") -> 0 | AD15: =+AA15*3+AC15*1 -> 0 | AE15: =+E16+H16+K16+N16+Q16+T16+W16+Z16 -> 33 | AF15: =C16+F16+I16+L16+O16+R16+U16+X16+AA16 -> 2 | AG15: =+RANK(AD15,$AD$3:$AD$18,0)*100+RANK(AE15,$AE$3:$AE$18,1)*10+RANK(AF15,$AF$3:$AF$18,0) -> 767 | AH15: =+RANK(AG15,$AG$3:$AG$18,1) -> 7
D16: - | G16: - | I16: 2 | J16: ● | K16: 14 | M16: - | O16: 0 | P16: ● | Q16: 19 | S16: - | Y16: -
A17: 8 | B17: =IF(データ２!B16="","",VLOOKUP(A17,データ２!$A$2:$B$216,2)) -> 新田ファイヤーズ | C17: A | D17: - | E17: 7 | L17: A | M17: - | N17: 22 | O17: A | P17: - | Q17: 25 | R17: A | S17: - | T17: 27 | U17: A | V17: - | W17: 28 | X17: ＊ | AA17: =COUNTIF(C17:Z18,"○") -> 1 | AB17: =COUNTIF(C17:Z18,"●") -> 1 | AC17: =COUNTIF(C17:Z18,"△") -> 0 | AD17: =+AA17*3+AC17*1 -> 3 | AE17: =+E18+H18+K18+N18+Q18+T18+W18+Z18 -> 17 | AF17: =C18+F18+I18+L18+O18+R18+U18+X18+AA18 -> 12 | AG17: =+RANK(AD17,$AD$3:$AD$18,0)*100+RANK(AE17,$AE$3:$AE$18,1)*10+RANK(AF17,$AF$3:$AF$18,0) -> 556 | AH17: =+RANK(AG17,$AG$3:$AG$18,1) -> 5
D18: - | F18: 9 | G18: ○ | H18: 5 | I18: 3 | J18: ● | K18: 12 | M18: - | P18: - | S18: - | V18: -
AA19: =SUM(AA3:AA18) -> 9 | AB19: =SUM(AB3:AB18) -> 9 | AC19: =SUM(AC3:AC18) -> 2 | AE19: =SUM(AE3:AE18) -> 158 | AF19: =SUM(AF3:AF18) -> 158 | AG19: =SUM(AG3:AG18) -> 3686 | AH19: =28-AA19-(AC19/2) -> 18 | AI19: 残り
B20: =+データ１!$B$2 -> 2022/2/26 | C20: =+データ１!$B$4 -> 2022年
B21: =+データ１!B8 -> スーパーリ－グ 第１６回大会 Ｂブロック ２０２２ | C21: =+IF(B22="","",+B22) -> 大雲寺スターズ | F21: =+IF(B24="","",+B24) -> 渋谷レッドソックス | I21: =+IF(B26="","",+B26) -> 中央バンディーズ | L21: =+IF(B28="","",+B28) -> 烏山ウイングス | O21: =+IF(B30="","",+B30) -> 御殿山ファイターズ | R21: =+IF(B32="","",+B32) -> 大島タイガース | U21: =+IF(B34="","",+B34) -> 目黒ペガサス | X21: =+IF(B36="","",+B36) -> ブラックキラーズ | AA21: 勝 | AB21: 負 | AC21: 分 | AD21: 勝点 | AE21: 失点 | AF21: 得点 | AG21: 順位決定要素 | AH21: 順位
A22: 9 | B22: =IF(データ２!B18="","",VLOOKUP(A22,データ２!$A$2:$B$216,2)) -> 大雲寺スターズ | C22: ＊ | F22: Ｂ | G22: - | H22: 1 | I22: Ｂ | J22: - | K22: 2 | L22: Ｂ | M22: - | N22: 3 | O22: Ｂ | P22: - | Q22: 4 | X22: Ｂ | Y22: - | Z22: 7 | AA22: =COUNTIF(C22:Z23,"○") -> 1 | AB22: =COUNTIF(C22:Z23,"●") -> 1 | AC22: =COUNTIF(C22:Z23,"△") -> 0 | AD22: =+AA22*3+AC22*1 -> 3 | AE22: =+E23+H23+K23+N23+Q23+T23+W23+Z23 -> 11 | AF22: =C23+F23+I23+L23+O23+R23+U23+X23+AA23 -> 13 | AG22: =+RANK(AD22,$AD$22:$AD$37,0)*100+RANK(AE22,$AE$22:$AE$37,1)*10+RANK(AF22,$AF$22:$AF$37,0) -> 254 | AH22: =+RANK(AG22,$AG$22:$AG$37,1) -> 3
G23: - | J23: - | M23: - | P23: - | R23: 10 | S23: ○ | T23: 4 | U23: 3 | V23: ● | W23: 7 | Y23: -
A24: 10 | B24: =IF(データ２!B20="","",VLOOKUP(A24,データ２!$A$2:$B$216,2)) -> 渋谷レッドソックス | C24: Ｂ | D24: - | E24: 1 | F24: ＊ | I24: Ｂ | J24: - | K24: 8 | L24: Ｂ | M24: - | N24: 9 | O24: Ｂ | P24: - | Q24: 10 | R24: Ｂ | S24: - | T24: 11 | U24: Ｂ | V24: - | W24: 12 | X24: Ｂ | Y24: - | Z24: 13 | AA24: =COUNTIF(C24:Z25,"○") -> 0 | AB24: =COUNTIF(C24:Z25,"●") -> 0 | AC24: =COUNTIF(C24:Z25,"△") -> 0 | AD24: =+AA24*3+AC24*1 -> 0 | AE24: =+E25+H25+K25+N25+Q25+T25+W25+Z25 -> 0 | AF24: =C25+F25+I25+L25+O25+R25+U25+X25+AA25 -> 0 | AG24: =+RANK(AD24,$AD$22:$AD$37,0)*100+RANK(AE24,$AE$22:$AE$37,1)*10+RANK(AF24,$AF$22:$AF$37,0) -> 617 | AH24: =+RANK(AG24,$AG$22:$AG$37,1) -> 6
D25: - | J25: - | M25: - | P25: - | S25: - | V25: - | Y25: -
A26: 11 | B26: =IF(データ２!B22="","",VLOOKUP(A26,データ２!$A$2:$B$216,2)) -> 中央バンディーズ | C26: Ｂ | D26: - | E26: 2 | F26: Ｂ | G26: - | H26: 8 | I26: ＊ | O26: Ｂ | P26: - | Q26: 15 | X26: Ｂ | Y26: - | Z26: 18 | AA26: =COUNTIF(C26:Z27,"○") -> 3 | AB26: =COUNTIF(C26:Z27,"●") -> 0 | AC26: =COUNTIF(C26:Z27,"△") -> 0 | AD26: =+AA26*3+AC26*1 -> 9 | AE26: =+E27+H27+K27+N27+Q27+T27+W27+Z27 -> 12 | AF26: =C27+F27+I27+L27+O27+R27+U27+X27+AA27 -> 19 | AG26: =+RANK(AD26,$AD$22:$AD$37,0)*100+RANK(AE26,$AE$22:$AE$37,1)*10+RANK(AF26,$AF$22:$AF$37,0) -> 162 | AH26: =+RANK(AG26,$AG$22:$AG$37,1) -> 1
D27: - | G27: - | L27: 4 | M27: ○ | N27: 3 | P27: - | R27: 6 | S27: ○ | T27: 4 | U27: 9 | V27: ○ | W27: 5 | Y27: -
A28: 12 | B28: =IF(データ２!B24="","",VLOOKUP(A28,データ２!$A$2:$B$216,2)) -> 烏山ウイングス | C28: Ｂ | D28: - | E28: 3 | F28: Ｂ | G28: - | H28: 9 | L28: ＊ | O28: Ｂ | P28: - | Q28: 19 | R28: Ｂ | S28: - | T28: 20 | U28: Ｂ | V28: - | W28: 21 | X28: Ｂ | Y28: - | Z28: 22 | AA28: =COUNTIF(C28:Z29,"○") -> 0 | AB28: =COUNTIF(C28:Z29,"●") -> 1 | AC28: =COUNTIF(C28:Z29,"△") -> 0 | AD28: =+AA28*3+AC28*1 -> 0 | AE28: =+E29+H29+K29+N29+Q29+T29+W29+Z29 -> 4 | AF28: =C29+F29+I29+L29+O29+R29+U29+X29+AA29 -> 3 | AG28: =+RANK(AD28,$AD$22:$AD$37,0)*100+RANK(AE28,$AE$22:$AE$37,1)*10+RANK(AF28,$AF$22:$AF$37,0) -> 636 | AH28: =+RANK(AG28,$AG$22:$AG$37,1) -> 8
D29: - | G29: - | I29: 3 | J29: ● | K29: 4 | P29: - | S29: - | V29: - | Y29: -
A30: 13 | B30: =IF(データ２!B26="","",VLOOKUP(A30,データ２!$A$2:$B$216,2)) -> 御殿山ファイターズ | C30: Ｂ | D30: - | E30: 4 | F30: Ｂ | G30: - | H30: 10 | I30: Ｂ | J30: - | K30: 15 | L30: Ｂ | M30: - | N30: 19 | O30: ＊ | R30: Ｂ | S30: - | T30: 23 | X30: Ｂ | Y30: - | Z30: 25 | AA30: =COUNTIF(C30:Z31,"○") -> 1 | AB30: =COUNTIF(C30:Z31,"●") -> 0 | AC30: =COUNTIF(C30:Z31,"△") -> 0 | AD30: =+AA30*3+AC30*1 -> 3 | AE30: =+E31+H31+K31+N31+Q31+T31+W31+Z31 -> 4 | AF30: =C31+F31+I31+L31+O31+R31+U31+X31+AA31 -> 7 | AG30: =+RANK(AD30,$AD$22:$AD$37,0)*100+RANK(AE30,$AE$22:$AE$37,1)*10+RANK(AF30,$AF$22:$AF$37,0) -> 235 | AH30: =+RANK(AG30,$AG$22:$AG$37,1) -> 2
D31: - | G31: - | J31: - | M31: - | S31: - | U31: 7 | V31: ○ | W31: 4 | Y31: -
A32: 14 | B32: =IF(データ２!B28="","",VLOOKUP(A32,データ２!$A$2:$B$216,2)) -> 大島タイガース | F32: Ｂ | G32: - | H32: 11 | L32: Ｂ | M32: - | N32: 20 | O32: Ｂ | P32: - | Q32: 23 | R32: ＊ | X32: Ｂ | Y32: - | Z32: 27 | AA32: =COUNTIF(C32:Z33,"○") -> 1 | AB32: =COUNTIF(C32:Z33,"●") -> 2 | AC32: =COUNTIF(C32:Z33,"△") -> 0 | AD32: =+AA32*3+AC32*1 -> 3 | AE32: =+E33+H33+K33+N33+Q33+T33+W33+Z33 -> 21 | AF32: =C33+F33+I33+L33+O33+R33+U33+X33+AA33 -> 18 | AG32: =+RANK(AD32,$AD$22:$AD$37,0)*100+RANK(AE32,$AE$22:$AE$37,1)*10+RANK(AF32,$AF$22:$AF$37,0) -> 273 | AH32: =+RANK(AG32,$AG$22:$AG$37,1) -> 4
C33: 4 | D33: ● | E33: 10 | G33: - | I33: 4 | J33: ● | K33: 6 | M33: - | P33: - | U33: 10 | V33: ○ | W33: 5 | Y33: -
A34: 15 | B34: =IF(データ２!B30="","",VLOOKUP(A34,データ２!$A$2:$B$216,2)) -> 目黒ペガサス | F34: Ｂ | G34: - | H34: 12 | L34: Ｂ | M34: - | N34: 21 | U34: ＊ | X34: Ｂ | Y34: - | Z34: 28 | AA34: =COUNTIF(C34:Z35,"○") -> 1 | AB34: =COUNTIF(C34:Z35,"●") -> 3 | AC34: =COUNTIF(C34:Z35,"△") -> 0 | AD34: =+AA34*3+AC34*1 -> 3 | AE34: =+E35+H35+K35+N35+Q35+T35+W35+Z35 -> 29 | AF34: =C35+F35+I35+L35+O35+R35+U35+X35+AA35 -> 21 | AG34: =+RANK(AD34,$AD$22:$AD$37,0)*100+RANK(AE34,$AE$22:$AE$37,1)*10+RANK(AF34,$AF$22:$AF$37,0) -> 281 | AH34: =+RANK(AG34,$AG$22:$AG$37,1) -> 5
C35: 7 | D35: ○ | E35: 3 | G35: - | I35: 5 | J35: ● | K35: 9 | M35: - | O35: 4 | P35: ● | Q35: 7 | R35: 5 | S35: ● | T35: 10 | Y35: -
A36: 16 | B36: =IF(データ２!B32="","",VLOOKUP(A36,データ２!$A$2:$B$216,2)) -> ブラックキラーズ | C36: Ｂ | D36: - | E36: 7 | F36: Ｂ | G36: - | H36: 13 | I36: Ｂ | J36: - | K36: 18 | L36: Ｂ | M36: - | N36: 22 | O36: Ｂ | P36: - | Q36: 25 | R36: Ｂ | S36: - | T36: 27 | U36: Ｂ | V36: - | W36: 28 | X36: ＊ | AA36: =COUNTIF(C36:Z37,"○") -> 0 | AB36: =COUNTIF(C36:Z37,"●") -> 0 | AC36: =COUNTIF(C36:Z37,"△") -> 0 | AD36: =+AA36*3+AC36*1 -> 0 | AE36: =+E37+H37+K37+N37+Q37+T37+W37+Z37 -> 0 | AF36: =C37+F37+I37+L37+O37+R37+U37+X37+AA37 -> 0 | AG36: =+RANK(AD36,$AD$22:$AD$37,0)*100+RANK(AE36,$AE$22:$AE$37,1)*10+RANK(AF36,$AF$22:$AF$37,0) -> 617 | AH36: =+RANK(AG36,$AG$22:$AG$37,1) -> 6
D37: - | G37: - | J37: - | M37: - | P37: - | S37: - | V37: -
AA38: =SUM(AA22:AA37) -> 7 | AB38: =SUM(AB22:AB37) -> 7 | AC38: =SUM(AC22:AC37) -> 0 | AE38: =SUM(AE22:AE37) -> 81 | AF38: =SUM(AF22:AF37) -> 81 | AG38: =SUM(AG22:AG37) -> 3075 | AH38: =28-AA38-(AC38/2) -> 21 | AI38: 残り
B39: =+データ１!$B$2 -> 2022/2/26 | C39: =+データ１!$B$4 -> 2022年
B40: =+データ１!B10 -> スーパーリ－グ 第１６回大会 Ｃブロック ２０２２ | C40: =+IF(B41="","",+B41) -> 品川ドリームキッズ | F40: =+IF(B43="","",+B43) -> 金町ジャイアンツ | I40: =+IF(B45="","",+B45) -> 勝どきD・Ｎ・Ｈ | L40: =+IF(B47="","",+B47) -> 茗荷谷クラブ | O40: =+IF(B49="","",+B49) -> 桃五少年野球クラブ | R40: =+IF(B51="","",+B51) -> 越中島ブレーブス | U40: =+IF(B53="","",+B53) -> 麹町ドリームス | X40: =+IF(B55="","",+B55) -> 糀谷イーグルス | AA40: 勝 | AB40: 負 | AC40: 分 | AD40: 勝点 | AE40: 失点 | AF40: 得点 | AG40: 順位決定要素 | AH40: 順位
A41: 17 | B41: =IF(データ２!B34="","",VLOOKUP(A41,データ２!$A$2:$B$216,2)) -> 品川ドリームキッズ | C41: ＊ | F41: Ｃ | G41: - | H41: 1 | L41: Ｃ | M41: - | N41: 3 | O41: Ｃ | P41: - | Q41: 4 | U41: Ｃ | V41: - | W41: 6 | AA41: =COUNTIF(C41:Z42,"○") -> 1 | AB41: =COUNTIF(C41:Z42,"●") -> 2 | AC41: =COUNTIF(C41:Z42,"△") -> 0 | AD41: =+AA41*3+AC41*1 -> 3 | AE41: =+E42+H42+K42+N42+Q42+T42+W42+Z42 -> 30 | AF41: =C42+F42+I42+L42+O42+R42+U42+X42+AA42 -> 12 | AG41: =+RANK(AD41,$AD$41:$AD$56,0)*100+RANK(AE41,$AE$41:$AE$56,1)*10+RANK(AF41,$AF$41:$AF$56,0) -> 383 | AH41: =+RANK(AG41,$AG$41:$AG$56,1) -> 6
G42: - | I42: 3 | J42: ● | K42: 5 | M42: - | P42: - | R42: 1 | S42: ● | T42: 20 | V42: - | X42: 8 | Y42: ○ | Z42: 5
A43: 18 | B43: =IF(データ２!B36="","",VLOOKUP(A43,データ２!$A$2:$B$216,2)) -> 金町ジャイアンツ | C43: Ｃ | D43: - | E43: 1 | F43: ＊ | I43: Ｃ | J43: - | K43: 8 | L43: Ｃ | M43: - | N43: 9 | O43: Ｃ | P43: - | Q43: 10 | R43: Ｃ | S43: - | T43: 11 | X43: Ｃ | Y43: - | Z43: 13 | AA43: =COUNTIF(C43:Z44,"○") -> 1 | AB43: =COUNTIF(C43:Z44,"●") -> 0 | AC43: =COUNTIF(C43:Z44,"△") -> 0 | AD43: =+AA43*3+AC43*1 -> 3 | AE43: =+E44+H44+K44+N44+Q44+T44+W44+Z44 -> 5 | AF43: =C44+F44+I44+L44+O44+R44+U44+X44+AA44 -> 12 | AG43: =+RANK(AD43,$AD$41:$AD$56,0)*100+RANK(AE43,$AE$41:$AE$56,1)*10+RANK(AF43,$AF$41:$AF$56,0) -> 333 | AH43: =+RANK(AG43,$AG$41:$AG$56,1) -> 3
D44: - | J44: - | M44: - | P44: - | S44: - | U44: 12 | V44: ○ | W44: 5 | Y44: -
A45: 19 | B45: =IF(データ２!B38="","",VLOOKUP(A45,データ２!$A$2:$B$216,2)) -> 勝どきD・Ｎ・Ｈ | F45: Ｃ | G45: - | H45: 8 | I45: ＊ | O45: Ｃ | P45: - | Q45: 15 | R45: Ｃ | S45: - | T45: 16 | U45: Ｃ | V45: - | W45: 17 | X45: Ｃ | Y45: - | Z45: 18 | AA45: =COUNTIF(C45:Z46,"○") -> 1 | AB45: =COUNTIF(C45:Z46,"●") -> 1 | AC45: =COUNTIF(C45:Z46,"△") -> 0 | AD45: =+AA45*3+AC45*1 -> 3 | AE45: =+E46+H46+K46+N46+Q46+T46+W46+Z46 -> 17 | AF45: =C46+F46+I46+L46+O46+R46+U46+X46+AA46 -> 6 | AG45: =+RANK(AD45,$AD$41:$AD$56,0)*100+RANK(AE45,$AE$41:$AE$56,1)*10+RANK(AF45,$AF$41:$AF$56,0) -> 356 | AH45: =+RANK(AG45,$AG$41:$AG$56,1) -> 4
C46: 5 | D46: ○ | E46: 3 | G46: - | L46: 1 | M46: ● | N46: 14 | P46: - | S46: - | V46: - | Y46: -
A47: 20 | B47: =IF(データ２!B40="","",VLOOKUP(A47,データ２!$A$2:$B$216,2)) -> 茗荷谷クラブ | C47: Ｃ | D47: - | E47: 3 | F47: Ｃ | G47: - | H47: 9 | L47: ＊ | R47: Ｃ | S47: - | T47: 20 | U47: Ｃ | V47: - | W47: 21 | X47: Ｃ | Y47: - | Z47: 22 | AA47: =COUNTIF(C47:Z48,"○") -> 2 | AB47: =COUNTIF(C47:Z48,"●") -> 0 | AC47: =COUNTIF(C47:Z48,"△") -> 0 | AD47: =+AA47*3+AC47*1 -> 6 | AE47: =+E48+H48+K48+N48+Q48+T48+W48+Z48 -> 1 | AF47: =C48+F48+I48+L48+O48+R48+U48+X48+AA48 -> 33 | AG47: =+RANK(AD47,$AD$41:$AD$56,0)*100+RANK(AE47,$AE$41:$AE$56,1)*10+RANK(AF47,$AF$41:$AF$56,0) -> 111 | AH47: =+RANK(AG47,$AG$41:$AG$56,1) -> 1
D48: - | G48: - | I48: 14 | J48: ○ | K48: 1 | O48: 19 | P48: ○ | Q48: 0 | S48: - | V48: - | Y48: -
A49: 21 | B49: =IF(データ２!B42="","",VLOOKUP(A49,データ２!$A$2:$B$216,2)) -> 桃五少年野球クラブ | C49: Ｃ | D49: - | E49: 4 | F49: Ｃ | G49: - | H49: 10 | I49: Ｃ | J49: - | K49: 15 | O49: ＊ | R49: Ｃ | S49: - | T49: 23 | U49: Ｃ | V49: - | W49: 24 | AA49: =COUNTIF(C49:Z50,"○") -> 1 | AB49: =COUNTIF(C49:Z50,"●") -> 1 | AC49: =COUNTIF(C49:Z50,"△") -> 0 | AD49: =+AA49*3+AC49*1 -> 3 | AE49: =+E50+H50+K50+N50+Q50+T50+W50+Z50 -> 24 | AF49: =C50+F50+I50+L50+O50+R50+U50+X50+AA50 -> 6 | AG49: =+RANK(AD49,$AD$41:$AD$56,0)*100+RANK(AE49,$AE$41:$AE$56,1)*10+RANK(AF49,$AF$41:$AF$56,0) -> 366 | AH49: =+RANK(AG49,$AG$41:$AG$56,1) -> 5
D50: - | G50: - | J50: - | L50: 0 | M50: ● | N50: 19 | S50: - | V50: - | X50: 6 | Y50: ○ | Z50: 5
A51: 22 | B51: =IF(データ２!B44="","",VLOOKUP(A51,データ２!$A$2:$B$216,2)) -> 越中島ブレーブス | F51: Ｃ | G51: - | H51: 11 | I51: Ｃ | J51: - | K51: 16 | L51: Ｃ | M51: - | N51: 20 | O51: Ｃ | P51: - | Q51: 23 | R51: ＊ | X51: Ｃ | Y51: - | Z51: 27 | AA51: =COUNTIF(C51:Z52,"○") -> 2 | AB51: =COUNTIF(C51:Z52,"●") -> 0 | AC51: =COUNTIF(C51:Z52,"△") -> 0 | AD51: =+AA51*3+AC51*1 -> 6 | AE51: =+E52+H52+K52+N52+Q52+T52+W52+Z52 -> 2 | AF51: =C52+F52+I52+L52+O52+R52+U52+X52+AA52 -> 32 | AG51: =+RANK(AD51,$AD$41:$AD$56,0)*100+RANK(AE51,$AE$41:$AE$56,1)*10+RANK(AF51,$AF$41:$AF$56,0) -> 122 | AH51: =+RANK(AG51,$AG$41:$AG$56,1) -> 2
C52: 20 | D52: ○ | E52: 1 | G52: - | J52: - | M52: - | P52: - | U52: 12 | V52: ○ | W52: 1 | Y52: -
A53: 23 | B53: =IF(データ２!B46="","",VLOOKUP(A53,データ２!$A$2:$B$216,2)) -> 麹町ドリームス | C53: Ｃ | D53: - | E53: 6 | I53: Ｃ | J53: - | K53: 17 | L53: Ｃ | M53: - | N53: 21 | O53: Ｃ | P53: - | Q53: 24 | U53: ＊ | X53: Ｃ | Y53: - | Z53: 28 | AA53: =COUNTIF(C53:Z54,"○") -> 0 | AB53: =COUNTIF(C53:Z54,"●") -> 2 | AC53: =COUNTIF(C53:Z54,"△") -> 0 | AD53: =+AA53*3+AC53*1 -> 0 | AE53: =+E54+H54+K54+N54+Q54+T54+W54+Z54 -> 24 | AF53: =C54+F54+I54+L54+O54+R54+U54+X54+AA54 -> 6 | AG53: =+RANK(AD53,$AD$41:$AD$56,0)*100+RANK(AE53,$AE$41:$AE$56,1)*10+RANK(AF53,$AF$41:$AF$56,0) -> 766 | AH53: =+RANK(AG53,$AG$41:$AG$56,1) -> 8
D54: - | F54: 5 | G54: ● | H54: 12 | J54: - | M54: - | P54: - | R54: 1 | S54: ● | T54: 12 | Y54: -
A55: 24 | B55: =IF(データ２!B48="","",VLOOKUP(A55,データ２!$A$2:$B$216,2)) -> 糀谷イーグルス | F55: Ｃ | G55: - | H55: 13 | I55: Ｃ | J55: - | K55: 18 | L55: Ｃ | M55: - | N55: 22 | R55: Ｃ | S55: - | T55: 27 | U55: Ｃ | V55: - | W55: 28 | X55: ＊ | AA55: =COUNTIF(C55:Z56,"○") -> 0 | AB55: =COUNTIF(C55:Z56,"●") -> 2 | AC55: =COUNTIF(C55:Z56,"△") -> 0 | AD55: =+AA55*3+AC55*1 -> 0 | AE55: =+E56+H56+K56+N56+Q56+T56+W56+Z56 -> 14 | AF55: =C56+F56+I56+L56+O56+R56+U56+X56+AA56 -> 10 | AG55: =+RANK(AD55,$AD$41:$AD$56,0)*100+RANK(AE55,$AE$41:$AE$56,1)*10+RANK(AF55,$AF$41:$AF$56,0) -> 745 | AH55: =+RANK(AG55,$AG$41:$AG$56,1) -> 7
C56: 5 | D56: ● | E56: 8 | G56: - | J56: - | M56: - | O56: 5 | P56: ● | Q56: 6 | S56: - | V56: -
AA57: =SUM(AA41:AA56) -> 8 | AB57: =SUM(AB41:AB56) -> 8 | AC57: =SUM(AC41:AC56) -> 0 | AE57: =SUM(AE41:AE56) -> 117 | AF57: =SUM(AF41:AF56) -> 117 | AG57: =SUM(AG41:AG56) -> 3182 | AH57: =28-AA57-(AC57/2) -> 20 | AI57: 残り
B58: =+データ１!$B$2 -> 2022/2/26 | C58: =+データ１!$B$4 -> 2022年
B59: =+データ１!B12 -> スーパーリ－グ 第１６回大会 Ｄブロック ２０２２ | C59: =+IF(B60="","",+B60) -> 西田野球クラブ | F59: =+IF(B62="","",+B62) -> 大向ベアーズ | I59: =+IF(B64="","",+B64) -> 麻布キッズ | L59: =+IF(B66="","",+B66) -> 文京パワーズ | O59: =+IF(B68="","",+B68) -> トゥールスジュニア | R59: =+IF(B70="","",+B70) -> 東雲メッツ | U59: =+IF(B72="","",+B72) -> 落合コメッツ | X59: =+IF(B74="","",+B74) -> ジュニアヤンガース | AA59: 勝 | AB59: 負 | AC59: 分 | AD59: 勝点 | AE59: 失点 | AF59: 得点 | AG59: 順位決定要素 | AH59: 順位
A60: 25 | B60: =IF(データ２!B50="","",VLOOKUP(A60,データ２!$A$2:$B$216,2)) -> 西田野球クラブ | C60: ＊ | I60: Ｄ | J60: - | K60: 2 | L60: Ｄ | M60: - | N60: 3 | U60: Ｄ | V60: - | W60: 6 | AA60: =COUNTIF(C60:Z61,"○") -> 4 | AB60: =COUNTIF(C60:Z61,"●") -> 0 | AC60: =COUNTIF(C60:Z61,"△") -> 0 | AD60: =+AA60*3+AC60*1 -> 12 | AE60: =+E61+H61+K61+N61+Q61+T61+W61+Z61 -> 11 | AF60: =C61+F61+I61+L61+O61+R61+U61+X61+AA61 -> 36 | AG60: =+RANK(AD60,$AD$60:$AD$75,0)*100+RANK(AE60,$AE$60:$AE$75,1)*10+RANK(AF60,$AF$60:$AF$75,0) -> 121 | AH60: =+RANK(AG60,$AG$60:$AG$75,1) -> 1
F61: 6 | G61: ○ | H61: 3 | J61: - | M61: - | O61: 14 | P61: ○ | Q61: 3 | R61: 5 | S61: ○ | T61: 4 | V61: - | X61: 11 | Y61: ○ | Z61: 1
A62: 26 | B62: =IF(データ２!B52="","",VLOOKUP(A62,データ２!$A$2:$B$216,2)) -> 大向ベアーズ | F62: ＊ | I62: Ｄ | J62: - | K62: 8 | O62: Ｄ | P62: - | Q62: 10 | R62: Ｄ | S62: - | T62: 11 | U62: Ｄ | V62: - | W62: 12 | X62: Ｄ | Y62: - | Z62: 13 | AA62: =COUNTIF(C62:Z63,"○") -> 1 | AB62: =COUNTIF(C62:Z63,"●") -> 1 | AC62: =COUNTIF(C62:Z63,"△") -> 0 | AD62: =+AA62*3+AC62*1 -> 3 | AE62: =+E63+H63+K63+N63+Q63+T63+W63+Z63 -> 7 | AF62: =C63+F63+I63+L63+O63+R63+U63+X63+AA63 -> 22 | AG62: =+RANK(AD62,$AD$60:$AD$75,0)*100+RANK(AE62,$AE$60:$AE$75,1)*10+RANK(AF62,$AF$60:$AF$75,0) -> 415 | AH62: =+RANK(AG62,$AG$60:$AG$75,1) -> 4
C63: 3 | D63: ● | E63: 6 | J63: - | L63: 19 | M63: ○ | N63: 1 | P63: - | S63: - | V63: - | Y63: -
A64: 27 | B64: =IF(データ２!B54="","",VLOOKUP(A64,データ２!$A$2:$B$216,2)) -> 麻布キッズ | C64: Ｄ | D64: - | E64: 2 | F64: Ｄ | G64: - | H64: 8 | I64: ＊ | O64: Ｄ | P64: - | Q64: 15 | R64: Ｄ | S64: - | T64: 16 | X64: Ｄ | Y64: - | Z64: 18 | AA64: =COUNTIF(C64:Z65,"○") -> 0 | AB64: =COUNTIF(C64:Z65,"●") -> 2 | AC64: =COUNTIF(C64:Z65,"△") -> 0 | AD64: =+AA64*3+AC64*1 -> 0 | AE64: =+E65+H65+K65+N65+Q65+T65+W65+Z65 -> 21 | AF64: =C65+F65+I65+L65+O65+R65+U65+X65+AA65 -> 3 | AG64: =+RANK(AD64,$AD$60:$AD$75,0)*100+RANK(AE64,$AE$60:$AE$75,1)*10+RANK(AF64,$AF$60:$AF$75,0) -> 738 | AH64: =+RANK(AG64,$AG$60:$AG$75,1) -> 7
D65: - | G65: - | L65: 0 | M65: ● | N65: 13 | P65: - | S65: - | U65: 3 | V65: ● | W65: 8 | Y65: -
A66: 28 | B66: =IF(データ２!B56="","",VLOOKUP(A66,データ２!$A$2:$B$216,2)) -> 文京パワーズ | C66: Ｄ | D66: - | E66: 3 | L66: ＊ | O66: Ｄ | P66: - | Q66: 19 | R66: Ｄ | S66: - | T66: 20 | X66: Ｄ | Y66: - | Z66: 22 | AA66: =COUNTIF(C66:Z67,"○") -> 2 | AB66: =COUNTIF(C66:Z67,"●") -> 1 | AC66: =COUNTIF(C66:Z67,"△") -> 0 | AD66: =+AA66*3+AC66*1 -> 6 | AE66: =+E67+H67+K67+N67+Q67+T67+W67+Z67 -> 23 | AF66: =C67+F67+I67+L67+O67+R67+U67+X67+AA67 -> 27 | AG66: =+RANK(AD66,$AD$60:$AD$75,0)*100+RANK(AE66,$AE$60:$AE$75,1)*10+RANK(AF66,$AF$60:$AF$75,0) -> 242 | AH66: =+RANK(AG66,$AG$60:$AG$75,1) -> 2
D67: - | F67: 1 | G67: ● | H67: 19 | I67: 13 | J67: ○ | K67: 0 | P67: - | S67: - | U67: 13 | V67: ○ | W67: 4 | Y67: -
A68: 29 | B68: =IF(データ２!B58="","",VLOOKUP(A68,データ２!$A$2:$B$216,2)) -> トゥールスジュニア | F68: Ｄ | G68: - | H68: 10 | I68: Ｄ | J68: - | K68: 15 | L68: Ｄ | M68: - | N68: 19 | O68: ＊ | U68: Ｄ | V68: - | W68: 24 | X68: Ｄ | Y68: - | Z68: 25 | AA68: =COUNTIF(C68:Z69,"○") -> 0 | AB68: =COUNTIF(C68:Z69,"●") -> 2 | AC68: =COUNTIF(C68:Z69,"△") -> 0 | AD68: =+AA68*3+AC68*1 -> 0 | AE68: =+E69+H69+K69+N69+Q69+T69+W69+Z69 -> 30 | AF68: =C69+F69+I69+L69+O69+R69+U69+X69+AA69 -> 6 | AG68: =+RANK(AD68,$AD$60:$AD$75,0)*100+RANK(AE68,$AE$60:$AE$75,1)*10+RANK(AF68,$AF$60:$AF$75,0) -> 787 | AH68: =+RANK(AG68,$AG$60:$AG$75,1) -> 8
C69: 3 | D69: ● | E69: 14 | G69: - | J69: - | M69: - | R69: 3 | S69: ● | T69: 16 | V69: - | Y69: -
A70: 30 | B70: =IF(データ２!B60="","",VLOOKUP(A70,データ２!$A$2:$B$216,2)) -> 東雲メッツ | F70: Ｄ | G70: - | H70: 11 | I70: Ｄ | J70: - | K70: 16 | L70: Ｄ | M70: - | N70: 20 | R70: ＊ | U70: Ｄ | V70: - | W70: 26 | AA70: =COUNTIF(C70:Z71,"○") -> 1 | AB70: =COUNTIF(C70:Z71,"●") -> 2 | AC70: =COUNTIF(C70:Z71,"△") -> 0 | AD70: =+AA70*3+AC70*1 -> 3 | AE70: =+E71+H71+K71+N71+Q71+T71+W71+Z71 -> 23 | AF70: =C71+F71+I71+L71+O71+R71+U71+X71+AA71 -> 24 | AG70: =+RANK(AD70,$AD$60:$AD$75,0)*100+RANK(AE70,$AE$60:$AE$75,1)*10+RANK(AF70,$AF$60:$AF$75,0) -> 444 | AH70: =+RANK(AG70,$AG$60:$AG$75,1) -> 5
C71: 4 | D71: ● | E71: 5 | G71: - | J71: - | M71: - | O71: 16 | P71: ○ | Q71: 3 | V71: - | X71: 4 | Y71: ● | Z71: 15
A72: 31 | B72: =IF(データ２!B62="","",VLOOKUP(A72,データ２!$A$2:$B$216,2)) -> 落合コメッツ | C72: Ｄ | D72: - | E72: 6 | F72: Ｄ | G72: - | H72: 12 | O72: Ｄ | P72: - | Q72: 24 | R72: Ｄ | S72: - | T72: 26 | U72: ＊ | AA72: =COUNTIF(C72:Z73,"○") -> 1 | AB72: =COUNTIF(C72:Z73,"●") -> 2 | AC72: =COUNTIF(C72:Z73,"△") -> 0 | AD72: =+AA72*3+AC72*1 -> 3 | AE72: =+E73+H73+K73+N73+Q73+T73+W73+Z73 -> 27 | AF72: =C73+F73+I73+L73+O73+R73+U73+X73+AA73 -> 21 | AG72: =+RANK(AD72,$AD$60:$AD$75,0)*100+RANK(AE72,$AE$60:$AE$75,1)*10+RANK(AF72,$AF$60:$AF$75,0) -> 476 | AH72: =+RANK(AG72,$AG$60:$AG$75,1) -> 6
D73: - | G73: - | I73: 8 | J73: ○ | K73: 3 | L73: 4 | M73: ● | N73: 13 | P73: - | S73: - | X73: 9 | Y73: ● | Z73: 11
A74: 32 | B74: =IF(データ２!B64="","",VLOOKUP(A74,データ２!$A$2:$B$216,2)) -> ジュニアヤンガース | F74: Ｄ | G74: - | H74: 13 | I74: Ｄ | J74: - | K74: 18 | L74: Ｄ | M74: - | N74: 22 | O74: Ｄ | P74: - | Q74: 25 | X74: ＊ | AA74: =COUNTIF(C74:Z75,"○") -> 2 | AB74: =COUNTIF(C74:Z75,"●") -> 1 | AC74: =COUNTIF(C74:Z75,"△") -> 0 | AD74: =+AA74*3+AC74*1 -> 6 | AE74: =+E75+H75+K75+N75+Q75+T75+W75+Z75 -> 24 | AF74: =C75+F75+I75+L75+O75+R75+U75+X75+AA75 -> 27 | AG74: =+RANK(AD74,$AD$60:$AD$75,0)*100+RANK(AE74,$AE$60:$AE$75,1)*10+RANK(AF74,$AF$60:$AF$75,0) -> 262 | AH74: =+RANK(AG74,$AG$60:$AG$75,1) -> 3
C75: 1 | D75: ● | E75: 11 | G75: - | J75: - | M75: - | P75: - | R75: 15 | S75: ○ | T75: 4 | U75: 11 | V75: ○ | W75: 9
AA76: =SUM(AA60:AA75) -> 11 | AB76: =SUM(AB60:AB75) -> 11 | AC76: =SUM(AC60:AC75) -> 0 | AE76: =SUM(AE60:AE75) -> 166 | AF76: =SUM(AF60:AF75) -> 166 | AG76: =SUM(AG60:AG75) -> 3485 | AH76: =28-AA76-(AC76/2) -> 17 | AI76: 残り
B77: =+データ１!$B$2 -> 2022/2/26 | C77: =+データ１!$B$4 -> 2022年
B78: =+データ１!B14 -> スーパーリ－グ 第１６回大会 Ｅブロック ２０２２ | C78: =+IF(B79="","",+B79) -> カバラホークス | F78: =+IF(B81="","",+B81) -> リトルジャイアンツ | I78: =+IF(B83="","",+B83) -> 日本橋ファイターズ | L78: =+IF(B85="","",+B85) -> 西千タイガース | O78: =+IF(B87="","",+B87) -> エンジェルス | R78: =+IF(B89="","",+B89) -> 七北クラブ | U78: =+IF(B91="","",+B91) -> 浅草ＢＢＣ | X78: =+IF(B93="","",+B93) -> フレール | AA78: 勝 | AB78: 負 | AC78: 分 | AD78: 勝点 | AE78: 失点 | AF78: 得点 | AG78: 順位決定要素 | AH78: 順位
A79: 33 | B79: =IF(データ２!B66="","",VLOOKUP(A79,データ２!$A$2:$B$216,2)) -> カバラホークス | C79: ＊ | F79: Ｅ | G79: - | H79: 1 | L79: Ｅ | M79: - | N79: 3 | O79: Ｅ | P79: - | Q79: 4 | X79: Ｅ | Y79: - | Z79: 7 | AA79: =COUNTIF(C79:Z80,"○") -> 2 | AB79: =COUNTIF(C79:Z80,"●") -> 1 | AC79: =COUNTIF(C79:Z80,"△") -> 0 | AD79: =+AA79*3+AC79*1 -> 6 | AE79: =+E80+H80+K80+N80+Q80+T80+W80+Z80 -> 19 | AF79: =C80+F80+I80+L80+O80+R80+U80+X80+AA80 -> 25 | AG79: =+RANK(AD79,$AD$79:$AD$94,0)*100+RANK(AE79,$AE$79:$AE$94,1)*10+RANK(AF79,$AF$79:$AF$94,0) -> 245 | AH79: =+RANK(AG79,$AG$79:$AG$94,1) -> 4
G80: - | I80: 10 | J80: ○ | K80: 6 | M80: - | P80: - | R80: 4 | S80: ● | T80: 12 | U80: 11 | V80: ○ | W80: 1 | Y80: -
A81: 34 | B81: =IF(データ２!B68="","",VLOOKUP(A81,データ２!$A$2:$B$216,2)) -> リトルジャイアンツ | C81: Ｅ | D81: - | E81: 1 | F81: ＊ | I81: Ｅ | J81: - | K81: 8 | L81: Ｅ | M81: - | N81: 9 | O81: Ｅ | P81: - | Q81: 10 | R81: Ｅ | S81: - | T81: 11 | AA81: =COUNTIF(C81:Z82,"○") -> 2 | AB81: =COUNTIF(C81:Z82,"●") -> 0 | AC81: =COUNTIF(C81:Z82,"△") -> 0 | AD81: =+AA81*3+AC81*1 -> 6 | AE81: =+E82+H82+K82+N82+Q82+T82+W82+Z82 -> 13 | AF81: =C82+F82+I82+L82+O82+R82+U82+X82+AA82 -> 29 | AG81: =+RANK(AD81,$AD$79:$AD$94,0)*100+RANK(AE81,$AE$79:$AE$94,1)*10+RANK(AF81,$AF$79:$AF$94,0) -> 232 | AH81: =+RANK(AG81,$AG$79:$AG$94,1) -> 3
D82: - | J82: - | M82: - | P82: - | S82: - | U82: 13 | V82: ○ | W82: 11 | X82: 16 | Y82: ○ | Z82: 2
A83: 35 | B83: =IF(データ２!B70="","",VLOOKUP(A83,データ２!$A$2:$B$216,2)) -> 日本橋ファイターズ | F83: Ｅ | G83: - | H83: 8 | I83: ＊ | R83: Ｅ | S83: - | T83: 16 | U83: Ｅ | V83: - | W83: 17 | AA83: =COUNTIF(C83:Z84,"○") -> 2 | AB83: =COUNTIF(C83:Z84,"●") -> 2 | AC83: =COUNTIF(C83:Z84,"△") -> 0 | AD83: =+AA83*3+AC83*1 -> 6 | AE83: =+E84+H84+K84+N84+Q84+T84+W84+Z84 -> 29 | AF83: =C84+F84+I84+L84+O84+R84+U84+X84+AA84 -> 29 | AG83: =+RANK(AD83,$AD$79:$AD$94,0)*100+RANK(AE83,$AE$79:$AE$94,1)*10+RANK(AF83,$AF$79:$AF$94,0) -> 262 | AH83: =+RANK(AG83,$AG$79:$AG$94,1) -> 5
C84: 6 | D84: ● | E84: 10 | G84: - | L84: 6 | M84: ● | N84: 7 | O84: 6 | P84: ○ | Q84: 2 | S84: - | V84: - | X84: 11 | Y84: ○ | Z84: 10
A85: 36 | B85: =IF(データ２!B72="","",VLOOKUP(A85,データ２!$A$2:$B$216,2)) -> 西千タイガース | C85: Ｅ | D85: - | E85: 3 | F85: Ｅ | G85: - | H85: 9 | L85: ＊ | R85: Ｅ | S85: - | T85: 20 | X85: Ｅ | Y85: - | Z85: 22 | AA85: =COUNTIF(C85:Z86,"○") -> 3 | AB85: =COUNTIF(C85:Z86,"●") -> 0 | AC85: =COUNTIF(C85:Z86,"△") -> 0 | AD85: =+AA85*3+AC85*1 -> 9 | AE85: =+E86+H86+K86+N86+Q86+T86+W86+Z86 -> 8 | AF85: =C86+F86+I86+L86+O86+R86+U86+X86+AA86 -> 41 | AG85: =+RANK(AD85,$AD$79:$AD$94,0)*100+RANK(AE85,$AE$79:$AE$94,1)*10+RANK(AF85,$AF$79:$AF$94,0) -> 121 | AH85: =+RANK(AG85,$AG$79:$AG$94,1) -> 1
D86: - | G86: - | I86: 7 | J86: ○ | K86: 6 | O86: 16 | P86: ○ | Q86: 1 | S86: - | U86: 18 | V86: ○ | W86: 1 | Y86: -
A87: 37 | B87: =IF(データ２!B74="","",VLOOKUP(A87,データ２!$A$2:$B$216,2)) -> エンジェルス | C87: Ｅ | D87: - | E87: 4 | F87: Ｅ | G87: - | H87: 10 | O87: ＊ | U87: Ｅ | V87: - | W87: 24 | X87: Ｅ | Y87: - | Z87: 25 | AA87: =COUNTIF(C87:Z88,"○") -> 0 | AB87: =COUNTIF(C87:Z88,"●") -> 3 | AC87: =COUNTIF(C87:Z88,"△") -> 0 | AD87: =+AA87*3+AC87*1 -> 0 | AE87: =+E88+H88+K88+N88+Q88+T88+W88+Z88 -> 37 | AF87: =C88+F88+I88+L88+O88+R88+U88+X88+AA88 -> 5 | AG87: =+RANK(AD87,$AD$79:$AD$94,0)*100+RANK(AE87,$AE$79:$AE$94,1)*10+RANK(AF87,$AF$79:$AF$94,0) -> 678 | AH87: =+RANK(AG87,$AG$79:$AG$94,1) -> 7
D88: - | G88: - | I88: 2 | J88: ● | K88: 6 | L88: 1 | M88: ● | N88: 16 | R88: 2 | S88: ● | T88: 15 | V88: - | Y88: -
A89: 38 | B89: =IF(データ２!B76="","",VLOOKUP(A89,データ２!$A$2:$B$216,2)) -> 七北クラブ | F89: Ｅ | G89: - | H89: 11 | I89: Ｅ | J89: - | K89: 16 | L89: Ｅ | M89: - | N89: 20 | R89: ＊ | U89: Ｅ | V89: - | W89: 26 | X89: Ｅ | Y89: - | Z89: 27 | AA89: =COUNTIF(C89:Z90,"○") -> 2 | AB89: =COUNTIF(C89:Z90,"●") -> 0 | AC89: =COUNTIF(C89:Z90,"△") -> 0 | AD89: =+AA89*3+AC89*1 -> 6 | AE89: =+E90+H90+K90+N90+Q90+T90+W90+Z90 -> 6 | AF89: =C90+F90+I90+L90+O90+R90+U90+X90+AA90 -> 27 | AG89: =+RANK(AD89,$AD$79:$AD$94,0)*100+RANK(AE89,$AE$79:$AE$94,1)*10+RANK(AF89,$AF$79:$AF$94,0) -> 214 | AH89: =+RANK(AG89,$AG$79:$AG$94,1) -> 2
C90: 12 | D90: ○ | E90: 4 | G90: - | J90: - | M90: - | O90: 15 | P90: ○ | Q90: 2 | V90: - | Y90: -
A91: 39 | B91: =IF(データ２!B78="","",VLOOKUP(A91,データ２!$A$2:$B$216,2)) -> 浅草ＢＢＣ | I91: Ｅ | J91: - | K91: 17 | O91: Ｅ | P91: - | Q91: 24 | R91: Ｅ | S91: - | T91: 26 | U91: ＊ | X91: Ｅ | Y91: - | Z91: 28 | AA91: =COUNTIF(C91:Z92,"○") -> 0 | AB91: =COUNTIF(C91:Z92,"●") -> 3 | AC91: =COUNTIF(C91:Z92,"△") -> 0 | AD91: =+AA91*3+AC91*1 -> 0 | AE91: =+E92+H92+K92+N92+Q92+T92+W92+Z92 -> 42 | AF91: =C92+F92+I92+L92+O92+R92+U92+X92+AA92 -> 13 | AG91: =+RANK(AD91,$AD$79:$AD$94,0)*100+RANK(AE91,$AE$79:$AE$94,1)*10+RANK(AF91,$AF$79:$AF$94,0) -> 686 | AH91: =+RANK(AG91,$AG$79:$AG$94,1) -> 8
C92: 1 | D92: ● | E92: 11 | F92: 11 | G92: ● | H92: 13 | J92: - | L92: 1 | M92: ● | N92: 18 | P92: - | S92: - | Y92: -
A93: 40 | B93: =IF(データ２!B80="","",VLOOKUP(A93,データ２!$A$2:$B$216,2)) -> フレール | C93: Ｅ | D93: - | E93: 7 | L93: Ｅ | M93: - | N93: 22 | O93: Ｅ | P93: - | Q93: 25 | R93: Ｅ | S93: - | T93: 27 | U93: Ｅ | V93: - | W93: 28 | X93: ＊ | AA93: =COUNTIF(C93:Z94,"○") -> 0 | AB93: =COUNTIF(C93:Z94,"●") -> 2 | AC93: =COUNTIF(C93:Z94,"△") -> 0 | AD93: =+AA93*3+AC93*1 -> 0 | AE93: =+E94+H94+K94+N94+Q94+T94+W94+Z94 -> 27 | AF93: =C94+F94+I94+L94+O94+R94+U94+X94+AA94 -> 12 | AG93: =+RANK(AD93,$AD$79:$AD$94,0)*100+RANK(AE93,$AE$79:$AE$94,1)*10+RANK(AF93,$AF$79:$AF$94,0) -> 657 | AH93: =+RANK(AG93,$AG$79:$AG$94,1) -> 6
D94: - | F94: 2 | G94: ● | H94: 16 | I94: 10 | J94: ● | K94: 11 | M94: - | P94: - | S94: - | V94: -
AA95: =SUM(AA79:AA94) -> 11 | AB95: =SUM(AB79:AB94) -> 11 | AC95: =SUM(AC79:AC94) -> 0 | AE95: =SUM(AE79:AE94) -> 181 | AF95: =SUM(AF79:AF94) -> 181 | AG95: =SUM(AG79:AG94) -> 3095 | AH95: =28-AA95-(AC95/2) -> 17 | AI95: 残り
B96: =+データ１!$B$2 -> 2022/2/26 | C96: =+データ１!$B$4 -> 2022年
B97: =+データ１!B16 -> スーパーリ－グ 第１６回大会 Ｆブロック ２０２２ | C97: =+IF(B98="","",+B98) -> 葛飾アニマルズ | F97: =+IF(B100="","",+B100) -> 南篠崎ランチャーズ | I97: =+IF(B102="","",+B102) -> 港南メッツ | L97: =+IF(B104="","",+B104) -> 山野Ｒイーグルス | O97: =+IF(B106="","",+B106) -> 久我山イーグルス | R97: =+IF(B108="","",+B108) -> 江東ファイターズ | U97: =+IF(B110="","",+B110) -> 落一アポロ | X97: =+IF(B112="","",+B112) -> 扇ターキーズ | AA97: 勝 | AB97: 負 | AC97: 分 | AD97: 勝点 | AE97: 失点 | AF97: 得点 | AG97: 順位決定要素 | AH97: 順位
A98: 41 | B98: =IF(データ２!B82="","",VLOOKUP(A98,データ２!$A$2:$B$216,2)) -> 葛飾アニマルズ | C98: ＊ | F98: Ｆ | G98: - | H98: 1 | I98: Ｆ | J98: - | K98: 2 | L98: Ｆ | M98: - | N98: 3 | O98: Ｆ | P98: - | Q98: 4 | R98: Ｆ | S98: - | T98: 5 | X98: Ｆ | Y98: - | Z98: 7 | AA98: =COUNTIF(C98:Z99,"○") -> 1 | AB98: =COUNTIF(C98:Z99,"●") -> 0 | AC98: =COUNTIF(C98:Z99,"△") -> 0 | AD98: =+AA98*3+AC98*1 -> 3 | AE98: =+E99+H99+K99+N99+Q99+T99+W99+Z99 -> 2 | AF98: =C99+F99+I99+L99+O99+R99+U99+X99+AA99 -> 12 | AG98: =+RANK(AD98,$AD$98:$AD$113,0)*100+RANK(AE98,$AE$98:$AE$113,1)*10+RANK(AF98,$AF$98:$AF$113,0) -> 415 | AH98: =+RANK(AG98,$AG$98:$AG$113,1) -> 4
G99: - | J99: - | M99: - | P99: - | S99: - | U99: 12 | V99: ○ | W99: 2 | Y99: -
A100: 42 | B100: =IF(データ２!B84="","",VLOOKUP(A100,データ２!$A$2:$B$216,2)) -> 南篠崎ランチャーズ | C100: Ｆ | D100: - | E100: 1 | F100: ＊ | O100: Ｆ | P100: - | Q100: 10 | R100: Ｆ | S100: - | T100: 11 | AA100: =COUNTIF(C100:Z101,"○") -> 2 | AB100: =COUNTIF(C100:Z101,"●") -> 1 | AC100: =COUNTIF(C100:Z101,"△") -> 1 | AD100: =+AA100*3+AC100*1 -> 7 | AE100: =+E101+H101+K101+N101+Q101+T101+W101+Z101 -> 42 | AF100: =C101+F101+I101+L101+O101+R101+U101+X101+AA101 -> 25 | AG100: =+RANK(AD100,$AD$98:$AD$113,0)*100+RANK(AE100,$AE$98:$AE$113,1)*10+RANK(AF100,$AF$98:$AF$113,0) -> 282 | AH100: =+RANK(AG100,$AG$98:$AG$113,1) -> 2
D101: - | I101: 8 | J101: △ | K101: 8 | L101: 1 | M101: ● | N101: 22 | P101: - | S101: - | U101: 7 | V101: ○ | W101: 4 | X101: 9 | Y101: ○ | Z101: 8
A102: 43 | B102: =IF(データ２!B86="","",VLOOKUP(A102,データ２!$A$2:$B$216,2)) -> 港南メッツ | C102: Ｆ | D102: - | E102: 2 | I102: ＊ | L102: Ｆ | M102: - | N102: 14 | O102: Ｆ | P102: - | Q102: 15 | U102: Ｆ | V102: - | W102: 17 | X102: Ｆ | Y102: - | Z102: 18 | AA102: =COUNTIF(C102:Z103,"○") -> 1 | AB102: =COUNTIF(C102:Z103,"●") -> 0 | AC102: =COUNTIF(C102:Z103,"△") -> 1 | AD102: =+AA102*3+AC102*1 -> 4 | AE102: =+E103+H103+K103+N103+Q103+T103+W103+Z103 -> 11 | AF102: =C103+F103+I103+L103+O103+R103+U103+X103+AA103 -> 20 | AG102: =+RANK(AD102,$AD$98:$AD$113,0)*100+RANK(AE102,$AE$98:$AE$113,1)*10+RANK(AF102,$AF$98:$AF$113,0) -> 333 | AH102: =+RANK(AG102,$AG$98:$AG$113,1) -> 3
D103: - | F103: 8 | G103: △ | H103: 8 | M103: - | P103: - | R103: 12 | S103: ○ | T103: 3 | V103: - | Y103: -
A104: 44 | B104: =IF(データ２!B88="","",VLOOKUP(A104,データ２!$A$2:$B$216,2)) -> 山野Ｒイーグルス | C104: Ｆ | D104: - | E104: 3 | I104: Ｆ | J104: - | K104: 14 | L104: ＊ | R104: Ｆ | S104: - | T104: 20 | U104: Ｆ | V104: - | W104: 21 | AA104: =COUNTIF(C104:Z105,"○") -> 3 | AB104: =COUNTIF(C104:Z105,"●") -> 0 | AC104: =COUNTIF(C104:Z105,"△") -> 0 | AD104: =+AA104*3+AC104*1 -> 9 | AE104: =+E105+H105+K105+N105+Q105+T105+W105+Z105 -> 2 | AF104: =C105+F105+I105+L105+O105+R105+U105+X105+AA105 -> 51 | AG104: =+RANK(AD104,$AD$98:$AD$113,0)*100+RANK(AE104,$AE$98:$AE$113,1)*10+RANK(AF104,$AF$98:$AF$113,0) -> 111 | AH104: =+RANK(AG104,$AG$98:$AG$113,1) -> 1
D105: - | F105: 22 | G105: ○ | H105: 1 | J105: - | O105: 13 | P105: ○ | Q105: 1 | S105: - | V105: - | X105: 16 | Y105: ○ | Z105: 0
A106: 45 | B106: =IF(データ２!B90="","",VLOOKUP(A106,データ２!$A$2:$B$216,2)) -> 久我山イーグルス | C106: Ｆ | D106: - | E106: 4 | F106: Ｆ | G106: - | H106: 10 | I106: Ｆ | J106: - | K106: 15 | O106: ＊ | R106: Ｆ | S106: - | T106: 23 | U106: Ｆ | V106: - | W106: 24 | X106: Ｆ | Y106: - | Z106: 25 | AA106: =COUNTIF(C106:Z107,"○") -> 0 | AB106: =COUNTIF(C106:Z107,"●") -> 1 | AC106: =COUNTIF(C106:Z107,"△") -> 0 | AD106: =+AA106*3+AC106*1 -> 0 | AE106: =+E107+H107+K107+N107+Q107+T107+W107+Z107 -> 13 | AF106: =C107+F107+I107+L107+O107+R107+U107+X107+AA107 -> 1 | AG106: =+RANK(AD106,$AD$98:$AD$113,0)*100+RANK(AE106,$AE$98:$AE$113,1)*10+RANK(AF106,$AF$98:$AF$113,0) -> 658 | AH106: =+RANK(AG106,$AG$98:$AG$113,1) -> 7
D107: - | G107: - | J107: - | L107: 1 | M107: ● | N107: 13 | S107: - | V107: - | Y107: -
A108: 46 | B108: =IF(データ２!B92="","",VLOOKUP(A108,データ２!$A$2:$B$216,2)) -> 江東ファイターズ | C108: Ｆ | D108: - | E108: 5 | F108: Ｆ | G108: - | H108: 11 | L108: Ｆ | M108: - | N108: 20 | O108: Ｆ | P108: - | Q108: 23 | R108: ＊ | U108: Ｆ | V108: - | W108: 26 | X108: Ｆ | Y108: - | Z108: 27 | AA108: =COUNTIF(C108:Z109,"○") -> 0 | AB108: =COUNTIF(C108:Z109,"●") -> 1 | AC108: =COUNTIF(C108:Z109,"△") -> 0 | AD108: =+AA108*3+AC108*1 -> 0 | AE108: =+E109+H109+K109+N109+Q109+T109+W109+Z109 -> 12 | AF108: =C109+F109+I109+L109+O109+R109+U109+X109+AA109 -> 3 | AG108: =+RANK(AD108,$AD$98:$AD$113,0)*100+RANK(AE108,$AE$98:$AE$113,1)*10+RANK(AF108,$AF$98:$AF$113,0) -> 647 | AH108: =+RANK(AG108,$AG$98:$AG$113,1) -> 6
D109: - | G109: - | I109: 3 | J109: ● | K109: 12 | M109: - | P109: - | V109: - | Y109: -
A110: 47 | B110: =IF(データ２!B94="","",VLOOKUP(A110,データ２!$A$2:$B$216,2)) -> 落一アポロ | I110: Ｆ | J110: - | K110: 17 | L110: Ｆ | M110: - | N110: 21 | O110: Ｆ | P110: - | Q110: 24 | R110: Ｆ | S110: - | T110: 26 | U110: ＊ | AA110: =COUNTIF(C110:Z111,"○") -> 0 | AB110: =COUNTIF(C110:Z111,"●") -> 3 | AC110: =COUNTIF(C110:Z111,"△") -> 0 | AD110: =+AA110*3+AC110*1 -> 0 | AE110: =+E111+H111+K111+N111+Q111+T111+W111+Z111 -> 30 | AF110: =C111+F111+I111+L111+O111+R111+U111+X111+AA111 -> 12 | AG110: =+RANK(AD110,$AD$98:$AD$113,0)*100+RANK(AE110,$AE$98:$AE$113,1)*10+RANK(AF110,$AF$98:$AF$113,0) -> 665 | AH110: =+RANK(AG110,$AG$98:$AG$113,1) -> 8
C111: 2 | D111: ● | E111: 12 | F111: 4 | G111: ● | H111: 7 | J111: - | M111: - | P111: - | S111: - | X111: 6 | Y111: ● | Z111: 11
A112: 48 | B112: =IF(データ２!B96="","",VLOOKUP(A112,データ２!$A$2:$B$216,2)) -> 扇ターキーズ | C112: Ｆ | D112: - | E112: 7 | I112: Ｆ | J112: - | K112: 18 | O112: Ｆ | P112: - | Q112: 25 | R112: Ｆ | S112: - | T112: 27 | X112: ＊ | AA112: =COUNTIF(C112:Z113,"○") -> 1 | AB112: =COUNTIF(C112:Z113,"●") -> 2 | AC112: =COUNTIF(C112:Z113,"△") -> 0 | AD112: =+AA112*3+AC112*1 -> 3 | AE112: =+E113+H113+K113+N113+Q113+T113+W113+Z113 -> 31 | AF112: =C113+F113+I113+L113+O113+R113+U113+X113+AA113 -> 19 | AG112: =+RANK(AD112,$AD$98:$AD$113,0)*100+RANK(AE112,$AE$98:$AE$113,1)*10+RANK(AF112,$AF$98:$AF$113,0) -> 474 | AH112: =+RANK(AG112,$AG$98:$AG$113,1) -> 5
D113: - | F113: 8 | G113: ● | H113: 9 | J113: - | L113: 0 | M113: ● | N113: 16 | P113: - | S113: - | U113: 11 | V113: ○ | W113: 6
AA114: =SUM(AA98:AA113) -> 8 | AB114: =SUM(AB98:AB113) -> 8 | AC114: =SUM(AC98:AC113) -> 2 | AE114: =SUM(AE98:AE113) -> 143 | AF114: =SUM(AF98:AF113) -> 143 | AG114: =SUM(AG98:AG113) -> 3585 | AH114: =28-AA114-(AC114/2) -> 19 | AI114: 残り
B115: =+データ１!$B$2 -> 2022/2/26 | C115: =+データ１!$B$4 -> 2022年
B116: =+データ１!B18 -> スーパーリ－グ 第１６回大会 Ｇブロック ２０２２ | C116: =+IF(B117="","",+B117) -> レッドサンズ | F116: =+IF(B119="","",+B119) -> 城北メッツ | I116: =+IF(B121="","",+B121) -> 晴海アポローズ | L116: =+IF(B123="","",+B123) -> KCRジャッカル | O116: =+IF(B125="","",+B125) -> 大塚スネイクス | R116: =+IF(B127="","",+B127) -> 江東ジョーズ | U116: =+IF(B129="","",+B129) -> 新宿ドリーム | X116: =+IF(B131="","",+B131) -> 球友ジュニアーズ | AA116: 勝 | AB116: 負 | AC116: 分 | AD116: 勝点 | AE116: 失点 | AF116: 得点 | AG116: 順位決定要素 | AH116: 順位
A117: 49 | B117: =IF(データ２!B98="","",VLOOKUP(A117,データ２!$A$2:$B$216,2)) -> レッドサンズ | C117: ＊ | F117: Ｇ | G117: - | H117: 1 | L117: Ｇ | M117: - | N117: 3 | O117: Ｇ | P117: - | Q117: 4 | R117: Ｇ | S117: - | T117: 5 | AA117: =COUNTIF(C117:Z118,"○") -> 2 | AB117: =COUNTIF(C117:Z118,"●") -> 1 | AC117: =COUNTIF(C117:Z118,"△") -> 0 | AD117: =+AA117*3+AC117*1 -> 6 | AE117: =+E118+H118+K118+N118+Q118+T118+W118+Z118 -> 9 | AF117: =C118+F118+I118+L118+O118+R118+U118+X118+AA118 -> 39 | AG117: =+RANK(AD117,$AD$117:$AD$132,0)*100+RANK(AE117,$AE$117:$AE$132,1)*10+RANK(AF117,$AF$117:$AF$132,0) -> 241 | AH117: =+RANK(AG117,$AG$117:$AG$132,1) -> 2
G118: - | I118: 19 | J118: ○ | K118: 0 | M118: - | P118: - | S118: - | U118: 7 | V118: ● | W118: 8 | X118: 13 | Y118: ○ | Z118: 1
A119: 50 | B119: =IF(データ２!B100="","",VLOOKUP(A119,データ２!$A$2:$B$216,2)) -> 城北メッツ | C119: Ｇ | D119: - | E119: 1 | F119: ＊ | I119: Ｇ | J119: - | K119: 8 | O119: Ｇ | P119: - | Q119: 10 | R119: Ｇ | S119: - | T119: 11 | AA119: =COUNTIF(C119:Z120,"○") -> 3 | AB119: =COUNTIF(C119:Z120,"●") -> 0 | AC119: =COUNTIF(C119:Z120,"△") -> 0 | AD119: =+AA119*3+AC119*1 -> 9 | AE119: =+E120+H120+K120+N120+Q120+T120+W120+Z120 -> 8 | AF119: =C120+F120+I120+L120+O120+R120+U120+X120+AA120 -> 33 | AG119: =+RANK(AD119,$AD$117:$AD$132,0)*100+RANK(AE119,$AE$117:$AE$132,1)*10+RANK(AF119,$AF$117:$AF$132,0) -> 132 | AH119: =+RANK(AG119,$AG$117:$AG$132,1) -> 1
D120: - | J120: - | L120: 20 | M120: ○ | N120: 1 | P120: - | S120: - | U120: 5 | V120: ○ | W120: 1 | X120: 8 | Y120: ○ | Z120: 6
A121: 51 | B121: =IF(データ２!B102="","",VLOOKUP(A121,データ２!$A$2:$B$216,2)) -> 晴海アポローズ | F121: Ｇ | G121: - | H121: 8 | I121: ＊ | L121: Ｇ | M121: - | N121: 14 | O121: Ｇ | P121: - | Q121: 15 | R121: Ｇ | S121: - | T121: 16 | U121: Ｇ | V121: - | W121: 17 | AA121: =COUNTIF(C121:Z122,"○") -> 1 | AB121: =COUNTIF(C121:Z122,"●") -> 1 | AC121: =COUNTIF(C121:Z122,"△") -> 0 | AD121: =+AA121*3+AC121*1 -> 3 | AE121: =+E122+H122+K122+N122+Q122+T122+W122+Z122 -> 21 | AF121: =C122+F122+I122+L122+O122+R122+U122+X122+AA122 -> 4 | AG121: =+RANK(AD121,$AD$117:$AD$132,0)*100+RANK(AE121,$AE$117:$AE$132,1)*10+RANK(AF121,$AF$117:$AF$132,0) -> 376 | AH121: =+RANK(AG121,$AG$117:$AG$132,1) -> 5
C122: 0 | D122: ● | E122: 19 | G122: - | M122: - | P122: - | S122: - | V122: - | X122: 4 | Y122: ○ | Z122: 2
A123: 52 | B123: =IF(データ２!B104="","",VLOOKUP(A123,データ２!$A$2:$B$216,2)) -> KCRジャッカル | C123: Ｇ | D123: - | E123: 3 | I123: Ｇ | J123: - | K123: 14 | L123: ＊ | O123: Ｇ | P123: - | Q123: 19 | R123: Ｇ | S123: - | T123: 20 | U123: Ｇ | V123: - | W123: 21 | X123: Ｇ | Y123: - | Z123: 22 | AA123: =COUNTIF(C123:Z124,"○") -> 0 | AB123: =COUNTIF(C123:Z124,"●") -> 1 | AC123: =COUNTIF(C123:Z124,"△") -> 0 | AD123: =+AA123*3+AC123*1 -> 0 | AE123: =+E124+H124+K124+N124+Q124+T124+W124+Z124 -> 20 | AF123: =C124+F124+I124+L124+O124+R124+U124+X124+AA124 -> 1 | AG123: =+RANK(AD123,$AD$117:$AD$132,0)*100+RANK(AE123,$AE$117:$AE$132,1)*10+RANK(AF123,$AF$117:$AF$132,0) -> 768 | AH123: =+RANK(AG123,$AG$117:$AG$132,1) -> 8
D124: - | F124: 1 | G124: ● | H124: 20 | J124: - | P124: - | S124: - | V124: - | Y124: -
A125: 53 | B125: =IF(データ２!B106="","",VLOOKUP(A125,データ２!$A$2:$B$216,2)) -> 大塚スネイクス | C125: Ｇ | D125: - | E125: 4 | F125: Ｇ | G125: - | H125: 10 | I125: Ｇ | J125: - | K125: 15 | L125: Ｇ | M125: - | N125: 19 | O125: ＊ | U125: Ｇ | V125: - | W125: 24 | X125: Ｇ | Y125: - | Z125: 25 | AA125: =COUNTIF(C125:Z126,"○") -> 1 | AB125: =COUNTIF(C125:Z126,"●") -> 0 | AC125: =COUNTIF(C125:Z126,"△") -> 0 | AD125: =+AA125*3+AC125*1 -> 3 | AE125: =+E126+H126+K126+N126+Q126+T126+W126+Z126 -> 4 | AF125: =C126+F126+I126+L126+O126+R126+U126+X126+AA126 -> 6 | AG125: =+RANK(AD125,$AD$117:$AD$132,0)*100+RANK(AE125,$AE$117:$AE$132,1)*10+RANK(AF125,$AF$117:$AF$132,0) -> 315 | AH125: =+RANK(AG125,$AG$117:$AG$132,1) -> 3
D126: - | G126: - | J126: - | M126: - | R126: 6 | S126: ○ | T126: 4 | V126: - | Y126: -
A127: 54 | B127: =IF(データ２!B108="","",VLOOKUP(A127,データ２!$A$2:$B$216,2)) -> 江東ジョーズ | C127: Ｇ | D127: - | E127: 5 | F127: Ｇ | G127: - | H127: 11 | I127: Ｇ | J127: - | K127: 16 | L127: Ｇ | M127: - | N127: 20 | R127: ＊ | U127: Ｇ | V127: - | W127: 26 | X127: Ｇ | Y127: - | Z127: 27 | AA127: =COUNTIF(C127:Z128,"○") -> 0 | AB127: =COUNTIF(C127:Z128,"●") -> 1 | AC127: =COUNTIF(C127:Z128,"△") -> 0 | AD127: =+AA127*3+AC127*1 -> 0 | AE127: =+E128+H128+K128+N128+Q128+T128+W128+Z128 -> 6 | AF127: =C128+F128+I128+L128+O128+R128+U128+X128+AA128 -> 4 | AG127: =+RANK(AD127,$AD$117:$AD$132,0)*100+RANK(AE127,$AE$117:$AE$132,1)*10+RANK(AF127,$AF$117:$AF$132,0) -> 726 | AH127: =+RANK(AG127,$AG$117:$AG$132,1) -> 7
D128: - | G128: - | J128: - | M128: - | O128: 4 | P128: ● | Q128: 6 | V128: - | Y128: -
A129: 55 | B129: =IF(データ２!B110="","",VLOOKUP(A129,データ２!$A$2:$B$216,2)) -> 新宿ドリーム | I129: Ｇ | J129: - | K129: 17 | L129: Ｇ | M129: - | N129: 21 | O129: Ｇ | P129: - | Q129: 24 | R129: Ｇ | S129: - | T129: 26 | U129: ＊ | AA129: =COUNTIF(C129:Z130,"○") -> 1 | AB129: =COUNTIF(C129:Z130,"●") -> 2 | AC129: =COUNTIF(C129:Z130,"△") -> 0 | AD129: =+AA129*3+AC129*1 -> 3 | AE129: =+E130+H130+K130+N130+Q130+T130+W130+Z130 -> 19 | AF129: =C130+F130+I130+L130+O130+R130+U130+X130+AA130 -> 11 | AG129: =+RANK(AD129,$AD$117:$AD$132,0)*100+RANK(AE129,$AE$117:$AE$132,1)*10+RANK(AF129,$AF$117:$AF$132,0) -> 354 | AH129: =+RANK(AG129,$AG$117:$AG$132,1) -> 4
C130: 8 | D130: ○ | E130: 7 | F130: 1 | G130: ● | H130: 5 | J130: - | M130: - | P130: - | S130: - | X130: 2 | Y130: ● | Z130: 7
A131: 56 | B131: =IF(データ２!B112="","",VLOOKUP(A131,データ２!$A$2:$B$216,2)) -> 球友ジュニアーズ | L131: Ｇ | M131: - | N131: 22 | O131: Ｇ | P131: - | Q131: 25 | R131: Ｇ | S131: - | T131: 27 | X131: ＊ | AA131: =COUNTIF(C131:Z132,"○") -> 1 | AB131: =COUNTIF(C131:Z132,"●") -> 3 | AC131: =COUNTIF(C131:Z132,"△") -> 0 | AD131: =+AA131*3+AC131*1 -> 3 | AE131: =+E132+H132+K132+N132+Q132+T132+W132+Z132 -> 27 | AF131: =C132+F132+I132+L132+O132+R132+U132+X132+AA132 -> 16 | AG131: =+RANK(AD131,$AD$117:$AD$132,0)*100+RANK(AE131,$AE$117:$AE$132,1)*10+RANK(AF131,$AF$117:$AF$132,0) -> 383 | AH131: =+RANK(AG131,$AG$117:$AG$132,1) -> 6
C132: 1 | D132: ● | E132: 13 | F132: 6 | G132: ● | H132: 8 | I132: 2 | J132: ● | K132: 4 | M132: - | P132: - | S132: - | U132: 7 | V132: ○ | W132: 2
AA133: =SUM(AA117:AA132) -> 9 | AB133: =SUM(AB117:AB132) -> 9 | AC133: =SUM(AC117:AC132) -> 0 | AE133: =SUM(AE117:AE132) -> 114 | AF133: =SUM(AF117:AF132) -> 114 | AG133: =SUM(AG117:AG132) -> 3295 | AH133: =28-AA133-(AC133/2) -> 19 | AI133: 残り
B134: =+データ１!$B$2 -> 2022/2/26 | C134: =+データ１!$B$4 -> 2022年
B135: =+データ１!B20 -> スーパーリ－グ 第１６回大会 Ｈブロック ２０２２ | C135: =+IF(B136="","",+B136) -> 南千住ペガサス | F135: =+IF(B138="","",+B138) -> ジャパンキングス | I135: =+IF(B140="","",+B140) -> 中央フェニックス | L135: =+IF(B142="","",+B142) -> 九品仏ペガサス | O135: =+IF(B144="","",+B144) -> 駒込ベアーズ | R135: =+IF(B146="","",+B146) -> 東陽フェニックス | U135: =+IF(B148="","",+B148) -> 淀四ライオンズ | X135: =+IF(B150="","",+B150) -> 池雪ジュニアＳ | AA135: 勝 | AB135: 負 | AC135: 分 | AD135: 勝点 | AE135: 失点 | AF135: 得点 | AG135: 順位決定要素 | AH135: 順位
A136: 57 | B136: =IF(データ２!B114="","",VLOOKUP(A136,データ２!$A$2:$B$216,2)) -> 南千住ペガサス | C136: ＊ | F136: Ｈ | G136: - | H136: 1 | I136: Ｈ | J136: - | K136: 2 | U136: Ｈ | V136: - | W136: 6 | AA136: =COUNTIF(C136:Z137,"○") -> 0 | AB136: =COUNTIF(C136:Z137,"●") -> 4 | AC136: =COUNTIF(C136:Z137,"△") -> 0 | AD136: =+AA136*3+AC136*1 -> 0 | AE136: =+E137+H137+K137+N137+Q137+T137+W137+Z137 -> 46 | AF136: =C137+F137+I137+L137+O137+R137+U137+X137+AA137 -> 12 | AG136: =+RANK(AD136,$AD$136:$AD$151,0)*100+RANK(AE136,$AE$136:$AE$151,1)*10+RANK(AF136,$AF$136:$AF$151,0) -> 785 | AH136: =+RANK(AG136,$AG$136:$AG$151,1) -> 8
G137: - | J137: - | L137: 4 | M137: ● | N137: 14 | O137: 3 | P137: ● | Q137: 8 | R137: 5 | S137: ● | T137: 7 | V137: - | X137: 0 | Y137: ● | Z137: 17
A138: 58 | B138: =IF(データ２!B116="","",VLOOKUP(A138,データ２!$A$2:$B$216,2)) -> ジャパンキングス | C138: Ｈ | D138: - | E138: 1 | F138: ＊ | I138: Ｈ | J138: - | K138: 8 | L138: Ｈ | M138: - | N138: 9 | R138: Ｈ | S138: - | T138: 11 | U138: Ｈ | V138: - | W138: 12 | X138: Ｈ | Y138: - | Z138: 13 | AA138: =COUNTIF(C138:Z139,"○") -> 0 | AB138: =COUNTIF(C138:Z139,"●") -> 1 | AC138: =COUNTIF(C138:Z139,"△") -> 0 | AD138: =+AA138*3+AC138*1 -> 0 | AE138: =+E139+H139+K139+N139+Q139+T139+W139+Z139 -> 15 | AF138: =C139+F139+I139+L139+O139+R139+U139+X139+AA139 -> 1 | AG138: =+RANK(AD138,$AD$136:$AD$151,0)*100+RANK(AE138,$AE$136:$AE$151,1)*10+RANK(AF138,$AF$136:$AF$151,0) -> 748 | AH138: =+RANK(AG138,$AG$136:$AG$151,1) -> 7
D139: - | J139: - | M139: - | O139: 1 | P139: ● | Q139: 15 | S139: - | V139: - | Y139: -
A140: 59 | B140: =IF(データ２!B118="","",VLOOKUP(A140,データ２!$A$2:$B$216,2)) -> 中央フェニックス | C140: Ｈ | D140: - | E140: 2 | F140: Ｈ | G140: - | H140: 8 | I140: ＊ | L140: Ｈ | M140: - | N140: 14 | R140: Ｈ | S140: - | T140: 16 | X140: Ｈ | Y140: - | Z140: 18 | AA140: =COUNTIF(C140:Z141,"○") -> 1 | AB140: =COUNTIF(C140:Z141,"●") -> 1 | AC140: =COUNTIF(C140:Z141,"△") -> 0 | AD140: =+AA140*3+AC140*1 -> 3 | AE140: =+E141+H141+K141+N141+Q141+T141+W141+Z141 -> 10 | AF140: =C141+F141+I141+L141+O141+R141+U141+X141+AA141 -> 10 | AG140: =+RANK(AD140,$AD$136:$AD$151,0)*100+RANK(AE140,$AE$136:$AE$151,1)*10+RANK(AF140,$AF$136:$AF$151,0) -> 426 | AH140: =+RANK(AG140,$AG$136:$AG$151,1) -> 4
D141: - | G141: - | M141: - | O141: 3 | P141: ● | Q141: 4 | S141: - | U141: 7 | V141: ○ | W141: 6 | Y141: -
A142: 60 | B142: =IF(データ２!B120="","",VLOOKUP(A142,データ２!$A$2:$B$216,2)) -> 九品仏ペガサス | F142: Ｈ | G142: - | H142: 9 | I142: Ｈ | J142: - | K142: 14 | L142: ＊ | O142: Ｈ | P142: - | Q142: 19 | R142: Ｈ | S142: - | T142: 20 | X142: Ｈ | Y142: - | Z142: 22 | AA142: =COUNTIF(C142:Z143,"○") -> 1 | AB142: =COUNTIF(C142:Z143,"●") -> 1 | AC142: =COUNTIF(C142:Z143,"△") -> 0 | AD142: =+AA142*3+AC142*1 -> 3 | AE142: =+E143+H143+K143+N143+Q143+T143+W143+Z143 -> 23 | AF142: =C143+F143+I143+L143+O143+R143+U143+X143+AA143 -> 18 | AG142: =+RANK(AD142,$AD$136:$AD$151,0)*100+RANK(AE142,$AE$136:$AE$151,1)*10+RANK(AF142,$AF$136:$AF$151,0) -> 474 | AH142: =+RANK(AG142,$AG$136:$AG$151,1) -> 6
C143: 14 | D143: ○ | E143: 4 | G143: - | J143: - | P143: - | S143: - | U143: 4 | V143: ● | W143: 19 | Y143: -
A144: 61 | B144: =IF(データ２!B122="","",VLOOKUP(A144,データ２!$A$2:$B$216,2)) -> 駒込ベアーズ | L144: Ｈ | M144: - | N144: 19 | O144: ＊ | R144: Ｈ | S144: - | T144: 23 | U144: Ｈ | V144: - | W144: 24 | X144: Ｈ | Y144: - | Z144: 25 | AA144: =COUNTIF(C144:Z145,"○") -> 3 | AB144: =COUNTIF(C144:Z145,"●") -> 0 | AC144: =COUNTIF(C144:Z145,"△") -> 0 | AD144: =+AA144*3+AC144*1 -> 9 | AE144: =+E145+H145+K145+N145+Q145+T145+W145+Z145 -> 7 | AF144: =C145+F145+I145+L145+O145+R145+U145+X145+AA145 -> 27 | AG144: =+RANK(AD144,$AD$136:$AD$151,0)*100+RANK(AE144,$AE$136:$AE$151,1)*10+RANK(AF144,$AF$136:$AF$151,0) -> 113 | AH144: =+RANK(AG144,$AG$136:$AG$151,1) -> 1
C145: 8 | D145: ○ | E145: 3 | F145: 15 | G145: ○ | H145: 1 | I145: 4 | J145: ○ | K145: 3 | M145: - | S145: - | V145: - | Y145: -
A146: 62 | B146: =IF(データ２!B124="","",VLOOKUP(A146,データ２!$A$2:$B$216,2)) -> 東陽フェニックス | F146: Ｈ | G146: - | H146: 11 | I146: Ｈ | J146: - | K146: 16 | L146: Ｈ | M146: - | N146: 20 | O146: Ｈ | P146: - | Q146: 23 | R146: ＊ | U146: Ｈ | V146: - | W146: 26 | AA146: =COUNTIF(C146:Z147,"○") -> 1 | AB146: =COUNTIF(C146:Z147,"●") -> 1 | AC146: =COUNTIF(C146:Z147,"△") -> 0 | AD146: =+AA146*3+AC146*1 -> 3 | AE146: =+E147+H147+K147+N147+Q147+T147+W147+Z147 -> 16 | AF146: =C147+F147+I147+L147+O147+R147+U147+X147+AA147 -> 10 | AG146: =+RANK(AD146,$AD$136:$AD$151,0)*100+RANK(AE146,$AE$136:$AE$151,1)*10+RANK(AF146,$AF$136:$AF$151,0) -> 456 | AH146: =+RANK(AG146,$AG$136:$AG$151,1) -> 5
C147: 7 | D147: ○ | E147: 5 | G147: - | J147: - | M147: - | P147: - | V147: - | X147: 3 | Y147: ● | Z147: 11
A148: 63 | B148: =IF(データ２!B126="","",VLOOKUP(A148,データ２!$A$2:$B$216,2)) -> 淀四ライオンズ | C148: Ｈ | D148: - | E148: 6 | F148: Ｈ | G148: - | H148: 12 | O148: Ｈ | P148: - | Q148: 24 | R148: Ｈ | S148: - | T148: 26 | U148: ＊ | AA148: =COUNTIF(C148:Z149,"○") -> 2 | AB148: =COUNTIF(C148:Z149,"●") -> 1 | AC148: =COUNTIF(C148:Z149,"△") -> 0 | AD148: =+AA148*3+AC148*1 -> 6 | AE148: =+E149+H149+K149+N149+Q149+T149+W149+Z149 -> 16 | AF148: =C149+F149+I149+L149+O149+R149+U149+X149+AA149 -> 32 | AG148: =+RANK(AD148,$AD$136:$AD$151,0)*100+RANK(AE148,$AE$136:$AE$151,1)*10+RANK(AF148,$AF$136:$AF$151,0) -> 252 | AH148: =+RANK(AG148,$AG$136:$AG$151,1) -> 3
D149: - | G149: - | I149: 6 | J149: ● | K149: 7 | L149: 19 | M149: ○ | N149: 4 | P149: - | S149: - | X149: 7 | Y149: ○ | Z149: 5
A150: 64 | B150: =IF(データ２!B128="","",VLOOKUP(A150,データ２!$A$2:$B$216,2)) -> 池雪ジュニアＳ | F150: Ｈ | G150: - | H150: 13 | I150: Ｈ | J150: - | K150: 18 | L150: Ｈ | M150: - | N150: 22 | O150: Ｈ | P150: - | Q150: 25 | X150: ＊ | AA150: =COUNTIF(C150:Z151,"○") -> 2 | AB150: =COUNTIF(C150:Z151,"●") -> 1 | AC150: =COUNTIF(C150:Z151,"△") -> 0 | AD150: =+AA150*3+AC150*1 -> 6 | AE150: =+E151+H151+K151+N151+Q151+T151+W151+Z151 -> 10 | AF150: =C151+F151+I151+L151+O151+R151+U151+X151+AA151 -> 33 | AG150: =+RANK(AD150,$AD$136:$AD$151,0)*100+RANK(AE150,$AE$136:$AE$151,1)*10+RANK(AF150,$AF$136:$AF$151,0) -> 221 | AH150: =+RANK(AG150,$AG$136:$AG$151,1) -> 2
C151: 17 | D151: ○ | E151: 0 | G151: - | J151: - | M151: - | P151: - | R151: 11 | S151: ○ | T151: 3 | U151: 5 | V151: ● | W151: 7
AA152: =SUM(AA136:AA151) -> 10 | AB152: =SUM(AB136:AB151) -> 10 | AC152: =SUM(AC136:AC151) -> 0 | AE152: =SUM(AE136:AE151) -> 143 | AF152: =SUM(AF136:AF151) -> 143 | AG152: =SUM(AG136:AG151) -> 3475 | AH152: =28-AA152-(AC152/2) -> 18 | AI152: 残り
B153: =+データ１!$B$2 -> 2022/2/26 | C153: =+データ１!$B$4 -> 2022年
B154: =+データ１!B22 -> スーパーリ－グ 第１６回大会 Ｉブロック ２０２２ | C154: =+IF(B155="","",+B155) -> 高島エイト | F154: =+IF(B157="","",+B157) -> 興宮ファイターズ | I154: =+IF(B159="","",+B159) -> 高輪クラブ | L154: =+IF(B161="","",+B161) -> 礫川 | O154: =+IF(B163="","",+B163) -> 品川レインボーズ | R154: =+IF(B165="","",+B165) -> 元加賀 | U154: =+IF(B167="","",+B167) -> 東山エイターズ | X154: =+IF(B169="","",+B169) -> レッドファイヤーズ | AA154: 勝 | AB154: 負 | AC154: 分 | AD154: 勝点 | AE154: 失点 | AF154: 得点 | AG154: 順位決定要素 | AH154: 順位
A155: 65 | B155: =IF(データ２!B130="","",VLOOKUP(A155,データ２!$A$2:$B$216,2)) -> 高島エイト | C155: ＊ | O155: Ｉ | P155: - | Q155: 4 | R155: Ｉ | S155: - | T155: 5 | U155: Ｉ | V155: - | W155: 6 | AA155: =COUNTIF(C155:Z156,"○") -> 4 | AB155: =COUNTIF(C155:Z156,"●") -> 0 | AC155: =COUNTIF(C155:Z156,"△") -> 0 | AD155: =+AA155*3+AC155*1 -> 12 | AE155: =+E156+H156+K156+N156+Q156+T156+W156+Z156 -> 14 | AF155: =C156+F156+I156+L156+O156+R156+U156+X156+AA156 -> 36 | AG155: =+RANK(AD155,$AD$155:$AD$170,0)*100+RANK(AE155,$AE$155:$AE$170,1)*10+RANK(AF155,$AF$155:$AF$170,0) -> 112 | AH155: =+RANK(AG155,$AG$155:$AG$170,1) -> 1
F156: 10 | G156: ○ | H156: 4 | I156: 8 | J156: ○ | K156: 4 | L156: 11 | M156: ○ | N156: 0 | P156: - | S156: - | V156: - | X156: 7 | Y156: ○ | Z156: 6
A157: 66 | B157: =IF(データ２!B132="","",VLOOKUP(A157,データ２!$A$2:$B$216,2)) -> 興宮ファイターズ | F157: ＊ | L157: Ｉ | M157: - | N157: 9 | O157: Ｉ | P157: - | Q157: 10 | U157: Ｉ | V157: - | W157: 12 | X157: Ｉ | Y157: - | Z157: 13 | AA157: =COUNTIF(C157:Z158,"○") -> 1 | AB157: =COUNTIF(C157:Z158,"●") -> 2 | AC157: =COUNTIF(C157:Z158,"△") -> 0 | AD157: =+AA157*3+AC157*1 -> 3 | AE157: =+E158+H158+K158+N158+Q158+T158+W158+Z158 -> 28 | AF157: =C158+F158+I158+L158+O158+R158+U158+X158+AA158 -> 24 | AG157: =+RANK(AD157,$AD$155:$AD$170,0)*100+RANK(AE157,$AE$155:$AE$170,1)*10+RANK(AF157,$AF$155:$AF$170,0) -> 656 | AH157: =+RANK(AG157,$AG$155:$AG$170,1) -> 6
C158: 4 | D158: ● | E158: 10 | I158: 9 | J158: ● | K158: 10 | M158: - | P158: - | R158: 11 | S158: ○ | T158: 8 | V158: - | Y158: -
A159: 67 | B159: =IF(データ２!B134="","",VLOOKUP(A159,データ２!$A$2:$B$216,2)) -> 高輪クラブ | I159: ＊ | L159: Ｉ | M159: - | N159: 14 | O159: Ｉ | P159: - | Q159: 15 | X159: Ｉ | Y159: - | Z159: 18 | AA159: =COUNTIF(C159:Z160,"○") -> 2 | AB159: =COUNTIF(C159:Z160,"●") -> 2 | AC159: =COUNTIF(C159:Z160,"△") -> 0 | AD159: =+AA159*3+AC159*1 -> 6 | AE159: =+E160+H160+K160+N160+Q160+T160+W160+Z160 -> 25 | AF159: =C160+F160+I160+L160+O160+R160+U160+X160+AA160 -> 32 | AG159: =+RANK(AD159,$AD$155:$AD$170,0)*100+RANK(AE159,$AE$155:$AE$170,1)*10+RANK(AF159,$AF$155:$AF$170,0) -> 444 | AH159: =+RANK(AG159,$AG$155:$AG$170,1) -> 5
C160: 4 | D160: ● | E160: 8 | F160: 10 | G160: ○ | H160: 9 | M160: - | P160: - | R160: 6 | S160: ● | T160: 7 | U160: 12 | V160: ○ | W160: 1 | Y160: -
A161: 68 | B161: =IF(データ２!B136="","",VLOOKUP(A161,データ２!$A$2:$B$216,2)) -> 礫川 | F161: Ｉ | G161: - | H161: 9 | I161: Ｉ | J161: - | K161: 14 | L161: ＊ | AA161: =COUNTIF(C161:Z162,"○") -> 1 | AB161: =COUNTIF(C161:Z162,"●") -> 4 | AC161: =COUNTIF(C161:Z162,"△") -> 0 | AD161: =+AA161*3+AC161*1 -> 3 | AE161: =+E162+H162+K162+N162+Q162+T162+W162+Z162 -> 48 | AF161: =C162+F162+I162+L162+O162+R162+U162+X162+AA162 -> 13 | AG161: =+RANK(AD161,$AD$155:$AD$170,0)*100+RANK(AE161,$AE$155:$AE$170,1)*10+RANK(AF161,$AF$155:$AF$170,0) -> 687 | AH161: =+RANK(AG161,$AG$155:$AG$170,1) -> 7
C162: 0 | D162: ● | E162: 11 | G162: - | J162: - | O162: 2 | P162: ● | Q162: 10 | R162: 1 | S162: ● | T162: 9 | U162: 8 | V162: ○ | W162: 4 | X162: 2 | Y162: ● | Z162: 14
A163: 69 | B163: =IF(データ２!B138="","",VLOOKUP(A163,データ２!$A$2:$B$216,2)) -> 品川レインボーズ | C163: Ｉ | D163: - | E163: 4 | F163: Ｉ | G163: - | H163: 10 | I163: Ｉ | J163: - | K163: 15 | O163: ＊ | AA163: =COUNTIF(C163:Z164,"○") -> 3 | AB163: =COUNTIF(C163:Z164,"●") -> 1 | AC163: =COUNTIF(C163:Z164,"△") -> 0 | AD163: =+AA163*3+AC163*1 -> 9 | AE163: =+E164+H164+K164+N164+Q164+T164+W164+Z164 -> 17 | AF163: =C164+F164+I164+L164+O164+R164+U164+X164+AA164 -> 43 | AG163: =+RANK(AD163,$AD$155:$AD$170,0)*100+RANK(AE163,$AE$155:$AE$170,1)*10+RANK(AF163,$AF$155:$AF$170,0) -> 221 | AH163: =+RANK(AG163,$AG$155:$AG$170,1) -> 2
D164: - | G164: - | J164: - | L164: 10 | M164: ○ | N164: 2 | R164: 5 | S164: ● | T164: 7 | U164: 19 | V164: ○ | W164: 0 | X164: 9 | Y164: ○ | Z164: 8
A165: 70 | B165: =IF(データ２!B140="","",VLOOKUP(A165,データ２!$A$2:$B$216,2)) -> 元加賀 | C165: Ｉ | D165: - | E165: 5 | R165: ＊ | U165: Ｉ | V165: - | W165: 26 | AA165: =COUNTIF(C165:Z166,"○") -> 3 | AB165: =COUNTIF(C165:Z166,"●") -> 2 | AC165: =COUNTIF(C165:Z166,"△") -> 0 | AD165: =+AA165*3+AC165*1 -> 9 | AE165: =+E166+H166+K166+N166+Q166+T166+W166+Z166 -> 29 | AF165: =C166+F166+I166+L166+O166+R166+U166+X166+AA166 -> 31 | AG165: =+RANK(AD165,$AD$155:$AD$170,0)*100+RANK(AE165,$AE$155:$AE$170,1)*10+RANK(AF165,$AF$155:$AF$170,0) -> 265 | AH165: =+RANK(AG165,$AG$155:$AG$170,1) -> 3
D166: - | F166: 8 | G166: ● | H166: 11 | I166: 7 | J166: ○ | K166: 6 | L166: 9 | M166: ○ | N166: 1 | O166: 7 | P166: ○ | Q166: 5 | V166: - | X166: 0 | Y166: ● | Z166: 6
A167: 71 | B167: =IF(データ２!B142="","",VLOOKUP(A167,データ２!$A$2:$B$216,2)) -> 東山エイターズ | C167: Ｉ | D167: - | E167: 6 | F167: Ｉ | G167: - | H167: 12 | R167: Ｉ | S167: - | T167: 26 | U167: ＊ | X167: Ｉ | Y167: - | Z167: 28 | AA167: =COUNTIF(C167:Z168,"○") -> 0 | AB167: =COUNTIF(C167:Z168,"●") -> 3 | AC167: =COUNTIF(C167:Z168,"△") -> 0 | AD167: =+AA167*3+AC167*1 -> 0 | AE167: =+E168+H168+K168+N168+Q168+T168+W168+Z168 -> 39 | AF167: =C168+F168+I168+L168+O168+R168+U168+X168+AA168 -> 5 | AG167: =+RANK(AD167,$AD$155:$AD$170,0)*100+RANK(AE167,$AE$155:$AE$170,1)*10+RANK(AF167,$AF$155:$AF$170,0) -> 878 | AH167: =+RANK(AG167,$AG$155:$AG$170,1) -> 8
D168: - | G168: - | I168: 1 | J168: ● | K168: 12 | L168: 4 | M168: ● | N168: 8 | O168: 0 | P168: ● | Q168: 19 | S168: - | Y168: -
A169: 72 | B169: =IF(データ２!B144="","",VLOOKUP(A169,データ２!$A$2:$B$216,2)) -> レッドファイヤーズ | F169: Ｉ | G169: - | H169: 13 | I169: Ｉ | J169: - | K169: 18 | U169: Ｉ | V169: - | W169: 28 | X169: ＊ | AA169: =COUNTIF(C169:Z170,"○") -> 2 | AB169: =COUNTIF(C169:Z170,"●") -> 2 | AC169: =COUNTIF(C169:Z170,"△") -> 0 | AD169: =+AA169*3+AC169*1 -> 6 | AE169: =+E170+H170+K170+N170+Q170+T170+W170+Z170 -> 18 | AF169: =C170+F170+I170+L170+O170+R170+U170+X170+AA170 -> 34 | AG169: =+RANK(AD169,$AD$155:$AD$170,0)*100+RANK(AE169,$AE$155:$AE$170,1)*10+RANK(AF169,$AF$155:$AF$170,0) -> 433 | AH169: =+RANK(AG169,$AG$155:$AG$170,1) -> 4
C170: 6 | D170: ● | E170: 7 | G170: - | J170: - | L170: 14 | M170: ○ | N170: 2 | O170: 8 | P170: ● | Q170: 9 | R170: 6 | S170: ○ | T170: 0 | V170: -
AA171: =SUM(AA155:AA170) -> 16 | AB171: =SUM(AB155:AB170) -> 16 | AC171: =SUM(AC155:AC170) -> 0 | AE171: =SUM(AE155:AE170) -> 218 | AF171: =SUM(AF155:AF170) -> 218 | AG171: =SUM(AG155:AG170) -> 3696 | AH171: =28-AA171-(AC171/2) -> 12 | AI171: 残り
B172: =+データ１!$B$2 -> 2022/2/26 | C172: =+データ１!$B$4 -> 2022年
B173: =+データ１!B24 -> スーパーリ－グ 第１６回大会 Ｊブロック ２０２２ | C173: =+IF(B174="","",+B174) -> ブルースカイズ | F173: =+IF(B176="","",+B176) -> 雷サンダース | I173: =+IF(B178="","",+B178) -> 元芝ハヤブサ | L173: =+IF(B180="","",+B180) -> 船橋フェニックス | O173: =+IF(B182="","",+B182) -> 高井戸東少年野球 | R173: =+IF(B184="","",+B184) -> 亀戸合同 | U173: =+IF(B186="","",+B186) -> リトルロジャース | X173: =+IF(B188="","",+B188) -> 西伊興若潮ジュニア | AA173: 勝 | AB173: 負 | AC173: 分 | AD173: 勝点 | AE173: 失点 | AF173: 得点 | AG173: 順位決定要素 | AH173: 順位
A174: 73 | B174: =IF(データ２!B146="","",VLOOKUP(A174,データ２!$A$2:$B$216,2)) -> ブルースカイズ | C174: ＊ | O174: Ｊ | P174: - | Q174: 4 | U174: Ｊ | V174: - | W174: 6 | X174: Ｊ | Y174: - | Z174: 7 | AA174: =COUNTIF(C174:Z175,"○") -> 1 | AB174: =COUNTIF(C174:Z175,"●") -> 3 | AC174: =COUNTIF(C174:Z175,"△") -> 0 | AD174: =+AA174*3+AC174*1 -> 3 | AE174: =+E175+H175+K175+N175+Q175+T175+W175+Z175 -> 36 | AF174: =C175+F175+I175+L175+O175+R175+U175+X175+AA175 -> 14 | AG174: =+RANK(AD174,$AD$174:$AD$189,0)*100+RANK(AE174,$AE$174:$AE$189,1)*10+RANK(AF174,$AF$174:$AF$189,0) -> 484 | AH174: =+RANK(AG174,$AG$174:$AG$189,1) -> 6
F175: 0 | G175: ● | H175: 13 | I175: 7 | J175: ● | K175: 10 | L175: 1 | M175: ● | N175: 11 | P175: - | R175: 6 | S175: ○ | T175: 2 | V175: - | Y175: -
A176: 74 | B176: =IF(データ２!B148="","",VLOOKUP(A176,データ２!$A$2:$B$216,2)) -> 雷サンダース | F176: ＊ | I176: Ｊ | J176: - | K176: 8 | O176: Ｊ | P176: - | Q176: 10 | R176: Ｊ | S176: - | T176: 11 | AA176: =COUNTIF(C176:Z177,"○") -> 1 | AB176: =COUNTIF(C176:Z177,"●") -> 3 | AC176: =COUNTIF(C176:Z177,"△") -> 0 | AD176: =+AA176*3+AC176*1 -> 3 | AE176: =+E177+H177+K177+N177+Q177+T177+W177+Z177 -> 12 | AF176: =C177+F177+I177+L177+O177+R177+U177+X177+AA177 -> 21 | AG176: =+RANK(AD176,$AD$174:$AD$189,0)*100+RANK(AE176,$AE$174:$AE$189,1)*10+RANK(AF176,$AF$174:$AF$189,0) -> 423 | AH176: =+RANK(AG176,$AG$174:$AG$189,1) -> 5
C177: 13 | D177: ○ | E177: 0 | J177: - | L177: 4 | M177: ● | N177: 5 | P177: - | S177: - | U177: 1 | V177: ● | W177: 3 | X177: 3 | Y177: ● | Z177: 4
A178: 75 | B178: =IF(データ２!B150="","",VLOOKUP(A178,データ２!$A$2:$B$216,2)) -> 元芝ハヤブサ | F178: Ｊ | G178: - | H178: 8 | I178: ＊ | L178: Ｊ | M178: - | N178: 14 | O178: Ｊ | P178: - | Q178: 15 | R178: Ｊ | S178: - | T178: 16 | U178: Ｊ | V178: - | W178: 17 | AA178: =COUNTIF(C178:Z179,"○") -> 1 | AB178: =COUNTIF(C178:Z179,"●") -> 1 | AC178: =COUNTIF(C178:Z179,"△") -> 0 | AD178: =+AA178*3+AC178*1 -> 3 | AE178: =+E179+H179+K179+N179+Q179+T179+W179+Z179 -> 11 | AF178: =C179+F179+I179+L179+O179+R179+U179+X179+AA179 -> 12 | AG178: =+RANK(AD178,$AD$174:$AD$189,0)*100+RANK(AE178,$AE$174:$AE$189,1)*10+RANK(AF178,$AF$174:$AF$189,0) -> 416 | AH178: =+RANK(AG178,$AG$174:$AG$189,1) -> 4
C179: 10 | D179: ○ | E179: 7 | G179: - | M179: - | P179: - | S179: - | V179: - | X179: 2 | Y179: ● | Z179: 4
A180: 76 | B180: =IF(データ２!B152="","",VLOOKUP(A180,データ２!$A$2:$B$216,2)) -> 船橋フェニックス | I180: Ｊ | J180: - | K180: 14 | L180: ＊ | R180: Ｊ | S180: - | T180: 20 | AA180: =COUNTIF(C180:Z181,"○") -> 4 | AB180: =COUNTIF(C180:Z181,"●") -> 1 | AC180: =COUNTIF(C180:Z181,"△") -> 0 | AD180: =+AA180*3+AC180*1 -> 12 | AE180: =+E181+H181+K181+N181+Q181+T181+W181+Z181 -> 25 | AF180: =C181+F181+I181+L181+O181+R181+U181+X181+AA181 -> 40 | AG180: =+RANK(AD180,$AD$174:$AD$189,0)*100+RANK(AE180,$AE$174:$AE$189,1)*10+RANK(AF180,$AF$174:$AF$189,0) -> 171 | AH180: =+RANK(AG180,$AG$174:$AG$189,1) -> 2
C181: 11 | D181: ○ | E181: 1 | F181: 5 | G181: ○ | H181: 4 | J181: - | O181: 12 | P181: ○ | Q181: 4 | S181: - | U181: 7 | V181: ● | W181: 15 | X181: 5 | Y181: ○ | Z181: 1
A182: 77 | B182: =IF(データ２!B154="","",VLOOKUP(A182,データ２!$A$2:$B$216,2)) -> 高井戸東少年野球 | C182: Ｊ | D182: - | E182: 4 | F182: Ｊ | G182: - | H182: 10 | I182: Ｊ | J182: - | K182: 15 | O182: ＊ | R182: Ｊ | S182: - | T182: 23 | U182: Ｊ | V182: - | W182: 24 | X182: Ｊ | Y182: - | Z182: 25 | AA182: =COUNTIF(C182:Z183,"○") -> 0 | AB182: =COUNTIF(C182:Z183,"●") -> 1 | AC182: =COUNTIF(C182:Z183,"△") -> 0 | AD182: =+AA182*3+AC182*1 -> 0 | AE182: =+E183+H183+K183+N183+Q183+T183+W183+Z183 -> 12 | AF182: =C183+F183+I183+L183+O183+R183+U183+X183+AA183 -> 4 | AG182: =+RANK(AD182,$AD$174:$AD$189,0)*100+RANK(AE182,$AE$174:$AE$189,1)*10+RANK(AF182,$AF$174:$AF$189,0) -> 728 | AH182: =+RANK(AG182,$AG$174:$AG$189,1) -> 7
D183: - | G183: - | J183: - | L183: 4 | M183: ● | N183: 12 | S183: - | V183: - | Y183: -
A184: 78 | B184: =IF(データ２!B156="","",VLOOKUP(A184,データ２!$A$2:$B$216,2)) -> 亀戸合同 | F184: Ｊ | G184: - | H184: 11 | I184: Ｊ | J184: - | K184: 16 | L184: Ｊ | M184: - | N184: 20 | O184: Ｊ | P184: - | Q184: 23 | R184: ＊ | X184: Ｊ | Y184: - | Z184: 27 | AA184: =COUNTIF(C184:Z185,"○") -> 0 | AB184: =COUNTIF(C184:Z185,"●") -> 2 | AC184: =COUNTIF(C184:Z185,"△") -> 0 | AD184: =+AA184*3+AC184*1 -> 0 | AE184: =+E185+H185+K185+N185+Q185+T185+W185+Z185 -> 22 | AF184: =C185+F185+I185+L185+O185+R185+U185+X185+AA185 -> 7 | AG184: =+RANK(AD184,$AD$174:$AD$189,0)*100+RANK(AE184,$AE$174:$AE$189,1)*10+RANK(AF184,$AF$174:$AF$189,0) -> 767 | AH184: =+RANK(AG184,$AG$174:$AG$189,1) -> 8
C185: 2 | D185: ● | E185: 6 | G185: - | J185: - | M185: - | P185: - | U185: 5 | V185: ● | W185: 16 | Y185: -
A186: 79 | B186: =IF(データ２!B158="","",VLOOKUP(A186,データ２!$A$2:$B$216,2)) -> リトルロジャース | C186: Ｊ | D186: - | E186: 6 | I186: Ｊ | J186: - | K186: 17 | O186: Ｊ | P186: - | Q186: 24 | U186: ＊ | AA186: =COUNTIF(C186:Z187,"○") -> 4 | AB186: =COUNTIF(C186:Z187,"●") -> 0 | AC186: =COUNTIF(C186:Z187,"△") -> 0 | AD186: =+AA186*3+AC186*1 -> 12 | AE186: =+E187+H187+K187+N187+Q187+T187+W187+Z187 -> 18 | AF186: =C187+F187+I187+L187+O187+R187+U187+X187+AA187 -> 40 | AG186: =+RANK(AD186,$AD$174:$AD$189,0)*100+RANK(AE186,$AE$174:$AE$189,1)*10+RANK(AF186,$AF$174:$AF$189,0) -> 151 | AH186: =+RANK(AG186,$AG$174:$AG$189,1) -> 1
D187: - | F187: 3 | G187: ○ | H187: 1 | J187: - | L187: 15 | M187: ○ | N187: 7 | P187: - | R187: 16 | S187: ○ | T187: 5 | X187: 6 | Y187: ○ | Z187: 5
A188: 80 | B188: =IF(データ２!B160="","",VLOOKUP(A188,データ２!$A$2:$B$216,2)) -> 西伊興若潮ジュニア | C188: Ｊ | D188: - | E188: 7 | O188: Ｊ | P188: - | Q188: 25 | R188: Ｊ | S188: - | T188: 27 | X188: ＊ | AA188: =COUNTIF(C188:Z189,"○") -> 2 | AB188: =COUNTIF(C188:Z189,"●") -> 2 | AC188: =COUNTIF(C188:Z189,"△") -> 0 | AD188: =+AA188*3+AC188*1 -> 6 | AE188: =+E189+H189+K189+N189+Q189+T189+W189+Z189 -> 16 | AF188: =C189+F189+I189+L189+O189+R189+U189+X189+AA189 -> 14 | AG188: =+RANK(AD188,$AD$174:$AD$189,0)*100+RANK(AE188,$AE$174:$AE$189,1)*10+RANK(AF188,$AF$174:$AF$189,0) -> 344 | AH188: =+RANK(AG188,$AG$174:$AG$189,1) -> 3
D189: - | F189: 4 | G189: ○ | H189: 3 | I189: 4 | J189: ○ | K189: 2 | L189: 1 | M189: ● | N189: 5 | P189: - | S189: - | U189: 5 | V189: ● | W189: 6
AA190: =SUM(AA174:AA189) -> 13 | AB190: =SUM(AB174:AB189) -> 13 | AC190: =SUM(AC174:AC189) -> 0 | AE190: =SUM(AE174:AE189) -> 152 | AF190: =SUM(AF174:AF189) -> 152 | AG190: =SUM(AG174:AG189) -> 3484 | AH190: =28-AA190-(AC190/2) -> 15 | AI190: 残り
B191: =+データ１!$B$2 -> 2022/2/26 | C191: =+データ１!$B$4 -> 2022年
B192: =+データ１!B26 -> スーパーリ－グ 第１６回大会 Ｋブロック ２０２２ | C192: =+IF(B193="","",+B193) -> 北原少年野球クラブ | F192: =+IF(B195="","",+B195) -> しらさぎ | I192: =+IF(B197="","",+B197) -> オール麻布 | L192: =+IF(B199="","",+B199) -> 用賀ベアーズ | O192: =+IF(B201="","",+B201) -> 荒川コンドル | R192: =+IF(B203="","",+B203) -> ニュー愛宕 | U192: =+IF(B205="","",+B205) -> いちがやチーターズ | X192: =+IF(B207="","",+B207) -> 東伊興シャインズ | AA192: 勝 | AB192: 負 | AC192: 分 | AD192: 勝点 | AE192: 失点 | AF192: 得点 | AG192: 順位決定要素 | AH192: 順位
A193: 81 | B193: =IF(データ２!B162="","",VLOOKUP(A193,データ２!$A$2:$B$216,2)) -> 北原少年野球クラブ | C193: ＊ | I193: Ｋ | J193: - | K193: 2 | R193: Ｋ | S193: - | T193: 5 | X193: Ｋ | Y193: - | Z193: 7 | AA193: =COUNTIF(C193:Z194,"○") -> 2 | AB193: =COUNTIF(C193:Z194,"●") -> 2 | AC193: =COUNTIF(C193:Z194,"△") -> 0 | AD193: =+AA193*3+AC193*1 -> 6 | AE193: =+E194+H194+K194+N194+Q194+T194+W194+Z194 -> 27 | AF193: =C194+F194+I194+L194+O194+R194+U194+X194+AA194 -> 27 | AG193: =+RANK(AD193,$AD$193:$AD$208,0)*100+RANK(AE193,$AE$193:$AE$208,1)*10+RANK(AF193,$AF$193:$AF$208,0) -> 344 | AH193: =+RANK(AG193,$AG$193:$AG$208,1) -> 4
F194: 8 | G194: ○ | H194: 7 | J194: - | L194: 7 | M194: ● | N194: 11 | O194: 8 | P194: ○ | Q194: 4 | S194: - | U194: 4 | V194: ● | W194: 5 | Y194: -
A195: 82 | B195: =IF(データ２!B164="","",VLOOKUP(A195,データ２!$A$2:$B$216,2)) -> しらさぎ | F195: ＊ | I195: Ｋ | J195: - | K195: 8 | O195: Ｋ | P195: - | Q195: 10 | U195: Ｋ | V195: - | W195: 12 | AA195: =COUNTIF(C195:Z196,"○") -> 1 | AB195: =COUNTIF(C195:Z196,"●") -> 2 | AC195: =COUNTIF(C195:Z196,"△") -> 1 | AD195: =+AA195*3+AC195*1 -> 4 | AE195: =+E196+H196+K196+N196+Q196+T196+W196+Z196 -> 33 | AF195: =C196+F196+I196+L196+O196+R196+U196+X196+AA196 -> 40 | AG195: =+RANK(AD195,$AD$193:$AD$208,0)*100+RANK(AE195,$AE$193:$AE$208,1)*10+RANK(AF195,$AF$193:$AF$208,0) -> 552 | AH195: =+RANK(AG195,$AG$193:$AG$208,1) -> 5
C196: 7 | D196: ● | E196: 8 | J196: - | L196: 2 | M196: ● | N196: 11 | P196: - | R196: 12 | S196: △ | T196: 12 | V196: - | X196: 19 | Y196: ○ | Z196: 2
A197: 83 | B197: =IF(データ２!B166="","",VLOOKUP(A197,データ２!$A$2:$B$216,2)) -> オール麻布 | C197: Ｋ | D197: - | E197: 2 | F197: Ｋ | G197: - | H197: 8 | I197: ＊ | X197: Ｋ | Y197: - | Z197: 18 | AA197: =COUNTIF(C197:Z198,"○") -> 3 | AB197: =COUNTIF(C197:Z198,"●") -> 0 | AC197: =COUNTIF(C197:Z198,"△") -> 1 | AD197: =+AA197*3+AC197*1 -> 10 | AE197: =+E198+H198+K198+N198+Q198+T198+W198+Z198 -> 13 | AF197: =C198+F198+I198+L198+O198+R198+U198+X198+AA198 -> 35 | AG197: =+RANK(AD197,$AD$193:$AD$208,0)*100+RANK(AE197,$AE$193:$AE$208,1)*10+RANK(AF197,$AF$193:$AF$208,0) -> 223 | AH197: =+RANK(AG197,$AG$193:$AG$208,1) -> 2
D198: - | G198: - | L198: 6 | M198: △ | N198: 6 | O198: 14 | P198: ○ | Q198: 2 | R198: 9 | S198: ○ | T198: 1 | U198: 6 | V198: ○ | W198: 4 | Y198: -
A199: 84 | B199: =IF(データ２!B168="","",VLOOKUP(A199,データ２!$A$2:$B$216,2)) -> 用賀ベアーズ | L199: ＊ | R199: Ｋ | S199: - | T199: 20 | U199: Ｋ | V199: - | W199: 21 | AA199: =COUNTIF(C199:Z200,"○") -> 4 | AB199: =COUNTIF(C199:Z200,"●") -> 0 | AC199: =COUNTIF(C199:Z200,"△") -> 1 | AD199: =+AA199*3+AC199*1 -> 13 | AE199: =+E200+H200+K200+N200+Q200+T200+W200+Z200 -> 16 | AF199: =C200+F200+I200+L200+O200+R200+U200+X200+AA200 -> 63 | AG199: =+RANK(AD199,$AD$193:$AD$208,0)*100+RANK(AE199,$AE$193:$AE$208,1)*10+RANK(AF199,$AF$193:$AF$208,0) -> 131 | AH199: =+RANK(AG199,$AG$193:$AG$208,1) -> 1
C200: 11 | D200: ○ | E200: 7 | F200: 11 | G200: ○ | H200: 2 | I200: 6 | J200: △ | K200: 6 | O200: 18 | P200: ○ | Q200: 0 | S200: - | V200: - | X200: 17 | Y200: ○ | Z200: 1
... 48 more rows

Sheet データ１
A2: 作成日 | B2: 2022/2/26 | C2: 作成日 | D2: 2016/2/1 | E2: 作成日 | F2: 2016/2/1 | G2: 作成日 | H2: 2016/2/1 | I2: 作成日 | J2: 2016/2/1 | K2: 作成日 | L2: 2016/2/1 | M2: 作成日 | N2: 2016/2/1 | O2: 作成日 | P2: 2016/2/1 | Q2: 作成日 | R2: 2016/2/1 | S2: 作成日 | T2: 2016/2/1 | U2: 作成日 | V2: 2016/2/1 | W2: 作成日 | X2: 2016/2/1 | Y2: 作成日 | Z2: 2016/2/1 | AA2: 作成日 | AB2: 2016/2/1 | AC2: 作成日 | AD2: 2016/2/1 | AE2: 作成日 | AF2: 2016/2/1 | AG2: 作成日 | AH2: 2016/2/1 | AI2: 作成日 | AJ2: 2016/2/1 | AK2: 作成日 | AL2: 2016/2/1 | AM2: 作成日 | AN2: 2016/2/1 | AO2: 作成日 | AP2: 2016/2/1 | AQ2: 作成日 | AR2: 2016/2/1 | AS2: 作成日 | AT2: 2016/2/1 | AU2: 作成日 | AV2: 2016/2/1 | AW2: 作成日 | AX2: 2016/2/1 | AY2: 作成日 | AZ2: 2016/2/1 | BA2: 作成日 | BB2: 2016/2/1 | BC2: 作成日 | BD2: 2016/2/1 | BE2: 作成日 | BF2: 2016/2/1 | BG2: 作成日 | BH2: 2016/2/1 | BI2: 作成日 | BJ2: 2016/2/1 | BK2: 作成日 | BL2: 2016/2/1 | BM2: 作成日 | BN2: 2016/2/1 | BO2: 作成日 | BP2: 2016/2/1 | BQ2: 作成日 | BR2: 2016/2/1 | BS2: 作成日 | BT2: 2016/2/1 | BU2: 作成日 | BV2: 2016/2/1 | BW2: 作成日 | BX2: 2016/2/1 | BY2: 作成日 | BZ2: 2016/2/1 | CA2: 作成日 | CB2: 2016/2/1 | CC2: 作成日 | CD2: 2016/2/1 | CE2: 作成日 | CF2: 2016/2/1 | CG2: 作成日 | CH2: 2016/2/1 | CI2: 作成日 | CJ2: 2016/2/1 | CK2: 作成日 | CL2: 2016/2/1 | CM2: 作成日 | CN2: 2016/2/1 | CO2: 作成日 | CP2: 2016/2/1 | CQ2: 作成日 | CR2: 2016/2/1 | CS2: 作成日 | CT2: 2016/2/1 | CU2: 作成日 | CV2: 2016/2/1 | CW2: 作成日 | CX2: 2016/2/1 | CY2: 作成日 | CZ2: 2016/2/1 | DA2: 作成日 | DB2: 2016/2/1 | DC2: 作成日 | DD2: 2016/2/1 | DE2: 作成日 | DF2: 2016/2/1 | DG2: 作成日 | DH2: 2016/2/1 | DI2: 作成日 | DJ2: 2016/2/1 | DK2: 作成日 | DL2: 2016/2/1 | DM2: 作成日 | DN2: 2016/2/1 | DO2: 作成日 | DP2: 2016/2/1 | DQ2: 作成日 | DR2: 2016/2/1 | DS2: 作成日 | DT2: 2016/2/1 | DU2: 作成日 | DV2: 2016/2/1 | DW2: 作成日 | DX2: 2016/2/1 | DY2: 作成日 | DZ2: 2016/2/1 | EA2: 作成日 | EB2: 2016/2/1 | EC2: 作成日 | ED2: 2016/2/1 | EE2: 作成日 | EF2: 2016/2/1 | EG2: 作成日 | EH2: 2016/2/1 | EI2: 作成日 | EJ2: 2016/2/1 | EK2: 作成日 | EL2: 2016/2/1 | EM2: 作成日 | EN2: 2016/2/1 | EO2: 作成日 | EP2: 2016/2/1 | EQ2: 作成日 | ER2: 2016/2/1 | ES2: 作成日 | ET2: 2016/2/1 | EU2: 作成日 | EV2: 2016/2/1 | EW2: 作成日 | EX2: 2016/2/1 | EY2: 作成日 | EZ2: 2016/2/1 | FA2: 作成日 | FB2: 2016/2/1 | FC2: 作成日 | FD2: 2016/2/1 | FE2: 作成日 | FF2: 2016/2/1 | FG2: 作成日 | FH2: 2016/2/1 | FI2: 作成日 | FJ2: 2016/2/1 | FK2: 作成日 | FL2: 2016/2/1 | FM2: 作成日 | FN2: 2016/2/1 | FO2: 作成日 | FP2: 2016/2/1 | FQ2: 作成日 | FR2: 2016/2/1 | FS2: 作成日 | FT2: 2016/2/1 | FU2: 作成日 | FV2: 2016/2/1 | FW2: 作成日 | FX2: 2016/2/1 | FY2: 作成日 | FZ2: 2016/2/1 | GA2: 作成日 | GB2: 2016/2/1 | GC2: 作成日 | GD2: 2016/2/1 | GE2: 作成日 | GF2: 2016/2/1 | GG2: 作成日 | GH2: 2016/2/1 | GI2: 作成日 | GJ2: 2016/2/1 | GK2: 作成日 | GL2: 2016/2/1 | GM2: 作成日 | GN2: 2016/2/1 | GO2: 作成日 | GP2: 2016/2/1 | GQ2: 作成日 | GR2: 2016/2/1 | GS2: 作成日 | GT2: 2016/2/1 | GU2: 作成日 | GV2: 2016/2/1 | GW2: 作成日 | GX2: 2016/2/1 | GY2: 作成日 | GZ2: 2016/2/1 | HA2: 作成日 | HB2: 2016/2/1 | HC2: 作成日 | HD2: 2016/2/1 | HE2: 作成日 | HF2: 2016/2/1 | HG2: 作成日 | HH2: 2016/2/1 | HI2: 作成日 | HJ2: 2016/2/1 | HK2: 作成日 | HL2: 2016/2/1 | HM2: 作成日 | HN2: 2016/2/1 | HO2: 作成日 | HP2: 2016/2/1 | HQ2: 作成日 | HR2: 2016/2/1 | HS2: 作成日 | HT2: 2016/2/1 | HU2: 作成日 | HV2: 2016/2/1 | HW2: 作成日 | HX2: 2016/2/1 | HY2: 作成日 | HZ2: 2016/2/1 | IA2: 作成日 | IB2: 2016/2/1 | IC2: 作成日 | ID2: 2016/2/1 | IE2: 作成日 | IF2: 2016/2/1 | IG2: 作成日 | IH2: 2016/2/1 | II2: 作成日 | IJ2: 2016/2/1 | IK2: 作成日 | IL2: 2016/2/1 | IM2: 作成日 | IN2: 2016/2/1 | IO2: 作成日 | IP2: 2016/2/1 | IQ2: 作成日 | IR2: 2016/2/1 | IS2: 作成日 | IT2: 2016/2/1 | IU2: 作成日 | IV2: 2016/2/1
A4: 年度 | B4: 2022年 | C4: 年度 | D4: ２０１６年 | E4: 年度 | F4: ２０１６年 | G4: 年度 | H4: ２０１６年 | I4: 年度 | J4: ２０１６年 | K4: 年度 | L4: ２０１６年 | M4: 年度 | N4: ２０１６年 | O4: 年度 | P4: ２０１６年 | Q4: 年度 | R4: ２０１６年 | S4: 年度 | T4: ２０１６年 | U4: 年度 | V4: ２０１６年 | W4: 年度 | X4: ２０１６年 | Y4: 年度 | Z4: ２０１６年 | AA4: 年度 | AB4: ２０１６年 | AC4: 年度 | AD4: ２０１６年 | AE4: 年度 | AF4: ２０１６年 | AG4: 年度 | AH4: ２０１６年 | AI4: 年度 | AJ4: ２０１６年 | AK4: 年度 | AL4: ２０１６年 | AM4: 年度 | AN4: ２０１６年 | AO4: 年度 | AP4: ２０１６年 | AQ4: 年度 | AR4: ２０１６年 | AS4: 年度 | AT4: ２０１６年 | AU4: 年度 | AV4: ２０１６年 | AW4: 年度 | AX4: ２０１６年 | AY4: 年度 | AZ4: ２０１６年 | BA4: 年度 | BB4: ２０１６年 | BC4: 年度 | BD4: ２０１６年 | BE4: 年度 | BF4: ２０１６年 | BG4: 年度 | BH4: ２０１６年 | BI4: 年度 | BJ4: ２０１６年 | BK4: 年度 | BL4: ２０１６年 | BM4: 年度 | BN4: ２０１６年 | BO4: 年度 | BP4: ２０１６年 | BQ4: 年度 | BR4: ２０１６年 | BS4: 年度 | BT4: ２０１６年 | BU4: 年度 | BV4: ２０１６年 | BW4: 年度 | BX4: ２０１６年 | BY4: 年度 | BZ4: ２０１６年 | CA4: 年度 | CB4: ２０１６年 | CC4: 年度 | CD4: ２０１６年 | CE4: 年度 | CF4: ２０１６年 | CG4: 年度 | CH4: ２０１６年 | CI4: 年度 | CJ4: ２０１６年 | CK4: 年度 | CL4: ２０１６年 | CM4: 年度 | CN4: ２０１６年 | CO4: 年度 | CP4: ２０１６年 | CQ4: 年度 | CR4: ２０１６年 | CS4: 年度 | CT4: ２０１６年 | CU4: 年度 | CV4: ２０１６年 | CW4: 年度 | CX4: ２０１６年 | CY4: 年度 | CZ4: ２０１６年 | DA4: 年度 | DB4: ２０１６年 | DC4: 年度 | DD4: ２０１６年 | DE4: 年度 | DF4: ２０１６年 | DG4: 年度 | DH4: ２０１６年 | DI4: 年度 | DJ4: ２０１６年 | DK4: 年度 | DL4: ２０１６年 | DM4: 年度 | DN4: ２０１６年 | DO4: 年度 | DP4: ２０１６年 | DQ4: 年度 | DR4: ２０１６年 | DS4: 年度 | DT4: ２０１６年 | DU4: 年度 | DV4: ２０１６年 | DW4: 年度 | DX4: ２０１６年 | DY4: 年度 | DZ4: ２０１６年 | EA4: 年度 | EB4: ２０１６年 | EC4: 年度 | ED4: ２０１６年 | EE4: 年度 | EF4: ２０１６年 | EG4: 年度 | EH4: ２０１６年 | EI4: 年度 | EJ4: ２０１６年 | EK4: 年度 | EL4: ２０１６年 | EM4: 年度 | EN4: ２０１６年 | EO4: 年度 | EP4: ２０１６年 | EQ4: 年度 | ER4: ２０１６年 | ES4: 年度 | ET4: ２０１６年 | EU4: 年度 | EV4: ２０１６年 | EW4: 年度 | EX4: ２０１６年 | EY4: 年度 | EZ4: ２０１６年 | FA4: 年度 | FB4: ２０１６年 | FC4: 年度 | FD4: ２０１６年 | FE4: 年度 | FF4: ２０１６年 | FG4: 年度 | FH4: ２０１６年 | FI4: 年度 | FJ4: ２０１６年 | FK4: 年度 | FL4: ２０１６年 | FM4: 年度 | FN4: ２０１６年 | FO4: 年度 | FP4: ２０１６年 | FQ4: 年度 | FR4: ２０１６年 | FS4: 年度 | FT4: ２０１６年 | FU4: 年度 | FV4: ２０１６年 | FW4: 年度 | FX4: ２０１６年 | FY4: 年度 | FZ4: ２０１６年 | GA4: 年度 | GB4: ２０１６年 | GC4: 年度 | GD4: ２０１６年 | GE4: 年度 | GF4: ２０１６年 | GG4: 年度 | GH4: ２０１６年 | GI4: 年度 | GJ4: ２０１６年 | GK4: 年度 | GL4: ２０１６年 | GM4: 年度 | GN4: ２０１６年 | GO4: 年度 | GP4: ２０１６年 | GQ4: 年度 | GR4: ２０１６年 | GS4: 年度 | GT4: ２０１６年 | GU4: 年度 | GV4: ２０１６年 | GW4: 年度 | GX4: ２０１６年 | GY4: 年度 | GZ4: ２０１６年 | HA4: 年度 | HB4: ２０１６年 | HC4: 年度 | HD4: ２０１６年 | HE4: 年度 | HF4: ２０１６年 | HG4: 年度 | HH4: ２０１６年 | HI4: 年度 | HJ4: ２０１６年 | HK4: 年度 | HL4: ２０１６年 | HM4: 年度 | HN4: ２０１６年 | HO4: 年度 | HP4: ２０１６年 | HQ4: 年度 | HR4: ２０１６年 | HS4: 年度 | HT4: ２０１６年 | HU4: 年度 | HV4: ２０１６年 | HW4: 年度 | HX4: ２０１６年 | HY4: 年度 | HZ4: ２０１６年 | IA4: 年度 | IB4: ２０１６年 | IC4: 年度 | ID4: ２０１６年 | IE4: 年度 | IF4: ２０１６年 | IG4: 年度 | IH4: ２０１６年 | II4: 年度 | IJ4: ２０１６年 | IK4: 年度 | IL4: ２０１６年 | IM4: 年度 | IN4: ２０１６年 | IO4: 年度 | IP4: ２０１６年 | IQ4: 年度 | IR4: ２０１６年 | IS4: 年度 | IT4: ２０１６年 | IU4: 年度 | IV4: ２０１６年
A6: 表題１ | B6: スーパーリ－グ 第１６回大会 Aブロック ２０２２ | C6: 表題１ | D6: スーパーリ－グ 第１０回大会 Aブロック ２０１６ | E6: 表題１ | F6: スーパーリ－グ 第１０回大会 Aブロック ２０１６ | G6: 表題１ | H6: スーパーリ－グ 第１０回大会 Aブロック ２０１６ | I6: 表題１ | J6: スーパーリ－グ 第１０回大会 Aブロック ２０１６ | K6: 表題１ | L6: スーパーリ－グ 第１０回大会 Aブロック ２０１６ | M6: 表題１ | N6: スーパーリ－グ 第１０回大会 Aブロック ２０１６ | O6: 表題１ | P6: スーパーリ－グ 第１０回大会 Aブロック ２０１６ | Q6: 表題１ | R6: スーパーリ－グ 第１０回大会 Aブロック ２０１６ | S6: 表題１ | T6: スーパーリ－グ 第１０回大会 Aブロック ２０１６ | U6: 表題１ | V6: スーパーリ－グ 第１０回大会 Aブロック ２０１６ | W6: 表題１ | X6: スーパーリ－グ 第１０回大会 Aブロック ２０１６ | Y6: 表題１ | Z6: スーパーリ－グ 第１０回大会 Aブロック ２０１６ | AA6: 表題１ | AB6: スーパーリ－グ 第１０回大会 Aブロック ２０１６ | AC6: 表題１ | AD6: スーパーリ－グ 第１０回大会 Aブロック ２０１６ | AE6: 表題１ | AF6: スーパーリ－グ 第１０回大会 Aブロック ２０１６ | AG6: 表題１ | AH6: スーパーリ－グ 第１０回大会 Aブロック ２０１６ | AI6: 表題１ | AJ6: スーパーリ－グ 第１０回大会 Aブロック ２０１６ | AK6: 表題１ | AL6: スーパーリ－グ 第１０回大会 Aブロック ２０１６ | AM6: 表題１ | AN6: スーパーリ－グ 第１０回大会 Aブロック ２０１６ | AO6: 表題１ | AP6: スーパーリ－グ 第１０回大会 Aブロック ２０１６ | AQ6: 表題１ | AR6: スーパーリ－グ 第１０回大会 Aブロック ２０１６ | AS6: 表題１ | AT6: スーパーリ－グ 第１０回大会 Aブロック ２０１６ | AU6: 表題１ | AV6: スーパーリ－グ 第１０回大会 Aブロック ２０１６ | AW6: 表題１ | AX6: スーパーリ－グ 第１０回大会 Aブロック ２０１６ | AY6: 表題１ | AZ6: スーパーリ－グ 第１０回大会 Aブロック ２０１６ | BA6: 表題１ | BB6: スーパーリ－グ 第１０回大会 Aブロック ２０１６ | BC6: 表題１ | BD6: スーパーリ－グ 第１０回大会 Aブロック ２０１６ | BE6: 表題１ | BF6: スーパーリ－グ 第１０回大会 Aブロック ２０１６ | BG6: 表題１ | BH6: スーパーリ－グ 第１０回大会 Aブロック ２０１６ | BI6: 表題１ | BJ6: スーパーリ－グ 第１０回大会 Aブロック ２０１６ | BK6: 表題１ | BL6: スーパーリ－グ 第１０回大会 Aブロック ２０１６ | BM6: 表題１ | BN6: スーパーリ－グ 第１０回大会 Aブロック ２０１６ | BO6: 表題１ | BP6: スーパーリ－グ 第１０回大会 Aブロック ２０１６ | BQ6: 表題１ | BR6: スーパーリ－グ 第１０回大会 Aブロック ２０１６ | BS6: 表題１ | BT6: スーパーリ－グ 第１０回大会 Aブロック ２０１６ | BU6: 表題１ | BV6: スーパーリ－グ 第１０回大会 Aブロック ２０１６ | BW6: 表題１ | BX6: スーパーリ－グ 第１０回大会 Aブロック ２０１６ | BY6: 表題１ | BZ6: スーパーリ－グ 第１０回大会 Aブロック ２０１６ | CA6: 表題１ | CB6: スーパーリ－グ 第１０回大会 Aブロック ２０１６ | CC6: 表題１ | CD6: スーパーリ－グ 第１０回大会 Aブロック ２０１６ | CE6: 表題１ | CF6: スーパーリ－グ 第１０回大会 Aブロック ２０１６ | CG6: 表題１ | CH6: スーパーリ－グ 第１０回大会 Aブロック ２０１６ | CI6: 表題１ | CJ6: スーパーリ－グ 第１０回大会 Aブロック ２０１６ | CK6: 表題１ | CL6: スーパーリ－グ 第１０回大会 Aブロック ２０１６ | CM6: 表題１ | CN6: スーパーリ－グ 第１０回大会 Aブロック ２０１６ | CO6: 表題１ | CP6: スーパーリ－グ 第１０回大会 Aブロック ２０１６ | CQ6: 表題１ | CR6: スーパーリ－グ 第１０回大会 Aブロック ２０１６ | CS6: 表題１ | CT6: スーパーリ－グ 第１０回大会 Aブロック ２０１６ | CU6: 表題１ | CV6: スーパーリ－グ 第１０回大会 Aブロック ２０１６ | CW6: 表題１ | CX6: スーパーリ－グ 第１０回大会 Aブロック ２０１６ | CY6: 表題１ | CZ6: スーパーリ－グ 第１０回大会 Aブロック ２０１６ | DA6: 表題１ | DB6: スーパーリ－グ 第１０回大会 Aブロック ２０１６ | DC6: 表題１ | DD6: スーパーリ－グ 第１０回大会 Aブロック ２０１６ | DE6: 表題１ | DF6: スーパーリ－グ 第１０回大会 Aブロック ２０１６ | DG6: 表題１ | DH6: スーパーリ－グ 第１０回大会 Aブロック ２０１６ | DI6: 表題１ | DJ6: スーパーリ－グ 第１０回大会 Aブロック ２０１６ | DK6: 表題１ | DL6: スーパーリ－グ 第１０回大会 Aブロック ２０１６ | DM6: 表題１ | DN6: スーパーリ－グ 第１０回大会 Aブロック ２０１６ | DO6: 表題１ | DP6: スーパーリ－グ 第１０回大会 Aブロック ２０１６ | DQ6: 表題１ | DR6: スーパーリ－グ 第１０回大会 Aブロック ２０１６ | DS6: 表題１ | DT6: スーパーリ－グ 第１０回大会 Aブロック ２０１６ | DU6: 表題１ | DV6: スーパーリ－グ 第１０回大会 Aブロック ２０１６ | DW6: 表題１ | DX6: スーパーリ－グ 第１０回大会 Aブロック ２０１６ | DY6: 表題１ | DZ6: スーパーリ－グ 第１０回大会 Aブロック ２０１６ | EA6: 表題１ | EB6: スーパーリ－グ 第１０回大会 Aブロック ２０１６ | EC6: 表題１ | ED6: スーパーリ－グ 第１０回大会 Aブロック ２０１６ | EE6: 表題１ | EF6: スーパーリ－グ 第１０回大会 Aブロック ２０１６ | EG6: 表題１ | EH6: スーパーリ－グ 第１０回大会 Aブロック ２０１６ | EI6: 表題１ | EJ6: スーパーリ－グ 第１０回大会 Aブロック ２０１６ | EK6: 表題１ | EL6: スーパーリ－グ 第１０回大会 Aブロック ２０１６ | EM6: 表題１ | EN6: スーパーリ－グ 第１０回大会 Aブロック ２０１６ | EO6: 表題１ | EP6: スーパーリ－グ 第１０回大会 Aブロック ２０１６ | EQ6: 表題１ | ER6: スーパーリ－グ 第１０回大会 Aブロック ２０１６ | ES6: 表題１ | ET6: スーパーリ－グ 第１０回大会 Aブロック ２０１６ | EU6: 表題１ | EV6: スーパーリ－グ 第１０回大会 Aブロック ２０１６ | EW6: 表題１ | EX6: スーパーリ－グ 第１０回大会 Aブロック ２０１６ | EY6: 表題１ | EZ6: スーパーリ－グ 第１０回大会 Aブロック ２０１６ | FA6: 表題１ | FB6: スーパーリ－グ 第１０回大会 Aブロック ２０１６ | FC6: 表題１ | FD6: スーパーリ－グ 第１０回大会 Aブロック ２０１６ | FE6: 表題１ | FF6: スーパーリ－グ 第１０回大会 Aブロック ２０１６ | FG6: 表題１ | FH6: スーパーリ－グ 第１０回大会 Aブロック ２０１６ | FI6: 表題１ | FJ6: スーパーリ－グ 第１０回大会 Aブロック ２０１６ | FK6: 表題１ | FL6: スーパーリ－グ 第１０回大会 Aブロック ２０１６ | FM6: 表題１ | FN6: スーパーリ－グ 第１０回大会 Aブロック ２０１６ | FO6: 表題１ | FP6: スーパーリ－グ 第１０回大会 Aブロック ２０１６ | FQ6: 表題１ | FR6: スーパーリ－グ 第１０回大会 Aブロック ２０１６ | FS6: 表題１ | FT6: スーパーリ－グ 第１０回大会 Aブロック ２０１６ | FU6: 表題１ | FV6: スーパーリ－グ 第１０回大会 Aブロック ２０１６ | FW6: 表題１ | FX6: スーパーリ－グ 第１０回大会 Aブロック ２０１６ | FY6: 表題１ | FZ6: スーパーリ－グ 第１０回大会 Aブロック ２０１６ | GA6: 表題１ | GB6: スーパーリ－グ 第１０回大会 Aブロック ２０１６ | GC6: 表題１ | GD6: スーパーリ－グ 第１０回大会 Aブロック ２０１６ | GE6: 表題１ | GF6: スーパーリ－グ 第１０回大会 Aブロック ２０１６ | GG6: 表題１ | GH6: スーパーリ－グ 第１０回大会 Aブロック ２０１６ | GI6: 表題１ | GJ6: スーパーリ－グ 第１０回大会 Aブロック ２０１６ | GK6: 表題１ | GL6: スーパーリ－グ 第１０回大会 Aブロック ２０１６ | GM6: 表題１ | GN6: スーパーリ－グ 第１０回大会 Aブロック ２０１６ | GO6: 表題１ | GP6: スーパーリ－グ 第１０回大会 Aブロック ２０１６ | GQ6: 表題１ | GR6: スーパーリ－グ 第１０回大会 Aブロック ２０１６ | GS6: 表題１ | GT6: スーパーリ－グ 第１０回大会 Aブロック ２０１６ | GU6: 表題１ | GV6: スーパーリ－グ 第１０回大会 Aブロック ２０１６ | GW6: 表題１ | GX6: スーパーリ－グ 第１０回大会 Aブロック ２０１６ | GY6: 表題１ | GZ6: スーパーリ－グ 第１０回大会 Aブロック ２０１６ | HA6: 表題１ | HB6: スーパーリ－グ 第１０回大会 Aブロック ２０１６ | HC6: 表題１ | HD6: スーパーリ－グ 第１０回大会 Aブロック ２０１６ | HE6: 表題１ | HF6: スーパーリ－グ 第１０回大会 Aブロック ２０１６ | HG6: 表題１ | HH6: スーパーリ－グ 第１０回大会 Aブロック ２０１６ | HI6: 表題１ | HJ6: スーパーリ－グ 第１０回大会 Aブロック ２０１６ | HK6: 表題１ | HL6: スーパーリ－グ 第１０回大会 Aブロック ２０１６ | HM6: 表題１ | HN6: スーパーリ－グ 第１０回大会 Aブロック ２０１６ | HO6: 表題１ | HP6: スーパーリ－グ 第１０回大会 Aブロック ２０１６ | HQ6: 表題１ | HR6: スーパーリ－グ 第１０回大会 Aブロック ２０１６ | HS6: 表題１ | HT6: スーパーリ－グ 第１０回大会 Aブロック ２０１６ | HU6: 表題１ | HV6: スーパーリ－グ 第１０回大会 Aブロック ２０１６ | HW6: 表題１ | HX6: スーパーリ－グ 第１０回大会 Aブロック ２０１６ | HY6: 表題１ | HZ6: スーパーリ－グ 第１０回大会 Aブロック ２０１６ | IA6: 表題１ | IB6: スーパーリ－グ 第１０回大会 Aブロック ２０１６ | IC6: 表題１ | ID6: スーパーリ－グ 第１０回大会 Aブロック ２０１６ | IE6: 表題１ | IF6: スーパーリ－グ 第１０回大会 Aブロック ２０１６ | IG6: 表題１ | IH6: スーパーリ－グ 第１０回大会 Aブロック ２０１６ | II6: 表題１ | IJ6: スーパーリ－グ 第１０回大会 Aブロック ２０１６ | IK6: 表題１ | IL6: スーパーリ－グ 第１０回大会 Aブロック ２０１６ | IM6: 表題１ | IN6: スーパーリ－グ 第１０回大会 Aブロック ２０１６ | IO6: 表題１ | IP6: スーパーリ－グ 第１０回大会 Aブロック ２０１６ | IQ6: 表題１ | IR6: スーパーリ－グ 第１０回大会 Aブロック ２０１６ | IS6: 表題１ | IT6: スーパーリ－グ 第１０回大会 Aブロック ２０１６ | IU6: 表題１ | IV6: スーパーリ－グ 第１０回大会 Aブロック ２０１６
A8: 表題２ | B8: スーパーリ－グ 第１６回大会 Ｂブロック ２０２２ | C8: 表題２ | D8: スーパーリ－グ 第１０回大会 Ｂブロック ２０１６ | E8: 表題２ | F8: スーパーリ－グ 第１０回大会 Ｂブロック ２０１６ | G8: 表題２ | H8: スーパーリ－グ 第１０回大会 Ｂブロック ２０１６ | I8: 表題２ | J8: スーパーリ－グ 第１０回大会 Ｂブロック ２０１６ | K8: 表題２ | L8: スーパーリ－グ 第１０回大会 Ｂブロック ２０１６ | M8: 表題２ | N8: スーパーリ－グ 第１０回大会 Ｂブロック ２０１６ | O8: 表題２ | P8: スーパーリ－グ 第１０回大会 Ｂブロック ２０１６ | Q8: 表題２ | R8: スーパーリ－グ 第１０回大会 Ｂブロック ２０１６ | S8: 表題２ | T8: スーパーリ－グ 第１０回大会 Ｂブロック ２０１６ | U8: 表題２ | V8: スーパーリ－グ 第１０回大会 Ｂブロック ２０１６ | W8: 表題２ | X8: スーパーリ－グ 第１０回大会 Ｂブロック ２０１６ | Y8: 表題２ | Z8: スーパーリ－グ 第１０回大会 Ｂブロック ２０１６ | AA8: 表題２ | AB8: スーパーリ－グ 第１０回大会 Ｂブロック ２０１６ | AC8: 表題２ | AD8: スーパーリ－グ 第１０回大会 Ｂブロック ２０１６ | AE8: 表題２ | AF8: スーパーリ－グ 第１０回大会 Ｂブロック ２０１６ | AG8: 表題２ | AH8: スーパーリ－グ 第１０回大会 Ｂブロック ２０１６ | AI8: 表題２ | AJ8: スーパーリ－グ 第１０回大会 Ｂブロック ２０１６ | AK8: 表題２ | AL8: スーパーリ－グ 第１０回大会 Ｂブロック ２０１６ | AM8: 表題２ | AN8: スーパーリ－グ 第１０回大会 Ｂブロック ２０１６ | AO8: 表題２ | AP8: スーパーリ－グ 第１０回大会 Ｂブロック ２０１６ | AQ8: 表題２ | AR8: スーパーリ－グ 第１０回大会 Ｂブロック ２０１６ | AS8: 表題２ | AT8: スーパーリ－グ 第１０回大会 Ｂブロック ２０１６ | AU8: 表題２ | AV8: スーパーリ－グ 第１０回大会 Ｂブロック ２０１６ | AW8: 表題２ | AX8: スーパーリ－グ 第１０回大会 Ｂブロック ２０１６ | AY8: 表題２ | AZ8: スーパーリ－グ 第１０回大会 Ｂブロック ２０１６ | BA8: 表題２ | BB8: スーパーリ－グ 第１０回大会 Ｂブロック ２０１６ | BC8: 表題２ | BD8: スーパーリ－グ 第１０回大会 Ｂブロック ２０１６ | BE8: 表題２ | BF8: スーパーリ－グ 第１０回大会 Ｂブロック ２０１６ | BG8: 表題２ | BH8: スーパーリ－グ 第１０回大会 Ｂブロック ２０１６ | BI8: 表題２ | BJ8: スーパーリ－グ 第１０回大会 Ｂブロック ２０１６ | BK8: 表題２ | BL8: スーパーリ－グ 第１０回大会 Ｂブロック ２０１６ | BM8: 表題２ | BN8: スーパーリ－グ 第１０回大会 Ｂブロック ２０１６ | BO8: 表題２ | BP8: スーパーリ－グ 第１０回大会 Ｂブロック ２０１６ | BQ8: 表題２ | BR8: スーパーリ－グ 第１０回大会 Ｂブロック ２０１６ | BS8: 表題２ | BT8: スーパーリ－グ 第１０回大会 Ｂブロック ２０１６ | BU8: 表題２ | BV8: スーパーリ－グ 第１０回大会 Ｂブロック ２０１６ | BW8: 表題２ | BX8: スーパーリ－グ 第１０回大会 Ｂブロック ２０１６ | BY8: 表題２ | BZ8: スーパーリ－グ 第１０回大会 Ｂブロック ２０１６ | CA8: 表題２ | CB8: スーパーリ－グ 第１０回大会 Ｂブロック ２０１６ | CC8: 表題２ | CD8: スーパーリ－グ 第１０回大会 Ｂブロック ２０１６ | CE8: 表題２ | CF8: スーパーリ－グ 第１０回大会 Ｂブロック ２０１６ | CG8: 表題２ | CH8: スーパーリ－グ 第１０回大会 Ｂブロック ２０１６ | CI8: 表題２ | CJ8: スーパーリ－グ 第１０回大会 Ｂブロック ２０１６ | CK8: 表題２ | CL8: スーパーリ－グ 第１０回大会 Ｂブロック ２０１６ | CM8: 表題２ | CN8: スーパーリ－グ 第１０回大会 Ｂブロック ２０１６ | CO8: 表題２ | CP8: スーパーリ－グ 第１０回大会 Ｂブロック ２０１６ | CQ8: 表題２ | CR8: スーパーリ－グ 第１０回大会 Ｂブロック ２０１６ | CS8: 表題２ | CT8: スーパーリ－グ 第１０回大会 Ｂブロック ２０１６ | CU8: 表題２ | CV8: スーパーリ－グ 第１０回大会 Ｂブロック ２０１６ | CW8: 表題２ | CX8: スーパーリ－グ 第１０回大会 Ｂブロック ２０１６ | CY8: 表題２ | CZ8: スーパーリ－グ 第１０回大会 Ｂブロック ２０１６ | DA8: 表題２ | DB8: スーパーリ－グ 第１０回大会 Ｂブロック ２０１６ | DC8: 表題２ | DD8: スーパーリ－グ 第１０回大会 Ｂブロック ２０１６ | DE8: 表題２ | DF8: スーパーリ－グ 第１０回大会 Ｂブロック ２０１６ | DG8: 表題２ | DH8: スーパーリ－グ 第１０回大会 Ｂブロック ２０１６ | DI8: 表題２ | DJ8: スーパーリ－グ 第１０回大会 Ｂブロック ２０１６ | DK8: 表題２ | DL8: スーパーリ－グ 第１０回大会 Ｂブロック ２０１６ | DM8: 表題２ | DN8: スーパーリ－グ 第１０回大会 Ｂブロック ２０１６ | DO8: 表題２ | DP8: スーパーリ－グ 第１０回大会 Ｂブロック ２０１６ | DQ8: 表題２ | DR8: スーパーリ－グ 第１０回大会 Ｂブロック ２０１６ | DS8: 表題２ | DT8: スーパーリ－グ 第１０回大会 Ｂブロック ２０１６ | DU8: 表題２ | DV8: スーパーリ－グ 第１０回大会 Ｂブロック ２０１６ | DW8: 表題２ | DX8: スーパーリ－グ 第１０回大会 Ｂブロック ２０１６ | DY8: 表題２ | DZ8: スーパーリ－グ 第１０回大会 Ｂブロック ２０１６ | EA8: 表題２ | EB8: スーパーリ－グ 第１０回大会 Ｂブロック ２０１６ | EC8: 表題２ | ED8: スーパーリ－グ 第１０回大会 Ｂブロック ２０１６ | EE8: 表題２ | EF8: スーパーリ－グ 第１０回大会 Ｂブロック ２０１６ | EG8: 表題２ | EH8: スーパーリ－グ 第１０回大会 Ｂブロック ２０１６ | EI8: 表題２ | EJ8: スーパーリ－グ 第１０回大会 Ｂブロック ２０１６ | EK8: 表題２ | EL8: スーパーリ－グ 第１０回大会 Ｂブロック ２０１６ | EM8: 表題２ | EN8: スーパーリ－グ 第１０回大会 Ｂブロック ２０１６ | EO8: 表題２ | EP8: スーパーリ－グ 第１０回大会 Ｂブロック ２０１６ | EQ8: 表題２ | ER8: スーパーリ－グ 第１０回大会 Ｂブロック ２０１６ | ES8: 表題２ | ET8: スーパーリ－グ 第１０回大会 Ｂブロック ２０１６ | EU8: 表題２ | EV8: スーパーリ－グ 第１０回大会 Ｂブロック ２０１６ | EW8: 表題２ | EX8: スーパーリ－グ 第１０回大会 Ｂブロック ２０１６ | EY8: 表題２ | EZ8: スーパーリ－グ 第１０回大会 Ｂブロック ２０１６ | FA8: 表題２ | FB8: スーパーリ－グ 第１０回大会 Ｂブロック ２０１６ | FC8: 表題２ | FD8: スーパーリ－グ 第１０回大会 Ｂブロック ２０１６ | FE8: 表題２ | FF8: スーパーリ－グ 第１０回大会 Ｂブロック ２０１６ | FG8: 表題２ | FH8: スーパーリ－グ 第１０回大会 Ｂブロック ２０１６ | FI8: 表題２ | FJ8: スーパーリ－グ 第１０回大会 Ｂブロック ２０１６ | FK8: 表題２ | FL8: スーパーリ－グ 第１０回大会 Ｂブロック ２０１６ | FM8: 表題２ | FN8: スーパーリ－グ 第１０回大会 Ｂブロック ２０１６ | FO8: 表題２ | FP8: スーパーリ－グ 第１０回大会 Ｂブロック ２０１６ | FQ8: 表題２ | FR8: スーパーリ－グ 第１０回大会 Ｂブロック ２０１６ | FS8: 表題２ | FT8: スーパーリ－グ 第１０回大会 Ｂブロック ２０１６ | FU8: 表題２ | FV8: スーパーリ－グ 第１０回大会 Ｂブロック ２０１６ | FW8: 表題２ | FX8: スーパーリ－グ 第１０回大会 Ｂブロック ２０１６ | FY8: 表題２ | FZ8: スーパーリ－グ 第１０回大会 Ｂブロック ２０１６ | GA8: 表題２ | GB8: スーパーリ－グ 第１０回大会 Ｂブロック ２０１６ | GC8: 表題２ | GD8: スーパーリ－グ 第１０回大会 Ｂブロック ２０１６ | GE8: 表題２ | GF8: スーパーリ－グ 第１０回大会 Ｂブロック ２０１６ | GG8: 表題２ | GH8: スーパーリ－グ 第１０回大会 Ｂブロック ２０１６ | GI8: 表題２ | GJ8: スーパーリ－グ 第１０回大会 Ｂブロック ２０１６ | GK8: 表題２ | GL8: スーパーリ－グ 第１０回大会 Ｂブロック ２０１６ | GM8: 表題２ | GN8: スーパーリ－グ 第１０回大会 Ｂブロック ２０１６ | GO8: 表題２ | GP8: スーパーリ－グ 第１０回大会 Ｂブロック ２０１６ | GQ8: 表題２ | GR8: スーパーリ－グ 第１０回大会 Ｂブロック ２０１６ | GS8: 表題２ | GT8: スーパーリ－グ 第１０回大会 Ｂブロック ２０１６ | GU8: 表題２ | GV8: スーパーリ－グ 第１０回大会 Ｂブロック ２０１６ | GW8: 表題２ | GX8: スーパーリ－グ 第１０回大会 Ｂブロック ２０１６ | GY8: 表題２ | GZ8: スーパーリ－グ 第１０回大会 Ｂブロック ２０１６ | HA8: 表題２ | HB8: スーパーリ－グ 第１０回大会 Ｂブロック ２０１６ | HC8: 表題２ | HD8: スーパーリ－グ 第１０回大会 Ｂブロック ２０１６ | HE8: 表題２ | HF8: スーパーリ－グ 第１０回大会 Ｂブロック ２０１６ | HG8: 表題２ | HH8: スーパーリ－グ 第１０回大会 Ｂブロック ２０１６ | HI8: 表題２ | HJ8: スーパーリ－グ 第１０回大会 Ｂブロック ２０１６ | HK8: 表題２ | HL8: スーパーリ－グ 第１０回大会 Ｂブロック ２０１６ | HM8: 表題２ | HN8: スーパーリ－グ 第１０回大会 Ｂブロック ２０１６ | HO8: 表題２ | HP8: スーパーリ－グ 第１０回大会 Ｂブロック ２０１６ | HQ8: 表題２ | HR8: スーパーリ－グ 第１０回大会 Ｂブロック ２０１６ | HS8: 表題２ | HT8: スーパーリ－グ 第１０回大会 Ｂブロック ２０１６ | HU8: 表題２ | HV8: スーパーリ－グ 第１０回大会 Ｂブロック ２０１６ | HW8: 表題２ | HX8: スーパーリ－グ 第１０回大会 Ｂブロック ２０１６ | HY8: 表題２ | HZ8: スーパーリ－グ 第１０回大会 Ｂブロック ２０１６ | IA8: 表題２ | IB8: スーパーリ－グ 第１０回大会 Ｂブロック ２０１６ | IC8: 表題２ | ID8: スーパーリ－グ 第１０回大会 Ｂブロック ２０１６ | IE8: 表題２ | IF8: スーパーリ－グ 第１０回大会 Ｂブロック ２０１６ | IG8: 表題２ | IH8: スーパーリ－グ 第１０回大会 Ｂブロック ２０１６ | II8: 表題２ | IJ8: スーパーリ－グ 第１０回大会 Ｂブロック ２０１６ | IK8: 表題２ | IL8: スーパーリ－グ 第１０回大会 Ｂブロック ２０１６ | IM8: 表題２ | IN8: スーパーリ－グ 第１０回大会 Ｂブロック ２０１６ | IO8: 表題２ | IP8: スーパーリ－グ 第１０回大会 Ｂブロック ２０１６ | IQ8: 表題２ | IR8: スーパーリ－グ 第１０回大会 Ｂブロック ２０１６ | IS8: 表題２ | IT8: スーパーリ－グ 第１０回大会 Ｂブロック ２０１６ | IU8: 表題２ | IV8: スーパーリ－グ 第１０回大会 Ｂブロック ２０１６
A10: 表題３ | B10: スーパーリ－グ 第１６回大会 Ｃブロック ２０２２ | C10: 表題３ | D10: スーパーリ－グ 第１０回大会 Ｃブロック ２０１６ | E10: 表題３ | F10: スーパーリ－グ 第１０回大会 Ｃブロック ２０１６ | G10: 表題３ | H10: スーパーリ－グ 第１０回大会 Ｃブロック ２０１６ | I10: 表題３ | J10: スーパーリ－グ 第１０回大会 Ｃブロック ２０１６ | K10: 表題３ | L10: スーパーリ－グ 第１０回大会 Ｃブロック ２０１６ | M10: 表題３ | N10: スーパーリ－グ 第１０回大会 Ｃブロック ２０１６ | O10: 表題３ | P10: スーパーリ－グ 第１０回大会 Ｃブロック ２０１６ | Q10: 表題３ | R10: スーパーリ－グ 第１０回大会 Ｃブロック ２０１６ | S10: 表題３ | T10: スーパーリ－グ 第１０回大会 Ｃブロック ２０１６ | U10: 表題３ | V10: スーパーリ－グ 第１０回大会 Ｃブロック ２０１６ | W10: 表題３ | X10: スーパーリ－グ 第１０回大会 Ｃブロック ２０１６ | Y10: 表題３ | Z10: スーパーリ－グ 第１０回大会 Ｃブロック ２０１６ | AA10: 表題３ | AB10: スーパーリ－グ 第１０回大会 Ｃブロック ２０１６ | AC10: 表題３ | AD10: スーパーリ－グ 第１０回大会 Ｃブロック ２０１６ | AE10: 表題３ | AF10: スーパーリ－グ 第１０回大会 Ｃブロック ２０１６ | AG10: 表題３ | AH10: スーパーリ－グ 第１０回大会 Ｃブロック ２０１６ | AI10: 表題３ | AJ10: スーパーリ－グ 第１０回大会 Ｃブロック ２０１６ | AK10: 表題３ | AL10: スーパーリ－グ 第１０回大会 Ｃブロック ２０１６ | AM10: 表題３ | AN10: スーパーリ－グ 第１０回大会 Ｃブロック ２０１６ | AO10: 表題３ | AP10: スーパーリ－グ 第１０回大会 Ｃブロック ２０１６ | AQ10: 表題３ | AR10: スーパーリ－グ 第１０回大会 Ｃブロック ２０１６ | AS10: 表題３ | AT10: スーパーリ－グ 第１０回大会 Ｃブロック ２０１６ | AU10: 表題３ | AV10: スーパーリ－グ 第１０回大会 Ｃブロック ２０１６ | AW10: 表題３ | AX10: スーパーリ－グ 第１０回大会 Ｃブロック ２０１６ | AY10: 表題３ | AZ10: スーパーリ－グ 第１０回大会 Ｃブロック ２０１６ | BA10: 表題３ | BB10: スーパーリ－グ 第１０回大会 Ｃブロック ２０１６ | BC10: 表題３ | BD10: スーパーリ－グ 第１０回大会 Ｃブロック ２０１６ | BE10: 表題３ | BF10: スーパーリ－グ 第１０回大会 Ｃブロック ２０１６ | BG10: 表題３ | BH10: スーパーリ－グ 第１０回大会 Ｃブロック ２０１６ | BI10: 表題３ | BJ10: スーパーリ－グ 第１０回大会 Ｃブロック ２０１６ | BK10: 表題３ | BL10: スーパーリ－グ 第１０回大会 Ｃブロック ２０１６ | BM10: 表題３ | BN10: スーパーリ－グ 第１０回大会 Ｃブロック ２０１６ | BO10: 表題３ | BP10: スーパーリ－グ 第１０回大会 Ｃブロック ２０１６ | BQ10: 表題３ | BR10: スーパーリ－グ 第１０回大会 Ｃブロック ２０１６ | BS10: 表題３ | BT10: スーパーリ－グ 第１０回大会 Ｃブロック ２０１６ | BU10: 表題３ | BV10: スーパーリ－グ 第１０回大会 Ｃブロック ２０１６ | BW10: 表題３ | BX10: スーパーリ－グ 第１０回大会 Ｃブロック ２０１６ | BY10: 表題３ | BZ10: スーパーリ－グ 第１０回大会 Ｃブロック ２０１６ | CA10: 表題３ | CB10: スーパーリ－グ 第１０回大会 Ｃブロック ２０１６ | CC10: 表題３ | CD10: スーパーリ－グ 第１０回大会 Ｃブロック ２０１６ | CE10: 表題３ | CF10: スーパーリ－グ 第１０回大会 Ｃブロック ２０１６ | CG10: 表題３ | CH10: スーパーリ－グ 第１０回大会 Ｃブロック ２０１６ | CI10: 表題３ | CJ10: スーパーリ－グ 第１０回大会 Ｃブロック ２０１６ | CK10: 表題３ | CL10: スーパーリ－グ 第１０回大会 Ｃブロック ２０１６ | CM10: 表題３ | CN10: スーパーリ－グ 第１０回大会 Ｃブロック ２０１６ | CO10: 表題３ | CP10: スーパーリ－グ 第１０回大会 Ｃブロック ２０１６ | CQ10: 表題３ | CR10: スーパーリ－グ 第１０回大会 Ｃブロック ２０１６ | CS10: 表題３ | CT10: スーパーリ－グ 第１０回大会 Ｃブロック ２０１６ | CU10: 表題３ | CV10: スーパーリ－グ 第１０回大会 Ｃブロック ２０１６ | CW10: 表題３ | CX10: スーパーリ－グ 第１０回大会 Ｃブロック ２０１６ | CY10: 表題３ | CZ10: スーパーリ－グ 第１０回大会 Ｃブロック ２０１６ | DA10: 表題３ | DB10: スーパーリ－グ 第１０回大会 Ｃブロック ２０１６ | DC10: 表題３ | DD10: スーパーリ－グ 第１０回大会 Ｃブロック ２０１６ | DE10: 表題３ | DF10: スーパーリ－グ 第１０回大会 Ｃブロック ２０１６ | DG10: 表題３ | DH10: スーパーリ－グ 第１０回大会 Ｃブロック ２０１６ | DI10: 表題３ | DJ10: スーパーリ－グ 第１０回大会 Ｃブロック ２０１６ | DK10: 表題３ | DL10: スーパーリ－グ 第１０回大会 Ｃブロック ２０１６ | DM10: 表題３ | DN10: スーパーリ－グ 第１０回大会 Ｃブロック ２０１６ | DO10: 表題３ | DP10: スーパーリ－グ 第１０回大会 Ｃブロック ２０１６ | DQ10: 表題３ | DR10: スーパーリ－グ 第１０回大会 Ｃブロック ２０１６ | DS10: 表題３ | DT10: スーパーリ－グ 第１０回大会 Ｃブロック ２０１６ | DU10: 表題３ | DV10: スーパーリ－グ 第１０回大会 Ｃブロック ２０１６ | DW10: 表題３ | DX10: スーパーリ－グ 第１０回大会 Ｃブロック ２０１６ | DY10: 表題３ | DZ10: スーパーリ－グ 第１０回大会 Ｃブロック ２０１６ | EA10: 表題３ | EB10: スーパーリ－グ 第１０回大会 Ｃブロック ２０１６ | EC10: 表題３ | ED10: スーパーリ－グ 第１０回大会 Ｃブロック ２０１６ | EE10: 表題３ | EF10: スーパーリ－グ 第１０回大会 Ｃブロック ２０１６ | EG10: 表題３ | EH10: スーパーリ－グ 第１０回大会 Ｃブロック ２０１６ | EI10: 表題３ | EJ10: スーパーリ－グ 第１０回大会 Ｃブロック ２０１６ | EK10: 表題３ | EL10: スーパーリ－グ 第１０回大会 Ｃブロック ２０１６ | EM10: 表題３ | EN10: スーパーリ－グ 第１０回大会 Ｃブロック ２０１６ | EO10: 表題３ | EP10: スーパーリ－グ 第１０回大会 Ｃブロック ２０１６ | EQ10: 表題３ | ER10: スーパーリ－グ 第１０回大会 Ｃブロック ２０１６ | ES10: 表題３ | ET10: スーパーリ－グ 第１０回大会 Ｃブロック ２０１６ | EU10: 表題３ | EV10: スーパーリ－グ 第１０回大会 Ｃブロック ２０１６ | EW10: 表題３ | EX10: スーパーリ－グ 第１０回大会 Ｃブロック ２０１６ | EY10: 表題３ | EZ10: スーパーリ－グ 第１０回大会 Ｃブロック ２０１６ | FA10: 表題３ | FB10: スーパーリ－グ 第１０回大会 Ｃブロック ２０１６ | FC10: 表題３ | FD10: スーパーリ－グ 第１０回大会 Ｃブロック ２０１６ | FE10: 表題３ | FF10: スーパーリ－グ 第１０回大会 Ｃブロック ２０１６ | FG10: 表題３ | FH10: スーパーリ－グ 第１０回大会 Ｃブロック ２０１６ | FI10: 表題３ | FJ10: スーパーリ－グ 第１０回大会 Ｃブロック ２０１６ | FK10: 表題３ | FL10: スーパーリ－グ 第１０回大会 Ｃブロック ２０１６ | FM10: 表題３ | FN10: スーパーリ－グ 第１０回大会 Ｃブロック ２０１６ | FO10: 表題３ | FP10: スーパーリ－グ 第１０回大会 Ｃブロック ２０１６ | FQ10: 表題３ | FR10: スーパーリ－グ 第１０回大会 Ｃブロック ２０１６ | FS10: 表題３ | FT10: スーパーリ－グ 第１０回大会 Ｃブロック ２０１６ | FU10: 表題３ | FV10: スーパーリ－グ 第１０回大会 Ｃブロック ２０１６ | FW10: 表題３ | FX10: スーパーリ－グ 第１０回大会 Ｃブロック ２０１６ | FY10: 表題３ | FZ10: スーパーリ－グ 第１０回大会 Ｃブロック ２０１６ | GA10: 表題３ | GB10: スーパーリ－グ 第１０回大会 Ｃブロック ２０１６ | GC10: 表題３ | GD10: スーパーリ－グ 第１０回大会 Ｃブロック ２０１６ | GE10: 表題３ | GF10: スーパーリ－グ 第１０回大会 Ｃブロック ２０１６ | GG10: 表題３ | GH10: スーパーリ－グ 第１０回大会 Ｃブロック ２０１６ | GI10: 表題３ | GJ10: スーパーリ－グ 第１０回大会 Ｃブロック ２０１６ | GK10: 表題３ | GL10: スーパーリ－グ 第１０回大会 Ｃブロック ２０１６ | GM10: 表題３ | GN10: スーパーリ－グ 第１０回大会 Ｃブロック ２０１６ | GO10: 表題３ | GP10: スーパーリ－グ 第１０回大会 Ｃブロック ２０１６ | GQ10: 表題３ | GR10: スーパーリ－グ 第１０回大会 Ｃブロック ２０１６ | GS10: 表題３ | GT10: スーパーリ－グ 第１０回大会 Ｃブロック ２０１６ | GU10: 表題３ | GV10: スーパーリ－グ 第１０回大会 Ｃブロック ２０１６ | GW10: 表題３ | GX10: スーパーリ－グ 第１０回大会 Ｃブロック ２０１６ | GY10: 表題３ | GZ10: スーパーリ－グ 第１０回大会 Ｃブロック ２０１６ | HA10: 表題３ | HB10: スーパーリ－グ 第１０回大会 Ｃブロック ２０１６ | HC10: 表題３ | HD10: スーパーリ－グ 第１０回大会 Ｃブロック ２０１６ | HE10: 表題３ | HF10: スーパーリ－グ 第１０回大会 Ｃブロック ２０１６ | HG10: 表題３ | HH10: スーパーリ－グ 第１０回大会 Ｃブロック ２０１６ | HI10: 表題３ | HJ10: スーパーリ－グ 第１０回大会 Ｃブロック ２０１６ | HK10: 表題３ | HL10: スーパーリ－グ 第１０回大会 Ｃブロック ２０１６ | HM10: 表題３ | HN10: スーパーリ－グ 第１０回大会 Ｃブロック ２０１６ | HO10: 表題３ | HP10: スーパーリ－グ 第１０回大会 Ｃブロック ２０１６ | HQ10: 表題３ | HR10: スーパーリ－グ 第１０回大会 Ｃブロック ２０１６ | HS10: 表題３ | HT10: スーパーリ－グ 第１０回大会 Ｃブロック ２０１６ | HU10: 表題３ | HV10: スーパーリ－グ 第１０回大会 Ｃブロック ２０１６ | HW10: 表題３ | HX10: スーパーリ－グ 第１０回大会 Ｃブロック ２０１６ | HY10: 表題３ | HZ10: スーパーリ－グ 第１０回大会 Ｃブロック ２０１６ | IA10: 表題３ | IB10: スーパーリ－グ 第１０回大会 Ｃブロック ２０１６ | IC10: 表題３ | ID10: スーパーリ－グ 第１０回大会 Ｃブロック ２０１６ | IE10: 表題３ | IF10: スーパーリ－グ 第１０回大会 Ｃブロック ２０１６ | IG10: 表題３ | IH10: スーパーリ－グ 第１０回大会 Ｃブロック ２０１６ | II10: 表題３ | IJ10: スーパーリ－グ 第１０回大会 Ｃブロック ２０１６ | IK10: 表題３ | IL10: スーパーリ－グ 第１０回大会 Ｃブロック ２０１６ | IM10: 表題３ | IN10: スーパーリ－グ 第１０回大会 Ｃブロック ２０１６ | IO10: 表題３ | IP10: スーパーリ－グ 第１０回大会 Ｃブロック ２０１６ | IQ10: 表題３ | IR10: スーパーリ－グ 第１０回大会 Ｃブロック ２０１６ | IS10: 表題３ | IT10: スーパーリ－グ 第１０回大会 Ｃブロック ２０１６ | IU10: 表題３ | IV10: スーパーリ－グ 第１０回大会 Ｃブロック ２０１６
A12: 表題４ | B12: スーパーリ－グ 第１６回大会 Ｄブロック ２０２２ | C12: 表題４ | D12: スーパーリ－グ 第１０回大会 Ｄブロック ２０１６ | E12: 表題４ | F12: スーパーリ－グ 第１０回大会 Ｄブロック ２０１６ | G12: 表題４ | H12: スーパーリ－グ 第１０回大会 Ｄブロック ２０１６ | I12: 表題４ | J12: スーパーリ－グ 第１０回大会 Ｄブロック ２０１６ | K12: 表題４ | L12: スーパーリ－グ 第１０回大会 Ｄブロック ２０１６ | M12: 表題４ | N12: スーパーリ－グ 第１０回大会 Ｄブロック ２０１６ | O12: 表題４ | P12: スーパーリ－グ 第１０回大会 Ｄブロック ２０１６ | Q12: 表題４ | R12: スーパーリ－グ 第１０回大会 Ｄブロック ２０１６ | S12: 表題４ | T12: スーパーリ－グ 第１０回大会 Ｄブロック ２０１６ | U12: 表題４ | V12: スーパーリ－グ 第１０回大会 Ｄブロック ２０１６ | W12: 表題４ | X12: スーパーリ－グ 第１０回大会 Ｄブロック ２０１６ | Y12: 表題４ | Z12: スーパーリ－グ 第１０回大会 Ｄブロック ２０１６ | AA12: 表題４ | AB12: スーパーリ－グ 第１０回大会 Ｄブロック ２０１６ | AC12: 表題４ | AD12: スーパーリ－グ 第１０回大会 Ｄブロック ２０１６ | AE12: 表題４ | AF12: スーパーリ－グ 第１０回大会 Ｄブロック ２０１６ | AG12: 表題４ | AH12: スーパーリ－グ 第１０回大会 Ｄブロック ２０１６ | AI12: 表題４ | AJ12: スーパーリ－グ 第１０回大会 Ｄブロック ２０１６ | AK12: 表題４ | AL12: スーパーリ－グ 第１０回大会 Ｄブロック ２０１６ | AM12: 表題４ | AN12: スーパーリ－グ 第１０回大会 Ｄブロック ２０１６ | AO12: 表題４ | AP12: スーパーリ－グ 第１０回大会 Ｄブロック ２０１６ | AQ12: 表題４ | AR12: スーパーリ－グ 第１０回大会 Ｄブロック ２０１６ | AS12: 表題４ | AT12: スーパーリ－グ 第１０回大会 Ｄブロック ２０１６ | AU12: 表題４ | AV12: スーパーリ－グ 第１０回大会 Ｄブロック ２０１６ | AW12: 表題４ | AX12: スーパーリ－グ 第１０回大会 Ｄブロック ２０１６ | AY12: 表題４ | AZ12: スーパーリ－グ 第１０回大会 Ｄブロック ２０１６ | BA12: 表題４ | BB12: スーパーリ－グ 第１０回大会 Ｄブロック ２０１６ | BC12: 表題４ | BD12: スーパーリ－グ 第１０回大会 Ｄブロック ２０１６ | BE12: 表題４ | BF12: スーパーリ－グ 第１０回大会 Ｄブロック ２０１６ | BG12: 表題４ | BH12: スーパーリ－グ 第１０回大会 Ｄブロック ２０１６ | BI12: 表題４ | BJ12: スーパーリ－グ 第１０回大会 Ｄブロック ２０１６ | BK12: 表題４ | BL12: スーパーリ－グ 第１０回大会 Ｄブロック ２０１６ | BM12: 表題４ | BN12: スーパーリ－グ 第１０回大会 Ｄブロック ２０１６ | BO12: 表題４ | BP12: スーパーリ－グ 第１０回大会 Ｄブロック ２０１６ | BQ12: 表題４ | BR12: スーパーリ－グ 第１０回大会 Ｄブロック ２０１６ | BS12: 表題４ | BT12: スーパーリ－グ 第１０回大会 Ｄブロック ２０１６ | BU12: 表題４ | BV12: スーパーリ－グ 第１０回大会 Ｄブロック ２０１６ | BW12: 表題４ | BX12: スーパーリ－グ 第１０回大会 Ｄブロック ２０１６ | BY12: 表題４ | BZ12: スーパーリ－グ 第１０回大会 Ｄブロック ２０１６ | CA12: 表題４ | CB12: スーパーリ－グ 第１０回大会 Ｄブロック ２０１６ | CC12: 表題４ | CD12: スーパーリ－グ 第１０回大会 Ｄブロック ２０１６ | CE12: 表題４ | CF12: スーパーリ－グ 第１０回大会 Ｄブロック ２０１６ | CG12: 表題４ | CH12: スーパーリ－グ 第１０回大会 Ｄブロック ２０１６ | CI12: 表題４ | CJ12: スーパーリ－グ 第１０回大会 Ｄブロック ２０１６ | CK12: 表題４ | CL12: スーパーリ－グ 第１０回大会 Ｄブロック ２０１６ | CM12: 表題４ | CN12: スーパーリ－グ 第１０回大会 Ｄブロック ２０１６ | CO12: 表題４ | CP12: スーパーリ－グ 第１０回大会 Ｄブロック ２０１６ | CQ12: 表題４ | CR12: スーパーリ－グ 第１０回大会 Ｄブロック ２０１６ | CS12: 表題４ | CT12: スーパーリ－グ 第１０回大会 Ｄブロック ２０１６ | CU12: 表題４ | CV12: スーパーリ－グ 第１０回大会 Ｄブロック ２０１６ | CW12: 表題４ | CX12: スーパーリ－グ 第１０回大会 Ｄブロック ２０１６ | CY12: 表題４ | CZ12: スーパーリ－グ 第１０回大会 Ｄブロック ２０１６ | DA12: 表題４ | DB12: スーパーリ－グ 第１０回大会 Ｄブロック ２０１６ | DC12: 表題４ | DD12: スーパーリ－グ 第１０回大会 Ｄブロック ２０１６ | DE12: 表題４ | DF12: スーパーリ－グ 第１０回大会 Ｄブロック ２０１６ | DG12: 表題４ | DH12: スーパーリ－グ 第１０回大会 Ｄブロック ２０１６ | DI12: 表題４ | DJ12: スーパーリ－グ 第１０回大会 Ｄブロック ２０１６ | DK12: 表題４ | DL12: スーパーリ－グ 第１０回大会 Ｄブロック ２０１６ | DM12: 表題４ | DN12: スーパーリ－グ 第１０回大会 Ｄブロック ２０１６ | DO12: 表題４ | DP12: スーパーリ－グ 第１０回大会 Ｄブロック ２０１６ | DQ12: 表題４ | DR12: スーパーリ－グ 第１０回大会 Ｄブロック ２０１６ | DS12: 表題４ | DT12: スーパーリ－グ 第１０回大会 Ｄブロック ２０１６ | DU12: 表題４ | DV12: スーパーリ－グ 第１０回大会 Ｄブロック ２０１６ | DW12: 表題４ | DX12: スーパーリ－グ 第１０回大会 Ｄブロック ２０１６ | DY12: 表題４ | DZ12: スーパーリ－グ 第１０回大会 Ｄブロック ２０１６ | EA12: 表題４ | EB12: スーパーリ－グ 第１０回大会 Ｄブロック ２０１６ | EC12: 表題４ | ED12: スーパーリ－グ 第１０回大会 Ｄブロック ２０１６ | EE12: 表題４ | EF12: スーパーリ－グ 第１０回大会 Ｄブロック ２０１６ | EG12: 表題４ | EH12: スーパーリ－グ 第１０回大会 Ｄブロック ２０１６ | EI12: 表題４ | EJ12: スーパーリ－グ 第１０回大会 Ｄブロック ２０１６ | EK12: 表題４ | EL12: スーパーリ－グ 第１０回大会 Ｄブロック ２０１６ | EM12: 表題４ | EN12: スーパーリ－グ 第１０回大会 Ｄブロック ２０１６ | EO12: 表題４ | EP12: スーパーリ－グ 第１０回大会 Ｄブロック ２０１６ | EQ12: 表題４ | ER12: スーパーリ－グ 第１０回大会 Ｄブロック ２０１６ | ES12: 表題４ | ET12: スーパーリ－グ 第１０回大会 Ｄブロック ２０１６ | EU12: 表題４ | EV12: スーパーリ－グ 第１０回大会 Ｄブロック ２０１６ | EW12: 表題４ | EX12: スーパーリ－グ 第１０回大会 Ｄブロック ２０１６ | EY12: 表題４ | EZ12: スーパーリ－グ 第１０回大会 Ｄブロック ２０１６ | FA12: 表題４ | FB12: スーパーリ－グ 第１０回大会 Ｄブロック ２０１６ | FC12: 表題４ | FD12: スーパーリ－グ 第１０回大会 Ｄブロック ２０１６ | FE12: 表題４ | FF12: スーパーリ－グ 第１０回大会 Ｄブロック ２０１６ | FG12: 表題４ | FH12: スーパーリ－グ 第１０回大会 Ｄブロック ２０１６ | FI12: 表題４ | FJ12: スーパーリ－グ 第１０回大会 Ｄブロック ２０１６ | FK12: 表題４ | FL12: スーパーリ－グ 第１０回大会 Ｄブロック ２０１６ | FM12: 表題４ | FN12: スーパーリ－グ 第１０回大会 Ｄブロック ２０１６ | FO12: 表題４ | FP12: スーパーリ－グ 第１０回大会 Ｄブロック ２０１６ | FQ12: 表題４ | FR12: スーパーリ－グ 第１０回大会 Ｄブロック ２０１６ | FS12: 表題４ | FT12: スーパーリ－グ 第１０回大会 Ｄブロック ２０１６ | FU12: 表題４ | FV12: スーパーリ－グ 第１０回大会 Ｄブロック ２０１６ | FW12: 表題４ | FX12: スーパーリ－グ 第１０回大会 Ｄブロック ２０１６ | FY12: 表題４ | FZ12: スーパーリ－グ 第１０回大会 Ｄブロック ２０１６ | GA12: 表題４ | GB12: スーパーリ－グ 第１０回大会 Ｄブロック ２０１６ | GC12: 表題４ | GD12: スーパーリ－グ 第１０回大会 Ｄブロック ２０１６ | GE12: 表題４ | GF12: スーパーリ－グ 第１０回大会 Ｄブロック ２０１６ | GG12: 表題４ | GH12: スーパーリ－グ 第１０回大会 Ｄブロック ２０１６ | GI12: 表題４ | GJ12: スーパーリ－グ 第１０回大会 Ｄブロック ２０１６ | GK12: 表題４ | GL12: スーパーリ－グ 第１０回大会 Ｄブロック ２０１６ | GM12: 表題４ | GN12: スーパーリ－グ 第１０回大会 Ｄブロック ２０１６ | GO12: 表題４ | GP12: スーパーリ－グ 第１０回大会 Ｄブロック ２０１６ | GQ12: 表題４ | GR12: スーパーリ－グ 第１０回大会 Ｄブロック ２０１６ | GS12: 表題４ | GT12: スーパーリ－グ 第１０回大会 Ｄブロック ２０１６ | GU12: 表題４ | GV12: スーパーリ－グ 第１０回大会 Ｄブロック ２０１６ | GW12: 表題４ | GX12: スーパーリ－グ 第１０回大会 Ｄブロック ２０１６ | GY12: 表題４ | GZ12: スーパーリ－グ 第１０回大会 Ｄブロック ２０１６ | HA12: 表題４ | HB12: スーパーリ－グ 第１０回大会 Ｄブロック ２０１６ | HC12: 表題４ | HD12: スーパーリ－グ 第１０回大会 Ｄブロック ２０１６ | HE12: 表題４ | HF12: スーパーリ－グ 第１０回大会 Ｄブロック ２０１６ | HG12: 表題４ | HH12: スーパーリ－グ 第１０回大会 Ｄブロック ２０１６ | HI12: 表題４ | HJ12: スーパーリ－グ 第１０回大会 Ｄブロック ２０１６ | HK12: 表題４ | HL12: スーパーリ－グ 第１０回大会 Ｄブロック ２０１６ | HM12: 表題４ | HN12: スーパーリ－グ 第１０回大会 Ｄブロック ２０１６ | HO12: 表題４ | HP12: スーパーリ－グ 第１０回大会 Ｄブロック ２０１６ | HQ12: 表題４ | HR12: スーパーリ－グ 第１０回大会 Ｄブロック ２０１６ | HS12: 表題４ | HT12: スーパーリ－グ 第１０回大会 Ｄブロック ２０１６ | HU12: 表題４ | HV12: スーパーリ－グ 第１０回大会 Ｄブロック ２０１６ | HW12: 表題４ | HX12: スーパーリ－グ 第１０回大会 Ｄブロック ２０１６ | HY12: 表題４ | HZ12: スーパーリ－グ 第１０回大会 Ｄブロック ２０１６ | IA12: 表題４ | IB12: スーパーリ－グ 第１０回大会 Ｄブロック ２０１６ | IC12: 表題４ | ID12: スーパーリ－グ 第１０回大会 Ｄブロック ２０１６ | IE12: 表題４ | IF12: スーパーリ－グ 第１０回大会 Ｄブロック ２０１６ | IG12: 表題４ | IH12: スーパーリ－グ 第１０回大会 Ｄブロック ２０１６ | II12: 表題４ | IJ12: スーパーリ－グ 第１０回大会 Ｄブロック ２０１６ | IK12: 表題４ | IL12: スーパーリ－グ 第１０回大会 Ｄブロック ２０１６ | IM12: 表題４ | IN12: スーパーリ－グ 第１０回大会 Ｄブロック ２０１６ | IO12: 表題４ | IP12: スーパーリ－グ 第１０回大会 Ｄブロック ２０１６ | IQ12: 表題４ | IR12: スーパーリ－グ 第１０回大会 Ｄブロック ２０１６ | IS12: 表題４ | IT12: スーパーリ－グ 第１０回大会 Ｄブロック ２０１６ | IU12: 表題４ | IV12: スーパーリ－グ 第１０回大会 Ｄブロック ２０１６
A14: 表題５ | B14: スーパーリ－グ 第１６回大会 Ｅブロック ２０２２ | C14: 表題５ | D14: スーパーリ－グ 第１０回大会 Ｅブロック ２０１６ | E14: 表題５ | F14: スーパーリ－グ 第１０回大会 Ｅブロック ２０１６ | G14: 表題５ | H14: スーパーリ－グ 第１０回大会 Ｅブロック ２０１６ | I14: 表題５ | J14: スーパーリ－グ 第１０回大会 Ｅブロック ２０１６ | K14: 表題５ | L14: スーパーリ－グ 第１０回大会 Ｅブロック ２０１６ | M14: 表題５ | N14: スーパーリ－グ 第１０回大会 Ｅブロック ２０１６ | O14: 表題５ | P14: スーパーリ－グ 第１０回大会 Ｅブロック ２０１６ | Q14: 表題５ | R14: スーパーリ－グ 第１０回大会 Ｅブロック ２０１６ | S14: 表題５ | T14: スーパーリ－グ 第１０回大会 Ｅブロック ２０１６ | U14: 表題５ | V14: スーパーリ－グ 第１０回大会 Ｅブロック ２０１６ | W14: 表題５ | X14: スーパーリ－グ 第１０回大会 Ｅブロック ２０１６ | Y14: 表題５ | Z14: スーパーリ－グ 第１０回大会 Ｅブロック ２０１６ | AA14: 表題５ | AB14: スーパーリ－グ 第１０回大会 Ｅブロック ２０１６ | AC14: 表題５ | AD14: スーパーリ－グ 第１０回大会 Ｅブロック ２０１６ | AE14: 表題５ | AF14: スーパーリ－グ 第１０回大会 Ｅブロック ２０１６ | AG14: 表題５ | AH14: スーパーリ－グ 第１０回大会 Ｅブロック ２０１６ | AI14: 表題５ | AJ14: スーパーリ－グ 第１０回大会 Ｅブロック ２０１６ | AK14: 表題５ | AL14: スーパーリ－グ 第１０回大会 Ｅブロック ２０１６ | AM14: 表題５ | AN14: スーパーリ－グ 第１０回大会 Ｅブロック ２０１６ | AO14: 表題５ | AP14: スーパーリ－グ 第１０回大会 Ｅブロック ２０１６ | AQ14: 表題５ | AR14: スーパーリ－グ 第１０回大会 Ｅブロック ２０１６ | AS14: 表題５ | AT14: スーパーリ－グ 第１０回大会 Ｅブロック ２０１６ | AU14: 表題５ | AV14: スーパーリ－グ 第１０回大会 Ｅブロック ２０１６ | AW14: 表題５ | AX14: スーパーリ－グ 第１０回大会 Ｅブロック ２０１６ | AY14: 表題５ | AZ14: スーパーリ－グ 第１０回大会 Ｅブロック ２０１６ | BA14: 表題５ | BB14: スーパーリ－グ 第１０回大会 Ｅブロック ２０１６ | BC14: 表題５ | BD14: スーパーリ－グ 第１０回大会 Ｅブロック ２０１６ | BE14: 表題５ | BF14: スーパーリ－グ 第１０回大会 Ｅブロック ２０１６ | BG14: 表題５ | BH14: スーパーリ－グ 第１０回大会 Ｅブロック ２０１６ | BI14: 表題５ | BJ14: スーパーリ－グ 第１０回大会 Ｅブロック ２０１６ | BK14: 表題５ | BL14: スーパーリ－グ 第１０回大会 Ｅブロック ２０１６ | BM14: 表題５ | BN14: スーパーリ－グ 第１０回大会 Ｅブロック ２０１６ | BO14: 表題５ | BP14: スーパーリ－グ 第１０回大会 Ｅブロック ２０１６ | BQ14: 表題５ | BR14: スーパーリ－グ 第１０回大会 Ｅブロック ２０１６ | BS14: 表題５ | BT14: スーパーリ－グ 第１０回大会 Ｅブロック ２０１６ | BU14: 表題５ | BV14: スーパーリ－グ 第１０回大会 Ｅブロック ２０１６ | BW14: 表題５ | BX14: スーパーリ－グ 第１０回大会 Ｅブロック ２０１６ | BY14: 表題５ | BZ14: スーパーリ－グ 第１０回大会 Ｅブロック ２０１６ | CA14: 表題５ | CB14: スーパーリ－グ 第１０回大会 Ｅブロック ２０１６ | CC14: 表題５ | CD14: スーパーリ－グ 第１０回大会 Ｅブロック ２０１６ | CE14: 表題５ | CF14: スーパーリ－グ 第１０回大会 Ｅブロック ２０１６ | CG14: 表題５ | CH14: スーパーリ－グ 第１０回大会 Ｅブロック ２０１６ | CI14: 表題５ | CJ14: スーパーリ－グ 第１０回大会 Ｅブロック ２０１６ | CK14: 表題５ | CL14: スーパーリ－グ 第１０回大会 Ｅブロック ２０１６ | CM14: 表題５ | CN14: スーパーリ－グ 第１０回大会 Ｅブロック ２０１６ | CO14: 表題５ | CP14: スーパーリ－グ 第１０回大会 Ｅブロック ２０１６ | CQ14: 表題５ | CR14: スーパーリ－グ 第１０回大会 Ｅブロック ２０１６ | CS14: 表題５ | CT14: スーパーリ－グ 第１０回大会 Ｅブロック ２０１６ | CU14: 表題５ | CV14: スーパーリ－グ 第１０回大会 Ｅブロック ２０１６ | CW14: 表題５ | CX14: スーパーリ－グ 第１０回大会 Ｅブロック ２０１６ | CY14: 表題５ | CZ14: スーパーリ－グ 第１０回大会 Ｅブロック ２０１６ | DA14: 表題５ | DB14: スーパーリ－グ 第１０回大会 Ｅブロック ２０１６ | DC14: 表題５ | DD14: スーパーリ－グ 第１０回大会 Ｅブロック ２０１６ | DE14: 表題５ | DF14: スーパーリ－グ 第１０回大会 Ｅブロック ２０１６ | DG14: 表題５ | DH14: スーパーリ－グ 第１０回大会 Ｅブロック ２０１６ | DI14: 表題５ | DJ14: スーパーリ－グ 第１０回大会 Ｅブロック ２０１６ | DK14: 表題５ | DL14: スーパーリ－グ 第１０回大会 Ｅブロック ２０１６ | DM14: 表題５ | DN14: スーパーリ－グ 第１０回大会 Ｅブロック ２０１６ | DO14: 表題５ | DP14: スーパーリ－グ 第１０回大会 Ｅブロック ２０１６ | DQ14: 表題５ | DR14: スーパーリ－グ 第１０回大会 Ｅブロック ２０１６ | DS14: 表題５ | DT14: スーパーリ－グ 第１０回大会 Ｅブロック ２０１６ | DU14: 表題５ | DV14: スーパーリ－グ 第１０回大会 Ｅブロック ２０１６ | DW14: 表題５ | DX14: スーパーリ－グ 第１０回大会 Ｅブロック ２０１６ | DY14: 表題５ | DZ14: スーパーリ－グ 第１０回大会 Ｅブロック ２０１６ | EA14: 表題５ | EB14: スーパーリ－グ 第１０回大会 Ｅブロック ２０１６ | EC14: 表題５ | ED14: スーパーリ－グ 第１０回大会 Ｅブロック ２０１６ | EE14: 表題５ | EF14: スーパーリ－グ 第１０回大会 Ｅブロック ２０１６ | EG14: 表題５ | EH14: スーパーリ－グ 第１０回大会 Ｅブロック ２０１６ | EI14: 表題５ | EJ14: スーパーリ－グ 第１０回大会 Ｅブロック ２０１６ | EK14: 表題５ | EL14: スーパーリ－グ 第１０回大会 Ｅブロック ２０１６ | EM14: 表題５ | EN14: スーパーリ－グ 第１０回大会 Ｅブロック ２０１６ | EO14: 表題５ | EP14: スーパーリ－グ 第１０回大会 Ｅブロック ２０１６ | EQ14: 表題５ | ER14: スーパーリ－グ 第１０回大会 Ｅブロック ２０１６ | ES14: 表題５ | ET14: スーパーリ－グ 第１０回大会 Ｅブロック ２０１６ | EU14: 表題５ | EV14: スーパーリ－グ 第１０回大会 Ｅブロック ２０１６ | EW14: 表題５ | EX14: スーパーリ－グ 第１０回大会 Ｅブロック ２０１６ | EY14: 表題５ | EZ14: スーパーリ－グ 第１０回大会 Ｅブロック ２０１６ | FA14: 表題５ | FB14: スーパーリ－グ 第１０回大会 Ｅブロック ２０１６ | FC14: 表題５ | FD14: スーパーリ－グ 第１０回大会 Ｅブロック ２０１６ | FE14: 表題５ | FF14: スーパーリ－グ 第１０回大会 Ｅブロック ２０１６ | FG14: 表題５ | FH14: スーパーリ－グ 第１０回大会 Ｅブロック ２０１６ | FI14: 表題５ | FJ14: スーパーリ－グ 第１０回大会 Ｅブロック ２０１６ | FK14: 表題５ | FL14: スーパーリ－グ 第１０回大会 Ｅブロック ２０１６ | FM14: 表題５ | FN14: スーパーリ－グ 第１０回大会 Ｅブロック ２０１６ | FO14: 表題５ | FP14: スーパーリ－グ 第１０回大会 Ｅブロック ２０１６ | FQ14: 表題５ | FR14: スーパーリ－グ 第１０回大会 Ｅブロック ２０１６ | FS14: 表題５ | FT14: スーパーリ－グ 第１０回大会 Ｅブロック ２０１６ | FU14: 表題５ | FV14: スーパーリ－グ 第１０回大会 Ｅブロック ２０１６ | FW14: 表題５ | FX14: スーパーリ－グ 第１０回大会 Ｅブロック ２０１６ | FY14: 表題５ | FZ14: スーパーリ－グ 第１０回大会 Ｅブロック ２０１６ | GA14: 表題５ | GB14: スーパーリ－グ 第１０回大会 Ｅブロック ２０１６ | GC14: 表題５ | GD14: スーパーリ－グ 第１０回大会 Ｅブロック ２０１６ | GE14: 表題５ | GF14: スーパーリ－グ 第１０回大会 Ｅブロック ２０１６ | GG14: 表題５ | GH14: スーパーリ－グ 第１０回大会 Ｅブロック ２０１６ | GI14: 表題５ | GJ14: スーパーリ－グ 第１０回大会 Ｅブロック ２０１６ | GK14: 表題５ | GL14: スーパーリ－グ 第１０回大会 Ｅブロック ２０１６ | GM14: 表題５ | GN14: スーパーリ－グ 第１０回大会 Ｅブロック ２０１６ | GO14: 表題５ | GP14: スーパーリ－グ 第１０回大会 Ｅブロック ２０１６ | GQ14: 表題５ | GR14: スーパーリ－グ 第１０回大会 Ｅブロック ２０１６ | GS14: 表題５ | GT14: スーパーリ－グ 第１０回大会 Ｅブロック ２０１６ | GU14: 表題５ | GV14: スーパーリ－グ 第１０回大会 Ｅブロック ２０１６ | GW14: 表題５ | GX14: スーパーリ－グ 第１０回大会 Ｅブロック ２０１６ | GY14: 表題５ | GZ14: スーパーリ－グ 第１０回大会 Ｅブロック ２０１６ | HA14: 表題５ | HB14: スーパーリ－グ 第１０回大会 Ｅブロック ２０１６ | HC14: 表題５ | HD14: スーパーリ－グ 第１０回大会 Ｅブロック ２０１６ | HE14: 表題５ | HF14: スーパーリ－グ 第１０回大会 Ｅブロック ２０１６ | HG14: 表題５ | HH14: スーパーリ－グ 第１０回大会 Ｅブロック ２０１６ | HI14: 表題５ | HJ14: スーパーリ－グ 第１０回大会 Ｅブロック ２０１６ | HK14: 表題５ | HL14: スーパーリ－グ 第１０回大会 Ｅブロック ２０１６ | HM14: 表題５ | HN14: スーパーリ－グ 第１０回大会 Ｅブロック ２０１６ | HO14: 表題５ | HP14: スーパーリ－グ 第１０回大会 Ｅブロック ２０１６ | HQ14: 表題５ | HR14: スーパーリ－グ 第１０回大会 Ｅブロック ２０１６ | HS14: 表題５ | HT14: スーパーリ－グ 第１０回大会 Ｅブロック ２０１６ | HU14: 表題５ | HV14: スーパーリ－グ 第１０回大会 Ｅブロック ２０１６ | HW14: 表題５ | HX14: スーパーリ－グ 第１０回大会 Ｅブロック ２０１６ | HY14: 表題５ | HZ14: スーパーリ－グ 第１０回大会 Ｅブロック ２０１６ | IA14: 表題５ | IB14: スーパーリ－グ 第１０回大会 Ｅブロック ２０１６ | IC14: 表題５ | ID14: スーパーリ－グ 第１０回大会 Ｅブロック ２０１６ | IE14: 表題５ | IF14: スーパーリ－グ 第１０回大会 Ｅブロック ２０１６ | IG14: 表題５ | IH14: スーパーリ－グ 第１０回大会 Ｅブロック ２０１６ | II14: 表題５ | IJ14: スーパーリ－グ 第１０回大会 Ｅブロック ２０１６ | IK14: 表題５ | IL14: スーパーリ－グ 第１０回大会 Ｅブロック ２０１６ | IM14: 表題５ | IN14: スーパーリ－グ 第１０回大会 Ｅブロック ２０１６ | IO14: 表題５ | IP14: スーパーリ－グ 第１０回大会 Ｅブロック ２０１６ | IQ14: 表題５ | IR14: スーパーリ－グ 第１０回大会 Ｅブロック ２０１６ | IS14: 表題５ | IT14: スーパーリ－グ 第１０回大会 Ｅブロック ２０１６ | IU14: 表題５ | IV14: スーパーリ－グ 第１０回大会 Ｅブロック ２０１６
A16: 表題６ | B16: スーパーリ－グ 第１６回大会 Ｆブロック ２０２２ | C16: 表題６ | D16: スーパーリ－グ 第１０回大会 Ｆブロック ２０１６ | E16: 表題６ | F16: スーパーリ－グ 第１０回大会 Ｆブロック ２０１６ | G16: 表題６ | H16: スーパーリ－グ 第１０回大会 Ｆブロック ２０１６ | I16: 表題６ | J16: スーパーリ－グ 第１０回大会 Ｆブロック ２０１６ | K16: 表題６ | L16: スーパーリ－グ 第１０回大会 Ｆブロック ２０１６ | M16: 表題６ | N16: スーパーリ－グ 第１０回大会 Ｆブロック ２０１６ | O16: 表題６ | P16: スーパーリ－グ 第１０回大会 Ｆブロック ２０１６ | Q16: 表題６ | R16: スーパーリ－グ 第１０回大会 Ｆブロック ２０１６ | S16: 表題６ | T16: スーパーリ－グ 第１０回大会 Ｆブロック ２０１６ | U16: 表題６ | V16: スーパーリ－グ 第１０回大会 Ｆブロック ２０１６ | W16: 表題６ | X16: スーパーリ－グ 第１０回大会 Ｆブロック ２０１６ | Y16: 表題６ | Z16: スーパーリ－グ 第１０回大会 Ｆブロック ２０１６ | AA16: 表題６ | AB16: スーパーリ－グ 第１０回大会 Ｆブロック ２０１６ | AC16: 表題６ | AD16: スーパーリ－グ 第１０回大会 Ｆブロック ２０１６ | AE16: 表題６ | AF16: スーパーリ－グ 第１０回大会 Ｆブロック ２０１６ | AG16: 表題６ | AH16: スーパーリ－グ 第１０回大会 Ｆブロック ２０１６ | AI16: 表題６ | AJ16: スーパーリ－グ 第１０回大会 Ｆブロック ２０１６ | AK16: 表題６ | AL16: スーパーリ－グ 第１０回大会 Ｆブロック ２０１６ | AM16: 表題６ | AN16: スーパーリ－グ 第１０回大会 Ｆブロック ２０１６ | AO16: 表題６ | AP16: スーパーリ－グ 第１０回大会 Ｆブロック ２０１６ | AQ16: 表題６ | AR16: スーパーリ－グ 第１０回大会 Ｆブロック ２０１６ | AS16: 表題６ | AT16: スーパーリ－グ 第１０回大会 Ｆブロック ２０１６ | AU16: 表題６ | AV16: スーパーリ－グ 第１０回大会 Ｆブロック ２０１６ | AW16: 表題６ | AX16: スーパーリ－グ 第１０回大会 Ｆブロック ２０１６ | AY16: 表題６ | AZ16: スーパーリ－グ 第１０回大会 Ｆブロック ２０１６ | BA16: 表題６ | BB16: スーパーリ－グ 第１０回大会 Ｆブロック ２０１６ | BC16: 表題６ | BD16: スーパーリ－グ 第１０回大会 Ｆブロック ２０１６ | BE16: 表題６ | BF16: スーパーリ－グ 第１０回大会 Ｆブロック ２０１６ | BG16: 表題６ | BH16: スーパーリ－グ 第１０回大会 Ｆブロック ２０１６ | BI16: 表題６ | BJ16: スーパーリ－グ 第１０回大会 Ｆブロック ２０１６ | BK16: 表題６ | BL16: スーパーリ－グ 第１０回大会 Ｆブロック ２０１６ | BM16: 表題６ | BN16: スーパーリ－グ 第１０回大会 Ｆブロック ２０１６ | BO16: 表題６ | BP16: スーパーリ－グ 第１０回大会 Ｆブロック ２０１６ | BQ16: 表題６ | BR16: スーパーリ－グ 第１０回大会 Ｆブロック ２０１６ | BS16: 表題６ | BT16: スーパーリ－グ 第１０回大会 Ｆブロック ２０１６ | BU16: 表題６ | BV16: スーパーリ－グ 第１０回大会 Ｆブロック ２０１６ | BW16: 表題６ | BX16: スーパーリ－グ 第１０回大会 Ｆブロック ２０１６ | BY16: 表題６ | BZ16: スーパーリ－グ 第１０回大会 Ｆブロック ２０１６ | CA16: 表題６ | CB16: スーパーリ－グ 第１０回大会 Ｆブロック ２０１６ | CC16: 表題６ | CD16: スーパーリ－グ 第１０回大会 Ｆブロック ２０１６ | CE16: 表題６ | CF16: スーパーリ－グ 第１０回大会 Ｆブロック ２０１６ | CG16: 表題６ | CH16: スーパーリ－グ 第１０回大会 Ｆブロック ２０１６ | CI16: 表題６ | CJ16: スーパーリ－グ 第１０回大会 Ｆブロック ２０１６ | CK16: 表題６ | CL16: スーパーリ－グ 第１０回大会 Ｆブロック ２０１６ | CM16: 表題６ | CN16: スーパーリ－グ 第１０回大会 Ｆブロック ２０１６ | CO16: 表題６ | CP16: スーパーリ－グ 第１０回大会 Ｆブロック ２０１６ | CQ16: 表題６ | CR16: スーパーリ－グ 第１０回大会 Ｆブロック ２０１６ | CS16: 表題６ | CT16: スーパーリ－グ 第１０回大会 Ｆブロック ２０１６ | CU16: 表題６ | CV16: スーパーリ－グ 第１０回大会 Ｆブロック ２０１６ | CW16: 表題６ | CX16: スーパーリ－グ 第１０回大会 Ｆブロック ２０１６ | CY16: 表題６ | CZ16: スーパーリ－グ 第１０回大会 Ｆブロック ２０１６ | DA16: 表題６ | DB16: スーパーリ－グ 第１０回大会 Ｆブロック ２０１６ | DC16: 表題６ | DD16: スーパーリ－グ 第１０回大会 Ｆブロック ２０１６ | DE16: 表題６ | DF16: スーパーリ－グ 第１０回大会 Ｆブロック ２０１６ | DG16: 表題６ | DH16: スーパーリ－グ 第１０回大会 Ｆブロック ２０１６ | DI16: 表題６ | DJ16: スーパーリ－グ 第１０回大会 Ｆブロック ２０１６ | DK16: 表題６ | DL16: スーパーリ－グ 第１０回大会 Ｆブロック ２０１６ | DM16: 表題６ | DN16: スーパーリ－グ 第１０回大会 Ｆブロック ２０１６ | DO16: 表題６ | DP16: スーパーリ－グ 第１０回大会 Ｆブロック ２０１６ | DQ16: 表題６ | DR16: スーパーリ－グ 第１０回大会 Ｆブロック ２０１６ | DS16: 表題６ | DT16: スーパーリ－グ 第１０回大会 Ｆブロック ２０１６ | DU16: 表題６ | DV16: スーパーリ－グ 第１０回大会 Ｆブロック ２０１６ | DW16: 表題６ | DX16: スーパーリ－グ 第１０回大会 Ｆブロック ２０１６ | DY16: 表題６ | DZ16: スーパーリ－グ 第１０回大会 Ｆブロック ２０１６ | EA16: 表題６ | EB16: スーパーリ－グ 第１０回大会 Ｆブロック ２０１６ | EC16: 表題６ | ED16: スーパーリ－グ 第１０回大会 Ｆブロック ２０１６ | EE16: 表題６ | EF16: スーパーリ－グ 第１０回大会 Ｆブロック ２０１６ | EG16: 表題６ | EH16: スーパーリ－グ 第１０回大会 Ｆブロック ２０１６ | EI16: 表題６ | EJ16: スーパーリ－グ 第１０回大会 Ｆブロック ２０１６ | EK16: 表題６ | EL16: スーパーリ－グ 第１０回大会 Ｆブロック ２０１６ | EM16: 表題６ | EN16: スーパーリ－グ 第１０回大会 Ｆブロック ２０１６ | EO16: 表題６ | EP16: スーパーリ－グ 第１０回大会 Ｆブロック ２０１６ | EQ16: 表題６ | ER16: スーパーリ－グ 第１０回大会 Ｆブロック ２０１６ | ES16: 表題６ | ET16: スーパーリ－グ 第１０回大会 Ｆブロック ２０１６ | EU16: 表題６ | EV16: スーパーリ－グ 第１０回大会 Ｆブロック ２０１６ | EW16: 表題６ | EX16: スーパーリ－グ 第１０回大会 Ｆブロック ２０１６ | EY16: 表題６ | EZ16: スーパーリ－グ 第１０回大会 Ｆブロック ２０１６ | FA16: 表題６ | FB16: スーパーリ－グ 第１０回大会 Ｆブロック ２０１６ | FC16: 表題６ | FD16: スーパーリ－グ 第１０回大会 Ｆブロック ２０１６ | FE16: 表題６ | FF16: スーパーリ－グ 第１０回大会 Ｆブロック ２０１６ | FG16: 表題６ | FH16: スーパーリ－グ 第１０回大会 Ｆブロック ２０１６ | FI16: 表題６ | FJ16: スーパーリ－グ 第１０回大会 Ｆブロック ２０１６ | FK16: 表題６ | FL16: スーパーリ－グ 第１０回大会 Ｆブロック ２０１６ | FM16: 表題６ | FN16: スーパーリ－グ 第１０回大会 Ｆブロック ２０１６ | FO16: 表題６ | FP16: スーパーリ－グ 第１０回大会 Ｆブロック ２０１６ | FQ16: 表題６ | FR16: スーパーリ－グ 第１０回大会 Ｆブロック ２０１６ | FS16: 表題６ | FT16: スーパーリ－グ 第１０回大会 Ｆブロック ２０１６ | FU16: 表題６ | FV16: スーパーリ－グ 第１０回大会 Ｆブロック ２０１６ | FW16: 表題６ | FX16: スーパーリ－グ 第１０回大会 Ｆブロック ２０１６ | FY16: 表題６ | FZ16: スーパーリ－グ 第１０回大会 Ｆブロック ２０１６ | GA16: 表題６ | GB16: スーパーリ－グ 第１０回大会 Ｆブロック ２０１６ | GC16: 表題６ | GD16: スーパーリ－グ 第１０回大会 Ｆブロック ２０１６ | GE16: 表題６ | GF16: スーパーリ－グ 第１０回大会 Ｆブロック ２０１６ | GG16: 表題６ | GH16: スーパーリ－グ 第１０回大会 Ｆブロック ２０１６ | GI16: 表題６ | GJ16: スーパーリ－グ 第１０回大会 Ｆブロック ２０１６ | GK16: 表題６ | GL16: スーパーリ－グ 第１０回大会 Ｆブロック ２０１６ | GM16: 表題６ | GN16: スーパーリ－グ 第１０回大会 Ｆブロック ２０１６ | GO16: 表題６ | GP16: スーパーリ－グ 第１０回大会 Ｆブロック ２０１６ | GQ16: 表題６ | GR16: スーパーリ－グ 第１０回大会 Ｆブロック ２０１６ | GS16: 表題６ | GT16: スーパーリ－グ 第１０回大会 Ｆブロック ２０１６ | GU16: 表題６ | GV16: スーパーリ－グ 第１０回大会 Ｆブロック ２０１６ | GW16: 表題６ | GX16: スーパーリ－グ 第１０回大会 Ｆブロック ２０１６ | GY16: 表題６ | GZ16: スーパーリ－グ 第１０回大会 Ｆブロック ２０１６ | HA16: 表題６ | HB16: スーパーリ－グ 第１０回大会 Ｆブロック ２０１６ | HC16: 表題６ | HD16: スーパーリ－グ 第１０回大会 Ｆブロック ２０１６ | HE16: 表題６ | HF16: スーパーリ－グ 第１０回大会 Ｆブロック ２０１６ | HG16: 表題６ | HH16: スーパーリ－グ 第１０回大会 Ｆブロック ２０１６ | HI16: 表題６ | HJ16: スーパーリ－グ 第１０回大会 Ｆブロック ２０１６ | HK16: 表題６ | HL16: スーパーリ－グ 第１０回大会 Ｆブロック ２０１６ | HM16: 表題６ | HN16: スーパーリ－グ 第１０回大会 Ｆブロック ２０１６ | HO16: 表題６ | HP16: スーパーリ－グ 第１０回大会 Ｆブロック ２０１６ | HQ16: 表題６ | HR16: スーパーリ－グ 第１０回大会 Ｆブロック ２０１６ | HS16: 表題６ | HT16: スーパーリ－グ 第１０回大会 Ｆブロック ２０１６ | HU16: 表題６ | HV16: スーパーリ－グ 第１０回大会 Ｆブロック ２０１６ | HW16: 表題６ | HX16: スーパーリ－グ 第１０回大会 Ｆブロック ２０１６ | HY16: 表題６ | HZ16: スーパーリ－グ 第１０回大会 Ｆブロック ２０１６ | IA16: 表題６ | IB16: スーパーリ－グ 第１０回大会 Ｆブロック ２０１６ | IC16: 表題６ | ID16: スーパーリ－グ 第１０回大会 Ｆブロック ２０１６ | IE16: 表題６ | IF16: スーパーリ－グ 第１０回大会 Ｆブロック ２０１６ | IG16: 表題６ | IH16: スーパーリ－グ 第１０回大会 Ｆブロック ２０１６ | II16: 表題６ | IJ16: スーパーリ－グ 第１０回大会 Ｆブロック ２０１６ | IK16: 表題６ | IL16: スーパーリ－グ 第１０回大会 Ｆブロック ２０１６ | IM16: 表題６ | IN16: スーパーリ－グ 第１０回大会 Ｆブロック ２０１６ | IO16: 表題６ | IP16: スーパーリ－グ 第１０回大会 Ｆブロック ２０１６ | IQ16: 表題６ | IR16: スーパーリ－グ 第１０回大会 Ｆブロック ２０１６ | IS16: 表題６ | IT16: スーパーリ－グ 第１０回大会 Ｆブロック ２０１６ | IU16: 表題６ | IV16: スーパーリ－グ 第１０回大会 Ｆブロック ２０１６
A18: 表題７ | B18: スーパーリ－グ 第１６回大会 Ｇブロック ２０２２ | C18: 表題７ | D18: スーパーリ－グ 第１０回大会 Ｇブロック ２０１６ | E18: 表題７ | F18: スーパーリ－グ 第１０回大会 Ｇブロック ２０１６ | G18: 表題７ | H18: スーパーリ－グ 第１０回大会 Ｇブロック ２０１６ | I18: 表題７ | J18: スーパーリ－グ 第１０回大会 Ｇブロック ２０１６ | K18: 表題７ | L18: スーパーリ－グ 第１０回大会 Ｇブロック ２０１６ | M18: 表題７ | N18: スーパーリ－グ 第１０回大会 Ｇブロック ２０１６ | O18: 表題７ | P18: スーパーリ－グ 第１０回大会 Ｇブロック ２０１６ | Q18: 表題７ | R18: スーパーリ－グ 第１０回大会 Ｇブロック ２０１６ | S18: 表題７ | T18: スーパーリ－グ 第１０回大会 Ｇブロック ２０１６ | U18: 表題７ | V18: スーパーリ－グ 第１０回大会 Ｇブロック ２０１６ | W18: 表題７ | X18: スーパーリ－グ 第１０回大会 Ｇブロック ２０１６ | Y18: 表題７ | Z18: スーパーリ－グ 第１０回大会 Ｇブロック ２０１６ | AA18: 表題７ | AB18: スーパーリ－グ 第１０回大会 Ｇブロック ２０１６ | AC18: 表題７ | AD18: スーパーリ－グ 第１０回大会 Ｇブロック ２０１６ | AE18: 表題７ | AF18: スーパーリ－グ 第１０回大会 Ｇブロック ２０１６ | AG18: 表題７ | AH18: スーパーリ－グ 第１０回大会 Ｇブロック ２０１６ | AI18: 表題７ | AJ18: スーパーリ－グ 第１０回大会 Ｇブロック ２０１６ | AK18: 表題７ | AL18: スーパーリ－グ 第１０回大会 Ｇブロック ２０１６ | AM18: 表題７ | AN18: スーパーリ－グ 第１０回大会 Ｇブロック ２０１６ | AO18: 表題７ | AP18: スーパーリ－グ 第１０回大会 Ｇブロック ２０１６ | AQ18: 表題７ | AR18: スーパーリ－グ 第１０回大会 Ｇブロック ２０１６ | AS18: 表題７ | AT18: スーパーリ－グ 第１０回大会 Ｇブロック ２０１６ | AU18: 表題７ | AV18: スーパーリ－グ 第１０回大会 Ｇブロック ２０１６ | AW18: 表題７ | AX18: スーパーリ－グ 第１０回大会 Ｇブロック ２０１６ | AY18: 表題７ | AZ18: スーパーリ－グ 第１０回大会 Ｇブロック ２０１６ | BA18: 表題７ | BB18: スーパーリ－グ 第１０回大会 Ｇブロック ２０１６ | BC18: 表題７ | BD18: スーパーリ－グ 第１０回大会 Ｇブロック ２０１６ | BE18: 表題７ | BF18: スーパーリ－グ 第１０回大会 Ｇブロック ２０１６ | BG18: 表題７ | BH18: スーパーリ－グ 第１０回大会 Ｇブロック ２０１６ | BI18: 表題７ | BJ18: スーパーリ－グ 第１０回大会 Ｇブロック ２０１６ | BK18: 表題７ | BL18: スーパーリ－グ 第１０回大会 Ｇブロック ２０１６ | BM18: 表題７ | BN18: スーパーリ－グ 第１０回大会 Ｇブロック ２０１６ | BO18: 表題７ | BP18: スーパーリ－グ 第１０回大会 Ｇブロック ２０１６ | BQ18: 表題７ | BR18: スーパーリ－グ 第１０回大会 Ｇブロック ２０１６ | BS18: 表題７ | BT18: スーパーリ－グ 第１０回大会 Ｇブロック ２０１６ | BU18: 表題７ | BV18: スーパーリ－グ 第１０回大会 Ｇブロック ２０１６ | BW18: 表題７ | BX18: スーパーリ－グ 第１０回大会 Ｇブロック ２０１６ | BY18: 表題７ | BZ18: スーパーリ－グ 第１０回大会 Ｇブロック ２０１６ | CA18: 表題７ | CB18: スーパーリ－グ 第１０回大会 Ｇブロック ２０１６ | CC18: 表題７ | CD18: スーパーリ－グ 第１０回大会 Ｇブロック ２０１６ | CE18: 表題７ | CF18: スーパーリ－グ 第１０回大会 Ｇブロック ２０１６ | CG18: 表題７ | CH18: スーパーリ－グ 第１０回大会 Ｇブロック ２０１６ | CI18: 表題７ | CJ18: スーパーリ－グ 第１０回大会 Ｇブロック ２０１６ | CK18: 表題７ | CL18: スーパーリ－グ 第１０回大会 Ｇブロック ２０１６ | CM18: 表題７ | CN18: スーパーリ－グ 第１０回大会 Ｇブロック ２０１６ | CO18: 表題７ | CP18: スーパーリ－グ 第１０回大会 Ｇブロック ２０１６ | CQ18: 表題７ | CR18: スーパーリ－グ 第１０回大会 Ｇブロック ２０１６ | CS18: 表題７ | CT18: スーパーリ－グ 第１０回大会 Ｇブロック ２０１６ | CU18: 表題７ | CV18: スーパーリ－グ 第１０回大会 Ｇブロック ２０１６ | CW18: 表題７ | CX18: スーパーリ－グ 第１０回大会 Ｇブロック ２０１６ | CY18: 表題７ | CZ18: スーパーリ－グ 第１０回大会 Ｇブロック ２０１６ | DA18: 表題７ | DB18: スーパーリ－グ 第１０回大会 Ｇブロック ２０１６ | DC18: 表題７ | DD18: スーパーリ－グ 第１０回大会 Ｇブロック ２０１６ | DE18: 表題７ | DF18: スーパーリ－グ 第１０回大会 Ｇブロック ２０１６ | DG18: 表題７ | DH18: スーパーリ－グ 第１０回大会 Ｇブロック ２０１６ | DI18: 表題７ | DJ18: スーパーリ－グ 第１０回大会 Ｇブロック ２０１６ | DK18: 表題７ | DL18: スーパーリ－グ 第１０回大会 Ｇブロック ２０１６ | DM18: 表題７ | DN18: スーパーリ－グ 第１０回大会 Ｇブロック ２０１６ | DO18: 表題７ | DP18: スーパーリ－グ 第１０回大会 Ｇブロック ２０１６ | DQ18: 表題７ | DR18: スーパーリ－グ 第１０回大会 Ｇブロック ２０１６ | DS18: 表題７ | DT18: スーパーリ－グ 第１０回大会 Ｇブロック ２０１６ | DU18: 表題７ | DV18: スーパーリ－グ 第１０回大会 Ｇブロック ２０１６ | DW18: 表題７ | DX18: スーパーリ－グ 第１０回大会 Ｇブロック ２０１６ | DY18: 表題７ | DZ18: スーパーリ－グ 第１０回大会 Ｇブロック ２０１６ | EA18: 表題７ | EB18: スーパーリ－グ 第１０回大会 Ｇブロック ２０１６ | EC18: 表題７ | ED18: スーパーリ－グ 第１０回大会 Ｇブロック ２０１６ | EE18: 表題７ | EF18: スーパーリ－グ 第１０回大会 Ｇブロック ２０１６ | EG18: 表題７ | EH18: スーパーリ－グ 第１０回大会 Ｇブロック ２０１６ | EI18: 表題７ | EJ18: スーパーリ－グ 第１０回大会 Ｇブロック ２０１６ | EK18: 表題７ | EL18: スーパーリ－グ 第１０回大会 Ｇブロック ２０１６ | EM18: 表題７ | EN18: スーパーリ－グ 第１０回大会 Ｇブロック ２０１６ | EO18: 表題７ | EP18: スーパーリ－グ 第１０回大会 Ｇブロック ２０１６ | EQ18: 表題７ | ER18: スーパーリ－グ 第１０回大会 Ｇブロック ２０１６ | ES18: 表題７ | ET18: スーパーリ－グ 第１０回大会 Ｇブロック ２０１６ | EU18: 表題７ | EV18: スーパーリ－グ 第１０回大会 Ｇブロック ２０１６ | EW18: 表題７ | EX18: スーパーリ－グ 第１０回大会 Ｇブロック ２０１６ | EY18: 表題７ | EZ18: スーパーリ－グ 第１０回大会 Ｇブロック ２０１６ | FA18: 表題７ | FB18: スーパーリ－グ 第１０回大会 Ｇブロック ２０１６ | FC18: 表題７ | FD18: スーパーリ－グ 第１０回大会 Ｇブロック ２０１６ | FE18: 表題７ | FF18: スーパーリ－グ 第１０回大会 Ｇブロック ２０１６ | FG18: 表題７ | FH18: スーパーリ－グ 第１０回大会 Ｇブロック ２０１６ | FI18: 表題７ | FJ18: スーパーリ－グ 第１０回大会 Ｇブロック ２０１６ | FK18: 表題７ | FL18: スーパーリ－グ 第１０回大会 Ｇブロック ２０１６ | FM18: 表題７ | FN18: スーパーリ－グ 第１０回大会 Ｇブロック ２０１６ | FO18: 表題７ | FP18: スーパーリ－グ 第１０回大会 Ｇブロック ２０１６ | FQ18: 表題７ | FR18: スーパーリ－グ 第１０回大会 Ｇブロック ２０１６ | FS18: 表題７ | FT18: スーパーリ－グ 第１０回大会 Ｇブロック ２０１６ | FU18: 表題７ | FV18: スーパーリ－グ 第１０回大会 Ｇブロック ２０１６ | FW18: 表題７ | FX18: スーパーリ－グ 第１０回大会 Ｇブロック ２０１６ | FY18: 表題７ | FZ18: スーパーリ－グ 第１０回大会 Ｇブロック ２０１６ | GA18: 表題７ | GB18: スーパーリ－グ 第１０回大会 Ｇブロック ２０１６ | GC18: 表題７ | GD18: スーパーリ－グ 第１０回大会 Ｇブロック ２０１６ | GE18: 表題７ | GF18: スーパーリ－グ 第１０回大会 Ｇブロック ２０１６ | GG18: 表題７ | GH18: スーパーリ－グ 第１０回大会 Ｇブロック ２０１６ | GI18: 表題７ | GJ18: スーパーリ－グ 第１０回大会 Ｇブロック ２０１６ | GK18: 表題７ | GL18: スーパーリ－グ 第１０回大会 Ｇブロック ２０１６ | GM18: 表題７ | GN18: スーパーリ－グ 第１０回大会 Ｇブロック ２０１６ | GO18: 表題７ | GP18: スーパーリ－グ 第１０回大会 Ｇブロック ２０１６ | GQ18: 表題７ | GR18: スーパーリ－グ 第１０回大会 Ｇブロック ２０１６ | GS18: 表題７ | GT18: スーパーリ－グ 第１０回大会 Ｇブロック ２０１６ | GU18: 表題７ | GV18: スーパーリ－グ 第１０回大会 Ｇブロック ２０１６ | GW18: 表題７ | GX18: スーパーリ－グ 第１０回大会 Ｇブロック ２０１６ | GY18: 表題７ | GZ18: スーパーリ－グ 第１０回大会 Ｇブロック ２０１６ | HA18: 表題７ | HB18: スーパーリ－グ 第１０回大会 Ｇブロック ２０１６ | HC18: 表題７ | HD18: スーパーリ－グ 第１０回大会 Ｇブロック ２０１６ | HE18: 表題７ | HF18: スーパーリ－グ 第１０回大会 Ｇブロック ２０１６ | HG18: 表題７ | HH18: スーパーリ－グ 第１０回大会 Ｇブロック ２０１６ | HI18: 表題７ | HJ18: スーパーリ－グ 第１０回大会 Ｇブロック ２０１６ | HK18: 表題７ | HL18: スーパーリ－グ 第１０回大会 Ｇブロック ２０１６ | HM18: 表題７ | HN18: スーパーリ－グ 第１０回大会 Ｇブロック ２０１６ | HO18: 表題７ | HP18: スーパーリ－グ 第１０回大会 Ｇブロック ２０１６ | HQ18: 表題７ | HR18: スーパーリ－グ 第１０回大会 Ｇブロック ２０１６ | HS18: 表題７ | HT18: スーパーリ－グ 第１０回大会 Ｇブロック ２０１６ | HU18: 表題７ | HV18: スーパーリ－グ 第１０回大会 Ｇブロック ２０１６ | HW18: 表題７ | HX18: スーパーリ－グ 第１０回大会 Ｇブロック ２０１６ | HY18: 表題７ | HZ18: スーパーリ－グ 第１０回大会 Ｇブロック ２０１６ | IA18: 表題７ | IB18: スーパーリ－グ 第１０回大会 Ｇブロック ２０１６ | IC18: 表題７ | ID18: スーパーリ－グ 第１０回大会 Ｇブロック ２０１６ | IE18: 表題７ | IF18: スーパーリ－グ 第１０回大会 Ｇブロック ２０１６ | IG18: 表題７ | IH18: スーパーリ－グ 第１０回大会 Ｇブロック ２０１６ | II18: 表題７ | IJ18: スーパーリ－グ 第１０回大会 Ｇブロック ２０１６ | IK18: 表題７ | IL18: スーパーリ－グ 第１０回大会 Ｇブロック ２０１６ | IM18: 表題７ | IN18: スーパーリ－グ 第１０回大会 Ｇブロック ２０１６ | IO18: 表題７ | IP18: スーパーリ－グ 第１０回大会 Ｇブロック ２０１６ | IQ18: 表題７ | IR18: スーパーリ－グ 第１０回大会 Ｇブロック ２０１６ | IS18: 表題７ | IT18: スーパーリ－グ 第１０回大会 Ｇブロック ２０１６ | IU18: 表題７ | IV18: スーパーリ－グ 第１０回大会 Ｇブロック ２０１６
A20: 表題８ | B20: スーパーリ－グ 第１６回大会 Ｈブロック ２０２２ | C20: 表題８ | D20: スーパーリ－グ 第１０回大会 Ｈブロック ２０１６ | E20: 表題８ | F20: スーパーリ－グ 第１０回大会 Ｈブロック ２０１６ | G20: 表題８ | H20: スーパーリ－グ 第１０回大会 Ｈブロック ２０１６ | I20: 表題８ | J20: スーパーリ－グ 第１０回大会 Ｈブロック ２０１６ | K20: 表題８ | L20: スーパーリ－グ 第１０回大会 Ｈブロック ２０１６ | M20: 表題８ | N20: スーパーリ－グ 第１０回大会 Ｈブロック ２０１６ | O20: 表題８ | P20: スーパーリ－グ 第１０回大会 Ｈブロック ２０１６ | Q20: 表題８ | R20: スーパーリ－グ 第１０回大会 Ｈブロック ２０１６ | S20: 表題８ | T20: スーパーリ－グ 第１０回大会 Ｈブロック ２０１６ | U20: 表題８ | V20: スーパーリ－グ 第１０回大会 Ｈブロック ２０１６ | W20: 表題８ | X20: スーパーリ－グ 第１０回大会 Ｈブロック ２０１６ | Y20: 表題８ | Z20: スーパーリ－グ 第１０回大会 Ｈブロック ２０１６ | AA20: 表題８ | AB20: スーパーリ－グ 第１０回大会 Ｈブロック ２０１６ | AC20: 表題８ | AD20: スーパーリ－グ 第１０回大会 Ｈブロック ２０１６ | AE20: 表題８ | AF20: スーパーリ－グ 第１０回大会 Ｈブロック ２０１６ | AG20: 表題８ | AH20: スーパーリ－グ 第１０回大会 Ｈブロック ２０１６ | AI20: 表題８ | AJ20: スーパーリ－グ 第１０回大会 Ｈブロック ２０１６ | AK20: 表題８ | AL20: スーパーリ－グ 第１０回大会 Ｈブロック ２０１６ | AM20: 表題８ | AN20: スーパーリ－グ 第１０回大会 Ｈブロック ２０１６ | AO20: 表題８ | AP20: スーパーリ－グ 第１０回大会 Ｈブロック ２０１６ | AQ20: 表題８ | AR20: スーパーリ－グ 第１０回大会 Ｈブロック ２０１６ | AS20: 表題８ | AT20: スーパーリ－グ 第１０回大会 Ｈブロック ２０１６ | AU20: 表題８ | AV20: スーパーリ－グ 第１０回大会 Ｈブロック ２０１６ | AW20: 表題８ | AX20: スーパーリ－グ 第１０回大会 Ｈブロック ２０１６ | AY20: 表題８ | AZ20: スーパーリ－グ 第１０回大会 Ｈブロック ２０１６ | BA20: 表題８ | BB20: スーパーリ－グ 第１０回大会 Ｈブロック ２０１６ | BC20: 表題８ | BD20: スーパーリ－グ 第１０回大会 Ｈブロック ２０１６ | BE20: 表題８ | BF20: スーパーリ－グ 第１０回大会 Ｈブロック ２０１６ | BG20: 表題８ | BH20: スーパーリ－グ 第１０回大会 Ｈブロック ２０１６ | BI20: 表題８ | BJ20: スーパーリ－グ 第１０回大会 Ｈブロック ２０１６ | BK20: 表題８ | BL20: スーパーリ－グ 第１０回大会 Ｈブロック ２０１６ | BM20: 表題８ | BN20: スーパーリ－グ 第１０回大会 Ｈブロック ２０１６ | BO20: 表題８ | BP20: スーパーリ－グ 第１０回大会 Ｈブロック ２０１６ | BQ20: 表題８ | BR20: スーパーリ－グ 第１０回大会 Ｈブロック ２０１６ | BS20: 表題８ | BT20: スーパーリ－グ 第１０回大会 Ｈブロック ２０１６ | BU20: 表題８ | BV20: スーパーリ－グ 第１０回大会 Ｈブロック ２０１６ | BW20: 表題８ | BX20: スーパーリ－グ 第１０回大会 Ｈブロック ２０１６ | BY20: 表題８ | BZ20: スーパーリ－グ 第１０回大会 Ｈブロック ２０１６ | CA20: 表題８ | CB20: スーパーリ－グ 第１０回大会 Ｈブロック ２０１６ | CC20: 表題８ | CD20: スーパーリ－グ 第１０回大会 Ｈブロック ２０１６ | CE20: 表題８ | CF20: スーパーリ－グ 第１０回大会 Ｈブロック ２０１６ | CG20: 表題８ | CH20: スーパーリ－グ 第１０回大会 Ｈブロック ２０１６ | CI20: 表題８ | CJ20: スーパーリ－グ 第１０回大会 Ｈブロック ２０１６ | CK20: 表題８ | CL20: スーパーリ－グ 第１０回大会 Ｈブロック ２０１６ | CM20: 表題８ | CN20: スーパーリ－グ 第１０回大会 Ｈブロック ２０１６ | CO20: 表題８ | CP20: スーパーリ－グ 第１０回大会 Ｈブロック ２０１６ | CQ20: 表題８ | CR20: スーパーリ－グ 第１０回大会 Ｈブロック ２０１６ | CS20: 表題８ | CT20: スーパーリ－グ 第１０回大会 Ｈブロック ２０１６ | CU20: 表題８ | CV20: スーパーリ－グ 第１０回大会 Ｈブロック ２０１６ | CW20: 表題８ | CX20: スーパーリ－グ 第１０回大会 Ｈブロック ２０１６ | CY20: 表題８ | CZ20: スーパーリ－グ 第１０回大会 Ｈブロック ２０１６ | DA20: 表題８ | DB20: スーパーリ－グ 第１０回大会 Ｈブロック ２０１６ | DC20: 表題８ | DD20: スーパーリ－グ 第１０回大会 Ｈブロック ２０１６ | DE20: 表題８ | DF20: スーパーリ－グ 第１０回大会 Ｈブロック ２０１６ | DG20: 表題８ | DH20: スーパーリ－グ 第１０回大会 Ｈブロック ２０１６ | DI20: 表題８ | DJ20: スーパーリ－グ 第１０回大会 Ｈブロック ２０１６ | DK20: 表題８ | DL20: スーパーリ－グ 第１０回大会 Ｈブロック ２０１６ | DM20: 表題８ | DN20: スーパーリ－グ 第１０回大会 Ｈブロック ２０１６ | DO20: 表題８ | DP20: スーパーリ－グ 第１０回大会 Ｈブロック ２０１６ | DQ20: 表題８ | DR20: スーパーリ－グ 第１０回大会 Ｈブロック ２０１６ | DS20: 表題８ | DT20: スーパーリ－グ 第１０回大会 Ｈブロック ２０１６ | DU20: 表題８ | DV20: スーパーリ－グ 第１０回大会 Ｈブロック ２０１６ | DW20: 表題８ | DX20: スーパーリ－グ 第１０回大会 Ｈブロック ２０１６ | DY20: 表題８ | DZ20: スーパーリ－グ 第１０回大会 Ｈブロック ２０１６ | EA20: 表題８ | EB20: スーパーリ－グ 第１０回大会 Ｈブロック ２０１６ | EC20: 表題８ | ED20: スーパーリ－グ 第１０回大会 Ｈブロック ２０１６ | EE20: 表題８ | EF20: スーパーリ－グ 第１０回大会 Ｈブロック ２０１６ | EG20: 表題８ | EH20: スーパーリ－グ 第１０回大会 Ｈブロック ２０１６ | EI20: 表題８ | EJ20: スーパーリ－グ 第１０回大会 Ｈブロック ２０１６ | EK20: 表題８ | EL20: スーパーリ－グ 第１０回大会 Ｈブロック ２０１６ | EM20: 表題８ | EN20: スーパーリ－グ 第１０回大会 Ｈブロック ２０１６ | EO20: 表題８ | EP20: スーパーリ－グ 第１０回大会 Ｈブロック ２０１６ | EQ20: 表題８ | ER20: スーパーリ－グ 第１０回大会 Ｈブロック ２０１６ | ES20: 表題８ | ET20: スーパーリ－グ 第１０回大会 Ｈブロック ２０１６ | EU20: 表題８ | EV20: スーパーリ－グ 第１０回大会 Ｈブロック ２０１６ | EW20: 表題８ | EX20: スーパーリ－グ 第１０回大会 Ｈブロック ２０１６ | EY20: 表題８ | EZ20: スーパーリ－グ 第１０回大会 Ｈブロック ２０１６ | FA20: 表題８ | FB20: スーパーリ－グ 第１０回大会 Ｈブロック ２０１６ | FC20: 表題８ | FD20: スーパーリ－グ 第１０回大会 Ｈブロック ２０１６ | FE20: 表題８ | FF20: スーパーリ－グ 第１０回大会 Ｈブロック ２０１６ | FG20: 表題８ | FH20: スーパーリ－グ 第１０回大会 Ｈブロック ２０１６ | FI20: 表題８ | FJ20: スーパーリ－グ 第１０回大会 Ｈブロック ２０１６ | FK20: 表題８ | FL20: スーパーリ－グ 第１０回大会 Ｈブロック ２０１６ | FM20: 表題８ | FN20: スーパーリ－グ 第１０回大会 Ｈブロック ２０１６ | FO20: 表題８ | FP20: スーパーリ－グ 第１０回大会 Ｈブロック ２０１６ | FQ20: 表題８ | FR20: スーパーリ－グ 第１０回大会 Ｈブロック ２０１６ | FS20: 表題８ | FT20: スーパーリ－グ 第１０回大会 Ｈブロック ２０１６ | FU20: 表題８ | FV20: スーパーリ－グ 第１０回大会 Ｈブロック ２０１６ | FW20: 表題８ | FX20: スーパーリ－グ 第１０回大会 Ｈブロック ２０１６ | FY20: 表題８ | FZ20: スーパーリ－グ 第１０回大会 Ｈブロック ２０１６ | GA20: 表題８ | GB20: スーパーリ－グ 第１０回大会 Ｈブロック ２０１６ | GC20: 表題８ | GD20: スーパーリ－グ 第１０回大会 Ｈブロック ２０１６ | GE20: 表題８ | GF20: スーパーリ－グ 第１０回大会 Ｈブロック ２０１６ | GG20: 表題８ | GH20: スーパーリ－グ 第１０回大会 Ｈブロック ２０１６ | GI20: 表題８ | GJ20: スーパーリ－グ 第１０回大会 Ｈブロック ２０１６ | GK20: 表題８ | GL20: スーパーリ－グ 第１０回大会 Ｈブロック ２０１６ | GM20: 表題８ | GN20: スーパーリ－グ 第１０回大会 Ｈブロック ２０１６ | GO20: 表題８ | GP20: スーパーリ－グ 第１０回大会 Ｈブロック ２０１６ | GQ20: 表題８ | GR20: スーパーリ－グ 第１０回大会 Ｈブロック ２０１６ | GS20: 表題８ | GT20: スーパーリ－グ 第１０回大会 Ｈブロック ２０１６ | GU20: 表題８ | GV20: スーパーリ－グ 第１０回大会 Ｈブロック ２０１６ | GW20: 表題８ | GX20: スーパーリ－グ 第１０回大会 Ｈブロック ２０１６ | GY20: 表題８ | GZ20: スーパーリ－グ 第１０回大会 Ｈブロック ２０１６ | HA20: 表題８ | HB20: スーパーリ－グ 第１０回大会 Ｈブロック ２０１６ | HC20: 表題８ | HD20: スーパーリ－グ 第１０回大会 Ｈブロック ２０１６ | HE20: 表題８ | HF20: スーパーリ－グ 第１０回大会 Ｈブロック ２０１６ | HG20: 表題８ | HH20: スーパーリ－グ 第１０回大会 Ｈブロック ２０１６ | HI20: 表題８ | HJ20: スーパーリ－グ 第１０回大会 Ｈブロック ２０１６ | HK20: 表題８ | HL20: スーパーリ－グ 第１０回大会 Ｈブロック ２０１６ | HM20: 表題８ | HN20: スーパーリ－グ 第１０回大会 Ｈブロック ２０１６ | HO20: 表題８ | HP20: スーパーリ－グ 第１０回大会 Ｈブロック ２０１６ | HQ20: 表題８ | HR20: スーパーリ－グ 第１０回大会 Ｈブロック ２０１６ | HS20: 表題８ | HT20: スーパーリ－グ 第１０回大会 Ｈブロック ２０１６ | HU20: 表題８ | HV20: スーパーリ－グ 第１０回大会 Ｈブロック ２０１６ | HW20: 表題８ | HX20: スーパーリ－グ 第１０回大会 Ｈブロック ２０１６ | HY20: 表題８ | HZ20: スーパーリ－グ 第１０回大会 Ｈブロック ２０１６ | IA20: 表題８ | IB20: スーパーリ－グ 第１０回大会 Ｈブロック ２０１６ | IC20: 表題８ | ID20: スーパーリ－グ 第１０回大会 Ｈブロック ２０１６ | IE20: 表題８ | IF20: スーパーリ－グ 第１０回大会 Ｈブロック ２０１６ | IG20: 表題８ | IH20: スーパーリ－グ 第１０回大会 Ｈブロック ２０１６ | II20: 表題８ | IJ20: スーパーリ－グ 第１０回大会 Ｈブロック ２０１６ | IK20: 表題８ | IL20: スーパーリ－グ 第１０回大会 Ｈブロック ２０１６ | IM20: 表題８ | IN20: スーパーリ－グ 第１０回大会 Ｈブロック ２０１６ | IO20: 表題８ | IP20: スーパーリ－グ 第１０回大会 Ｈブロック ２０１６ | IQ20: 表題８ | IR20: スーパーリ－グ 第１０回大会 Ｈブロック ２０１６ | IS20: 表題８ | IT20: スーパーリ－グ 第１０回大会 Ｈブロック ２０１６ | IU20: 表題８ | IV20: スーパーリ－グ 第１０回大会 Ｈブロック ２０１６
A22: 表題９ | B22: スーパーリ－グ 第１６回大会 Ｉブロック ２０２２ | C22: 表題９ | D22: スーパーリ－グ 第１０回大会 Ｉブロック ２０１６ | E22: 表題９ | F22: スーパーリ－グ 第１０回大会 Ｉブロック ２０１６ | G22: 表題９ | H22: スーパーリ－グ 第１０回大会 Ｉブロック ２０１６ | I22: 表題９ | J22: スーパーリ－グ 第１０回大会 Ｉブロック ２０１６ | K22: 表題９ | L22: スーパーリ－グ 第１０回大会 Ｉブロック ２０１６ | M22: 表題９ | N22: スーパーリ－グ 第１０回大会 Ｉブロック ２０１６ | O22: 表題９ | P22: スーパーリ－グ 第１０回大会 Ｉブロック ２０１６ | Q22: 表題９ | R22: スーパーリ－グ 第１０回大会 Ｉブロック ２０１６ | S22: 表題９ | T22: スーパーリ－グ 第１０回大会 Ｉブロック ２０１６ | U22: 表題９ | V22: スーパーリ－グ 第１０回大会 Ｉブロック ２０１６ | W22: 表題９ | X22: スーパーリ－グ 第１０回大会 Ｉブロック ２０１６ | Y22: 表題９ | Z22: スーパーリ－グ 第１０回大会 Ｉブロック ２０１６ | AA22: 表題９ | AB22: スーパーリ－グ 第１０回大会 Ｉブロック ２０１６ | AC22: 表題９ | AD22: スーパーリ－グ 第１０回大会 Ｉブロック ２０１６ | AE22: 表題９ | AF22: スーパーリ－グ 第１０回大会 Ｉブロック ２０１６ | AG22: 表題９ | AH22: スーパーリ－グ 第１０回大会 Ｉブロック ２０１６ | AI22: 表題９ | AJ22: スーパーリ－グ 第１０回大会 Ｉブロック ２０１６ | AK22: 表題９ | AL22: スーパーリ－グ 第１０回大会 Ｉブロック ２０１６ | AM22: 表題９ | AN22: スーパーリ－グ 第１０回大会 Ｉブロック ２０１６ | AO22: 表題９ | AP22: スーパーリ－グ 第１０回大会 Ｉブロック ２０１６ | AQ22: 表題９ | AR22: スーパーリ－グ 第１０回大会 Ｉブロック ２０１６ | AS22: 表題９ | AT22: スーパーリ－グ 第１０回大会 Ｉブロック ２０１６ | AU22: 表題９ | AV22: スーパーリ－グ 第１０回大会 Ｉブロック ２０１６ | AW22: 表題９ | AX22: スーパーリ－グ 第１０回大会 Ｉブロック ２０１６ | AY22: 表題９ | AZ22: スーパーリ－グ 第１０回大会 Ｉブロック ２０１６ | BA22: 表題９ | BB22: スーパーリ－グ 第１０回大会 Ｉブロック ２０１６ | BC22: 表題９ | BD22: スーパーリ－グ 第１０回大会 Ｉブロック ２０１６ | BE22: 表題９ | BF22: スーパーリ－グ 第１０回大会 Ｉブロック ２０１６ | BG22: 表題９ | BH22: スーパーリ－グ 第１０回大会 Ｉブロック ２０１６ | BI22: 表題９ | BJ22: スーパーリ－グ 第１０回大会 Ｉブロック ２０１６ | BK22: 表題９ | BL22: スーパーリ－グ 第１０回大会 Ｉブロック ２０１６ | BM22: 表題９ | BN22: スーパーリ－グ 第１０回大会 Ｉブロック ２０１６ | BO22: 表題９ | BP22: スーパーリ－グ 第１０回大会 Ｉブロック ２０１６ | BQ22: 表題９ | BR22: スーパーリ－グ 第１０回大会 Ｉブロック ２０１６ | BS22: 表題９ | BT22: スーパーリ－グ 第１０回大会 Ｉブロック ２０１６ | BU22: 表題９ | BV22: スーパーリ－グ 第１０回大会 Ｉブロック ２０１６ | BW22: 表題９ | BX22: スーパーリ－グ 第１０回大会 Ｉブロック ２０１６ | BY22: 表題９ | BZ22: スーパーリ－グ 第１０回大会 Ｉブロック ２０１６ | CA22: 表題９ | CB22: スーパーリ－グ 第１０回大会 Ｉブロック ２０１６ | CC22: 表題９ | CD22: スーパーリ－グ 第１０回大会 Ｉブロック ２０１６ | CE22: 表題９ | CF22: スーパーリ－グ 第１０回大会 Ｉブロック ２０１６ | CG22: 表題９ | CH22: スーパーリ－グ 第１０回大会 Ｉブロック ２０１６ | CI22: 表題９ | CJ22: スーパーリ－グ 第１０回大会 Ｉブロック ２０１６ | CK22: 表題９ | CL22: スーパーリ－グ 第１０回大会 Ｉブロック ２０１６ | CM22: 表題９ | CN22: スーパーリ－グ 第１０回大会 Ｉブロック ２０１６ | CO22: 表題９ | CP22: スーパーリ－グ 第１０回大会 Ｉブロック ２０１６ | CQ22: 表題９ | CR22: スーパーリ－グ 第１０回大会 Ｉブロック ２０１６ | CS22: 表題９ | CT22: スーパーリ－グ 第１０回大会 Ｉブロック ２０１６ | CU22: 表題９ | CV22: スーパーリ－グ 第１０回大会 Ｉブロック ２０１６ | CW22: 表題９ | CX22: スーパーリ－グ 第１０回大会 Ｉブロック ２０１６ | CY22: 表題９ | CZ22: スーパーリ－グ 第１０回大会 Ｉブロック ２０１６ | DA22: 表題９ | DB22: スーパーリ－グ 第１０回大会 Ｉブロック ２０１６ | DC22: 表題９ | DD22: スーパーリ－グ 第１０回大会 Ｉブロック ２０１６ | DE22: 表題９ | DF22: スーパーリ－グ 第１０回大会 Ｉブロック ２０１６ | DG22: 表題９ | DH22: スーパーリ－グ 第１０回大会 Ｉブロック ２０１６ | DI22: 表題９ | DJ22: スーパーリ－グ 第１０回大会 Ｉブロック ２０１６ | DK22: 表題９ | DL22: スーパーリ－グ 第１０回大会 Ｉブロック ２０１６ | DM22: 表題９ | DN22: スーパーリ－グ 第１０回大会 Ｉブロック ２０１６ | DO22: 表題９ | DP22: スーパーリ－グ 第１０回大会 Ｉブロック ２０１６ | DQ22: 表題９ | DR22: スーパーリ－グ 第１０回大会 Ｉブロック ２０１６ | DS22: 表題９ | DT22: スーパーリ－グ 第１０回大会 Ｉブロック ２０１６ | DU22: 表題９ | DV22: スーパーリ－グ 第１０回大会 Ｉブロック ２０１６ | DW22: 表題９ | DX22: スーパーリ－グ 第１０回大会 Ｉブロック ２０１６ | DY22: 表題９ | DZ22: スーパーリ－グ 第１０回大会 Ｉブロック ２０１６ | EA22: 表題９ | EB22: スーパーリ－グ 第１０回大会 Ｉブロック ２０１６ | EC22: 表題９ | ED22: スーパーリ－グ 第１０回大会 Ｉブロック ２０１６ | EE22: 表題９ | EF22: スーパーリ－グ 第１０回大会 Ｉブロック ２０１６ | EG22: 表題９ | EH22: スーパーリ－グ 第１０回大会 Ｉブロック ２０１６ | EI22: 表題９ | EJ22: スーパーリ－グ 第１０回大会 Ｉブロック ２０１６ | EK22: 表題９ | EL22: スーパーリ－グ 第１０回大会 Ｉブロック ２０１６ | EM22: 表題９ | EN22: スーパーリ－グ 第１０回大会 Ｉブロック ２０１６ | EO22: 表題９ | EP22: スーパーリ－グ 第１０回大会 Ｉブロック ２０１６ | EQ22: 表題９ | ER22: スーパーリ－グ 第１０回大会 Ｉブロック ２０１６ | ES22: 表題９ | ET22: スーパーリ－グ 第１０回大会 Ｉブロック ２０１６ | EU22: 表題９ | EV22: スーパーリ－グ 第１０回大会 Ｉブロック ２０１６ | EW22: 表題９ | EX22: スーパーリ－グ 第１０回大会 Ｉブロック ２０１６ | EY22: 表題９ | EZ22: スーパーリ－グ 第１０回大会 Ｉブロック ２０１６ | FA22: 表題９ | FB22: スーパーリ－グ 第１０回大会 Ｉブロック ２０１６ | FC22: 表題９ | FD22: スーパーリ－グ 第１０回大会 Ｉブロック ２０１６ | FE22: 表題９ | FF22: スーパーリ－グ 第１０回大会 Ｉブロック ２０１６ | FG22: 表題９ | FH22: スーパーリ－グ 第１０回大会 Ｉブロック ２０１６ | FI22: 表題９ | FJ22: スーパーリ－グ 第１０回大会 Ｉブロック ２０１６ | FK22: 表題９ | FL22: スーパーリ－グ 第１０回大会 Ｉブロック ２０１６ | FM22: 表題９ | FN22: スーパーリ－グ 第１０回大会 Ｉブロック ２０１６ | FO22: 表題９ | FP22: スーパーリ－グ 第１０回大会 Ｉブロック ２０１６ | FQ22: 表題９ | FR22: スーパーリ－グ 第１０回大会 Ｉブロック ２０１６ | FS22: 表題９ | FT22: スーパーリ－グ 第１０回大会 Ｉブロック ２０１６ | FU22: 表題９ | FV22: スーパーリ－グ 第１０回大会 Ｉブロック ２０１６ | FW22: 表題９ | FX22: スーパーリ－グ 第１０回大会 Ｉブロック ２０１６ | FY22: 表題９ | FZ22: スーパーリ－グ 第１０回大会 Ｉブロック ２０１６ | GA22: 表題９ | GB22: スーパーリ－グ 第１０回大会 Ｉブロック ２０１６ | GC22: 表題９ | GD22: スーパーリ－グ 第１０回大会 Ｉブロック ２０１６ | GE22: 表題９ | GF22: スーパーリ－グ 第１０回大会 Ｉブロック ２０１６ | GG22: 表題９ | GH22: スーパーリ－グ 第１０回大会 Ｉブロック ２０１６ | GI22: 表題９ | GJ22: スーパーリ－グ 第１０回大会 Ｉブロック ２０１６ | GK22: 表題９ | GL22: スーパーリ－グ 第１０回大会 Ｉブロック ２０１６ | GM22: 表題９ | GN22: スーパーリ－グ 第１０回大会 Ｉブロック ２０１６ | GO22: 表題９ | GP22: スーパーリ－グ 第１０回大会 Ｉブロック ２０１６ | GQ22: 表題９ | GR22: スーパーリ－グ 第１０回大会 Ｉブロック ２０１６ | GS22: 表題９ | GT22: スーパーリ－グ 第１０回大会 Ｉブロック ２０１６ | GU22: 表題９ | GV22: スーパーリ－グ 第１０回大会 Ｉブロック ２０１６ | GW22: 表題９ | GX22: スーパーリ－グ 第１０回大会 Ｉブロック ２０１６ | GY22: 表題９ | GZ22: スーパーリ－グ 第１０回大会 Ｉブロック ２０１６ | HA22: 表題９ | HB22: スーパーリ－グ 第１０回大会 Ｉブロック ２０１６ | HC22: 表題９ | HD22: スーパーリ－グ 第１０回大会 Ｉブロック ２０１６ | HE22: 表題９ | HF22: スーパーリ－グ 第１０回大会 Ｉブロック ２０１６ | HG22: 表題９ | HH22: スーパーリ－グ 第１０回大会 Ｉブロック ２０１６ | HI22: 表題９ | HJ22: スーパーリ－グ 第１０回大会 Ｉブロック ２０１６ | HK22: 表題９ | HL22: スーパーリ－グ 第１０回大会 Ｉブロック ２０１６ | HM22: 表題９ | HN22: スーパーリ－グ 第１０回大会 Ｉブロック ２０１６ | HO22: 表題９ | HP22: スーパーリ－グ 第１０回大会 Ｉブロック ２０１６ | HQ22: 表題９ | HR22: スーパーリ－グ 第１０回大会 Ｉブロック ２０１６ | HS22: 表題９ | HT22: スーパーリ－グ 第１０回大会 Ｉブロック ２０１６ | HU22: 表題９ | HV22: スーパーリ－グ 第１０回大会 Ｉブロック ２０１６ | HW22: 表題９ | HX22: スーパーリ－グ 第１０回大会 Ｉブロック ２０１６ | HY22: 表題９ | HZ22: スーパーリ－グ 第１０回大会 Ｉブロック ２０１６ | IA22: 表題９ | IB22: スーパーリ－グ 第１０回大会 Ｉブロック ２０１６ | IC22: 表題９ | ID22: スーパーリ－グ 第１０回大会 Ｉブロック ２０１６ | IE22: 表題９ | IF22: スーパーリ－グ 第１０回大会 Ｉブロック ２０１６ | IG22: 表題９ | IH22: スーパーリ－グ 第１０回大会 Ｉブロック ２０１６ | II22: 表題９ | IJ22: スーパーリ－グ 第１０回大会 Ｉブロック ２０１６ | IK22: 表題９ | IL22: スーパーリ－グ 第１０回大会 Ｉブロック ２０１６ | IM22: 表題９ | IN22: スーパーリ－グ 第１０回大会 Ｉブロック ２０１６ | IO22: 表題９ | IP22: スーパーリ－グ 第１０回大会 Ｉブロック ２０１６ | IQ22: 表題９ | IR22: スーパーリ－グ 第１０回大会 Ｉブロック ２０１６ | IS22: 表題９ | IT22: スーパーリ－グ 第１０回大会 Ｉブロック ２０１６ | IU22: 表題９ | IV22: スーパーリ－グ 第１０回大会 Ｉブロック ２０１６
A24: 表題１０ | B24: スーパーリ－グ 第１６回大会 Ｊブロック ２０２２ | C24: 表題１０ | D24: スーパーリ－グ 第１０回大会 Ｊブロック ２０１６ | E24: 表題１０ | F24: スーパーリ－グ 第１０回大会 Ｊブロック ２０１６ | G24: 表題１０ | H24: スーパーリ－グ 第１０回大会 Ｊブロック ２０１６ | I24: 表題１０ | J24: スーパーリ－グ 第１０回大会 Ｊブロック ２０１６ | K24: 表題１０ | L24: スーパーリ－グ 第１０回大会 Ｊブロック ２０１６ | M24: 表題１０ | N24: スーパーリ－グ 第１０回大会 Ｊブロック ２０１６ | O24: 表題１０ | P24: スーパーリ－グ 第１０回大会 Ｊブロック ２０１６ | Q24: 表題１０ | R24: スーパーリ－グ 第１０回大会 Ｊブロック ２０１６ | S24: 表題１０ | T24: スーパーリ－グ 第１０回大会 Ｊブロック ２０１６ | U24: 表題１０ | V24: スーパーリ－グ 第１０回大会 Ｊブロック ２０１６ | W24: 表題１０ | X24: スーパーリ－グ 第１０回大会 Ｊブロック ２０１６ | Y24: 表題１０ | Z24: スーパーリ－グ 第１０回大会 Ｊブロック ２０１６ | AA24: 表題１０ | AB24: スーパーリ－グ 第１０回大会 Ｊブロック ２０１６ | AC24: 表題１０ | AD24: スーパーリ－グ 第１０回大会 Ｊブロック ２０１６ | AE24: 表題１０ | AF24: スーパーリ－グ 第１０回大会 Ｊブロック ２０１６ | AG24: 表題１０ | AH24: スーパーリ－グ 第１０回大会 Ｊブロック ２０１６ | AI24: 表題１０ | AJ24: スーパーリ－グ 第１０回大会 Ｊブロック ２０１６ | AK24: 表題１０ | AL24: スーパーリ－グ 第１０回大会 Ｊブロック ２０１６ | AM24: 表題１０ | AN24: スーパーリ－グ 第１０回大会 Ｊブロック ２０１６ | AO24: 表題１０ | AP24: スーパーリ－グ 第１０回大会 Ｊブロック ２０１６ | AQ24: 表題１０ | AR24: スーパーリ－グ 第１０回大会 Ｊブロック ２０１６ | AS24: 表題１０ | AT24: スーパーリ－グ 第１０回大会 Ｊブロック ２０１６ | AU24: 表題１０ | AV24: スーパーリ－グ 第１０回大会 Ｊブロック ２０１６ | AW24: 表題１０ | AX24: スーパーリ－グ 第１０回大会 Ｊブロック ２０１６ | AY24: 表題１０ | AZ24: スーパーリ－グ 第１０回大会 Ｊブロック ２０１６ | BA24: 表題１０ | BB24: スーパーリ－グ 第１０回大会 Ｊブロック ２０１６ | BC24: 表題１０ | BD24: スーパーリ－グ 第１０回大会 Ｊブロック ２０１６ | BE24: 表題１０ | BF24: スーパーリ－グ 第１０回大会 Ｊブロック ２０１６ | BG24: 表題１０ | BH24: スーパーリ－グ 第１０回大会 Ｊブロック ２０１６ | BI24: 表題１０ | BJ24: スーパーリ－グ 第１０回大会 Ｊブロック ２０１６ | BK24: 表題１０ | BL24: スーパーリ－グ 第１０回大会 Ｊブロック ２０１６ | BM24: 表題１０ | BN24: スーパーリ－グ 第１０回大会 Ｊブロック ２０１６ | BO24: 表題１０ | BP24: スーパーリ－グ 第１０回大会 Ｊブロック ２０１６ | BQ24: 表題１０ | BR24: スーパーリ－グ 第１０回大会 Ｊブロック ２０１６ | BS24: 表題１０ | BT24: スーパーリ－グ 第１０回大会 Ｊブロック ２０１６ | BU24: 表題１０ | BV24: スーパーリ－グ 第１０回大会 Ｊブロック ２０１６ | BW24: 表題１０ | BX24: スーパーリ－グ 第１０回大会 Ｊブロック ２０１６ | BY24: 表題１０ | BZ24: スーパーリ－グ 第１０回大会 Ｊブロック ２０１６ | CA24: 表題１０ | CB24: スーパーリ－グ 第１０回大会 Ｊブロック ２０１６ | CC24: 表題１０ | CD24: スーパーリ－グ 第１０回大会 Ｊブロック ２０１６ | CE24: 表題１０ | CF24: スーパーリ－グ 第１０回大会 Ｊブロック ２０１６ | CG24: 表題１０ | CH24: スーパーリ－グ 第１０回大会 Ｊブロック ２０１６ | CI24: 表題１０ | CJ24: スーパーリ－グ 第１０回大会 Ｊブロック ２０１６ | CK24: 表題１０ | CL24: スーパーリ－グ 第１０回大会 Ｊブロック ２０１６ | CM24: 表題１０ | CN24: スーパーリ－グ 第１０回大会 Ｊブロック ２０１６ | CO24: 表題１０ | CP24: スーパーリ－グ 第１０回大会 Ｊブロック ２０１６ | CQ24: 表題１０ | CR24: スーパーリ－グ 第１０回大会 Ｊブロック ２０１６ | CS24: 表題１０ | CT24: スーパーリ－グ 第１０回大会 Ｊブロック ２０１６ | CU24: 表題１０ | CV24: スーパーリ－グ 第１０回大会 Ｊブロック ２０１６ | CW24: 表題１０ | CX24: スーパーリ－グ 第１０回大会 Ｊブロック ２０１６ | CY24: 表題１０ | CZ24: スーパーリ－グ 第１０回大会 Ｊブロック ２０１６ | DA24: 表題１０ | DB24: スーパーリ－グ 第１０回大会 Ｊブロック ２０１６ | DC24: 表題１０ | DD24: スーパーリ－グ 第１０回大会 Ｊブロック ２０１６ | DE24: 表題１０ | DF24: スーパーリ－グ 第１０回大会 Ｊブロック ２０１６ | DG24: 表題１０ | DH24: スーパーリ－グ 第１０回大会 Ｊブロック ２０１６ | DI24: 表題１０ | DJ24: スーパーリ－グ 第１０回大会 Ｊブロック ２０１６ | DK24: 表題１０ | DL24: スーパーリ－グ 第１０回大会 Ｊブロック ２０１６ | DM24: 表題１０ | DN24: スーパーリ－グ 第１０回大会 Ｊブロック ２０１６ | DO24: 表題１０ | DP24: スーパーリ－グ 第１０回大会 Ｊブロック ２０１６ | DQ24: 表題１０ | DR24: スーパーリ－グ 第１０回大会 Ｊブロック ２０１６ | DS24: 表題１０ | DT24: スーパーリ－グ 第１０回大会 Ｊブロック ２０１６ | DU24: 表題１０ | DV24: スーパーリ－グ 第１０回大会 Ｊブロック ２０１６ | DW24: 表題１０ | DX24: スーパーリ－グ 第１０回大会 Ｊブロック ２０１６ | DY24: 表題１０ | DZ24: スーパーリ－グ 第１０回大会 Ｊブロック ２０１６ | EA24: 表題１０ | EB24: スーパーリ－グ 第１０回大会 Ｊブロック ２０１６ | EC24: 表題１０ | ED24: スーパーリ－グ 第１０回大会 Ｊブロック ２０１６ | EE24: 表題１０ | EF24: スーパーリ－グ 第１０回大会 Ｊブロック ２０１６ | EG24: 表題１０ | EH24: スーパーリ－グ 第１０回大会 Ｊブロック ２０１６ | EI24: 表題１０ | EJ24: スーパーリ－グ 第１０回大会 Ｊブロック ２０１６ | EK24: 表題１０ | EL24: スーパーリ－グ 第１０回大会 Ｊブロック ２０１６ | EM24: 表題１０ | EN24: スーパーリ－グ 第１０回大会 Ｊブロック ２０１６ | EO24: 表題１０ | EP24: スーパーリ－グ 第１０回大会 Ｊブロック ２０１６ | EQ24: 表題１０ | ER24: スーパーリ－グ 第１０回大会 Ｊブロック ２０１６ | ES24: 表題１０ | ET24: スーパーリ－グ 第１０回大会 Ｊブロック ２０１６ | EU24: 表題１０ | EV24: スーパーリ－グ 第１０回大会 Ｊブロック ２０１６ | EW24: 表題１０ | EX24: スーパーリ－グ 第１０回大会 Ｊブロック ２０１６ | EY24: 表題１０ | EZ24: スーパーリ－グ 第１０回大会 Ｊブロック ２０１６ | FA24: 表題１０ | FB24: スーパーリ－グ 第１０回大会 Ｊブロック ２０１６ | FC24: 表題１０ | FD24: スーパーリ－グ 第１０回大会 Ｊブロック ２０１６ | FE24: 表題１０ | FF24: スーパーリ－グ 第１０回大会 Ｊブロック ２０１６ | FG24: 表題１０ | FH24: スーパーリ－グ 第１０回大会 Ｊブロック ２０１６ | FI24: 表題１０ | FJ24: スーパーリ－グ 第１０回大会 Ｊブロック ２０１６ | FK24: 表題１０ | FL24: スーパーリ－グ 第１０回大会 Ｊブロック ２０１６ | FM24: 表題１０ | FN24: スーパーリ－グ 第１０回大会 Ｊブロック ２０１６ | FO24: 表題１０ | FP24: スーパーリ－グ 第１０回大会 Ｊブロック ２０１６ | FQ24: 表題１０ | FR24: スーパーリ－グ 第１０回大会 Ｊブロック ２０１６ | FS24: 表題１０ | FT24: スーパーリ－グ 第１０回大会 Ｊブロック ２０１６ | FU24: 表題１０ | FV24: スーパーリ－グ 第１０回大会 Ｊブロック ２０１６ | FW24: 表題１０ | FX24: スーパーリ－グ 第１０回大会 Ｊブロック ２０１６ | FY24: 表題１０ | FZ24: スーパーリ－グ 第１０回大会 Ｊブロック ２０１６ | GA24: 表題１０ | GB24: スーパーリ－グ 第１０回大会 Ｊブロック ２０１６ | GC24: 表題１０ | GD24: スーパーリ－グ 第１０回大会 Ｊブロック ２０１６ | GE24: 表題１０ | GF24: スーパーリ－グ 第１０回大会 Ｊブロック ２０１６ | GG24: 表題１０ | GH24: スーパーリ－グ 第１０回大会 Ｊブロック ２０１６ | GI24: 表題１０ | GJ24: スーパーリ－グ 第１０回大会 Ｊブロック ２０１６ | GK24: 表題１０ | GL24: スーパーリ－グ 第１０回大会 Ｊブロック ２０１６ | GM24: 表題１０ | GN24: スーパーリ－グ 第１０回大会 Ｊブロック ２０１６ | GO24: 表題１０ | GP24: スーパーリ－グ 第１０回大会 Ｊブロック ２０１６ | GQ24: 表題１０ | GR24: スーパーリ－グ 第１０回大会 Ｊブロック ２０１６ | GS24: 表題１０ | GT24: スーパーリ－グ 第１０回大会 Ｊブロック ２０１６ | GU24: 表題１０ | GV24: スーパーリ－グ 第１０回大会 Ｊブロック ２０１６ | GW24: 表題１０ | GX24: スーパーリ－グ 第１０回大会 Ｊブロック ２０１６ | GY24: 表題１０ | GZ24: スーパーリ－グ 第１０回大会 Ｊブロック ２０１６ | HA24: 表題１０ | HB24: スーパーリ－グ 第１０回大会 Ｊブロック ２０１６ | HC24: 表題１０ | HD24: スーパーリ－グ 第１０回大会 Ｊブロック ２０１６ | HE24: 表題１０ | HF24: スーパーリ－グ 第１０回大会 Ｊブロック ２０１６ | HG24: 表題１０ | HH24: スーパーリ－グ 第１０回大会 Ｊブロック ２０１６ | HI24: 表題１０ | HJ24: スーパーリ－グ 第１０回大会 Ｊブロック ２０１６ | HK24: 表題１０ | HL24: スーパーリ－グ 第１０回大会 Ｊブロック ２０１６ | HM24: 表題１０ | HN24: スーパーリ－グ 第１０回大会 Ｊブロック ２０１６ | HO24: 表題１０ | HP24: スーパーリ－グ 第１０回大会 Ｊブロック ２０１６ | HQ24: 表題１０ | HR24: スーパーリ－グ 第１０回大会 Ｊブロック ２０１６ | HS24: 表題１０ | HT24: スーパーリ－グ 第１０回大会 Ｊブロック ２０１６ | HU24: 表題１０ | HV24: スーパーリ－グ 第１０回大会 Ｊブロック ２０１６ | HW24: 表題１０ | HX24: スーパーリ－グ 第１０回大会 Ｊブロック ２０１６ | HY24: 表題１０ | HZ24: スーパーリ－グ 第１０回大会 Ｊブロック ２０１６ | IA24: 表題１０ | IB24: スーパーリ－グ 第１０回大会 Ｊブロック ２０１６ | IC24: 表題１０ | ID24: スーパーリ－グ 第１０回大会 Ｊブロック ２０１６ | IE24: 表題１０ | IF24: スーパーリ－グ 第１０回大会 Ｊブロック ２０１６ | IG24: 表題１０ | IH24: スーパーリ－グ 第１０回大会 Ｊブロック ２０１６ | II24: 表題１０ | IJ24: スーパーリ－グ 第１０回大会 Ｊブロック ２０１６ | IK24: 表題１０ | IL24: スーパーリ－グ 第１０回大会 Ｊブロック ２０１６ | IM24: 表題１０ | IN24: スーパーリ－グ 第１０回大会 Ｊブロック ２０１６ | IO24: 表題１０ | IP24: スーパーリ－グ 第１０回大会 Ｊブロック ２０１６ | IQ24: 表題１０ | IR24: スーパーリ－グ 第１０回大会 Ｊブロック ２０１６ | IS24: 表題１０ | IT24: スーパーリ－グ 第１０回大会 Ｊブロック ２０１６ | IU24: 表題１０ | IV24: スーパーリ－グ 第１０回大会 Ｊブロック ２０１６
A26: 表題１１ | B26: スーパーリ－グ 第１６回大会 Ｋブロック ２０２２ | C26: 表題１１ | D26: スーパーリ－グ 第１０回大会 Ｋブロック ２０１６ | E26: 表題１１ | F26: スーパーリ－グ 第１０回大会 Ｋブロック ２０１６ | G26: 表題１１ | H26: スーパーリ－グ 第１０回大会 Ｋブロック ２０１６ | I26: 表題１１ | J26: スーパーリ－グ 第１０回大会 Ｋブロック ２０１６ | K26: 表題１１ | L26: スーパーリ－グ 第１０回大会 Ｋブロック ２０１６ | M26: 表題１１ | N26: スーパーリ－グ 第１０回大会 Ｋブロック ２０１６ | O26: 表題１１ | P26: スーパーリ－グ 第１０回大会 Ｋブロック ２０１６ | Q26: 表題１１ | R26: スーパーリ－グ 第１０回大会 Ｋブロック ２０１６ | S26: 表題１１ | T26: スーパーリ－グ 第１０回大会 Ｋブロック ２０１６ | U26: 表題１１ | V26: スーパーリ－グ 第１０回大会 Ｋブロック ２０１６ | W26: 表題１１ | X26: スーパーリ－グ 第１０回大会 Ｋブロック ２０１６ | Y26: 表題１１ | Z26: スーパーリ－グ 第１０回大会 Ｋブロック ２０１６ | AA26: 表題１１ | AB26: スーパーリ－グ 第１０回大会 Ｋブロック ２０１６ | AC26: 表題１１ | AD26: スーパーリ－グ 第１０回大会 Ｋブロック ２０１６ | AE26: 表題１１ | AF26: スーパーリ－グ 第１０回大会 Ｋブロック ２０１６ | AG26: 表題１１ | AH26: スーパーリ－グ 第１０回大会 Ｋブロック ２０１６ | AI26: 表題１１ | AJ26: スーパーリ－グ 第１０回大会 Ｋブロック ２０１６ | AK26: 表題１１ | AL26: スーパーリ－グ 第１０回大会 Ｋブロック ２０１６ | AM26: 表題１１ | AN26: スーパーリ－グ 第１０回大会 Ｋブロック ２０１６ | AO26: 表題１１ | AP26: スーパーリ－グ 第１０回大会 Ｋブロック ２０１６ | AQ26: 表題１１ | AR26: スーパーリ－グ 第１０回大会 Ｋブロック ２０１６ | AS26: 表題１１ | AT26: スーパーリ－グ 第１０回大会 Ｋブロック ２０１６ | AU26: 表題１１ | AV26: スーパーリ－グ 第１０回大会 Ｋブロック ２０１６ | AW26: 表題１１ | AX26: スーパーリ－グ 第１０回大会 Ｋブロック ２０１６ | AY26: 表題１１ | AZ26: スーパーリ－グ 第１０回大会 Ｋブロック ２０１６ | BA26: 表題１１ | BB26: スーパーリ－グ 第１０回大会 Ｋブロック ２０１６ | BC26: 表題１１ | BD26: スーパーリ－グ 第１０回大会 Ｋブロック ２０１６ | BE26: 表題１１ | BF26: スーパーリ－グ 第１０回大会 Ｋブロック ２０１６ | BG26: 表題１１ | BH26: スーパーリ－グ 第１０回大会 Ｋブロック ２０１６ | BI26: 表題１１ | BJ26: スーパーリ－グ 第１０回大会 Ｋブロック ２０１６ | BK26: 表題１１ | BL26: スーパーリ－グ 第１０回大会 Ｋブロック ２０１６ | BM26: 表題１１ | BN26: スーパーリ－グ 第１０回大会 Ｋブロック ２０１６ | BO26: 表題１１ | BP26: スーパーリ－グ 第１０回大会 Ｋブロック ２０１６ | BQ26: 表題１１ | BR26: スーパーリ－グ 第１０回大会 Ｋブロック ２０１６ | BS26: 表題１１ | BT26: スーパーリ－グ 第１０回大会 Ｋブロック ２０１６ | BU26: 表題１１ | BV26: スーパーリ－グ 第１０回大会 Ｋブロック ２０１６ | BW26: 表題１１ | BX26: スーパーリ－グ 第１０回大会 Ｋブロック ２０１６ | BY26: 表題１１ | BZ26: スーパーリ－グ 第１０回大会 Ｋブロック ２０１６ | CA26: 表題１１ | CB26: スーパーリ－グ 第１０回大会 Ｋブロック ２０１６ | CC26: 表題１１ | CD26: スーパーリ－グ 第１０回大会 Ｋブロック ２０１６ | CE26: 表題１１ | CF26: スーパーリ－グ 第１０回大会 Ｋブロック ２０１６ | CG26: 表題１１ | CH26: スーパーリ－グ 第１０回大会 Ｋブロック ２０１６ | CI26: 表題１１ | CJ26: スーパーリ－グ 第１０回大会 Ｋブロック ２０１６ | CK26: 表題１１ | CL26: スーパーリ－グ 第１０回大会 Ｋブロック ２０１６ | CM26: 表題１１ | CN26: スーパーリ－グ 第１０回大会 Ｋブロック ２０１６ | CO26: 表題１１ | CP26: スーパーリ－グ 第１０回大会 Ｋブロック ２０１６ | CQ26: 表題１１ | CR26: スーパーリ－グ 第１０回大会 Ｋブロック ２０１６ | CS26: 表題１１ | CT26: スーパーリ－グ 第１０回大会 Ｋブロック ２０１６ | CU26: 表題１１ | CV26: スーパーリ－グ 第１０回大会 Ｋブロック ２０１６ | CW26: 表題１１ | CX26: スーパーリ－グ 第１０回大会 Ｋブロック ２０１６ | CY26: 表題１１ | CZ26: スーパーリ－グ 第１０回大会 Ｋブロック ２０１６ | DA26: 表題１１ | DB26: スーパーリ－グ 第１０回大会 Ｋブロック ２０１６ | DC26: 表題１１ | DD26: スーパーリ－グ 第１０回大会 Ｋブロック ２０１６ | DE26: 表題１１ | DF26: スーパーリ－グ 第１０回大会 Ｋブロック ２０１６ | DG26: 表題１１ | DH26: スーパーリ－グ 第１０回大会 Ｋブロック ２０１６ | DI26: 表題１１ | DJ26: スーパーリ－グ 第１０回大会 Ｋブロック ２０１６ | DK26: 表題１１ | DL26: スーパーリ－グ 第１０回大会 Ｋブロック ２０１６ | DM26: 表題１１ | DN26: スーパーリ－グ 第１０回大会 Ｋブロック ２０１６ | DO26: 表題１１ | DP26: スーパーリ－グ 第１０回大会 Ｋブロック ２０１６ | DQ26: 表題１１ | DR26: スーパーリ－グ 第１０回大会 Ｋブロック ２０１６ | DS26: 表題１１ | DT26: スーパーリ－グ 第１０回大会 Ｋブロック ２０１６ | DU26: 表題１１ | DV26: スーパーリ－グ 第１０回大会 Ｋブロック ２０１６ | DW26: 表題１１ | DX26: スーパーリ－グ 第１０回大会 Ｋブロック ２０１６ | DY26: 表題１１ | DZ26: スーパーリ－グ 第１０回大会 Ｋブロック ２０１６ | EA26: 表題１１ | EB26: スーパーリ－グ 第１０回大会 Ｋブロック ２０１６ | EC26: 表題１１ | ED26: スーパーリ－グ 第１０回大会 Ｋブロック ２０１６ | EE26: 表題１１ | EF26: スーパーリ－グ 第１０回大会 Ｋブロック ２０１６ | EG26: 表題１１ | EH26: スーパーリ－グ 第１０回大会 Ｋブロック ２０１６ | EI26: 表題１１ | EJ26: スーパーリ－グ 第１０回大会 Ｋブロック ２０１６ | EK26: 表題１１ | EL26: スーパーリ－グ 第１０回大会 Ｋブロック ２０１６ | EM26: 表題１１ | EN26: スーパーリ－グ 第１０回大会 Ｋブロック ２０１６ | EO26: 表題１１ | EP26: スーパーリ－グ 第１０回大会 Ｋブロック ２０１６ | EQ26: 表題１１ | ER26: スーパーリ－グ 第１０回大会 Ｋブロック ２０１６ | ES26: 表題１１ | ET26: スーパーリ－グ 第１０回大会 Ｋブロック ２０１６ | EU26: 表題１１ | EV26: スーパーリ－グ 第１０回大会 Ｋブロック ２０１６ | EW26: 表題１１ | EX26: スーパーリ－グ 第１０回大会 Ｋブロック ２０１６ | EY26: 表題１１ | EZ26: スーパーリ－グ 第１０回大会 Ｋブロック ２０１６ | FA26: 表題１１ | FB26: スーパーリ－グ 第１０回大会 Ｋブロック ２０１６ | FC26: 表題１１ | FD26: スーパーリ－グ 第１０回大会 Ｋブロック ２０１６ | FE26: 表題１１ | FF26: スーパーリ－グ 第１０回大会 Ｋブロック ２０１６ | FG26: 表題１１ | FH26: スーパーリ－グ 第１０回大会 Ｋブロック ２０１６ | FI26: 表題１１ | FJ26: スーパーリ－グ 第１０回大会 Ｋブロック ２０１６ | FK26: 表題１１ | FL26: スーパーリ－グ 第１０回大会 Ｋブロック ２０１６ | FM26: 表題１１ | FN26: スーパーリ－グ 第１０回大会 Ｋブロック ２０１６ | FO26: 表題１１ | FP26: スーパーリ－グ 第１０回大会 Ｋブロック ２０１６ | FQ26: 表題１１ | FR26: スーパーリ－グ 第１０回大会 Ｋブロック ２０１６ | FS26: 表題１１ | FT26: スーパーリ－グ 第１０回大会 Ｋブロック ２０１６ | FU26: 表題１１ | FV26: スーパーリ－グ 第１０回大会 Ｋブロック ２０１６ | FW26: 表題１１ | FX26: スーパーリ－グ 第１０回大会 Ｋブロック ２０１６ | FY26: 表題１１ | FZ26: スーパーリ－グ 第１０回大会 Ｋブロック ２０１６ | GA26: 表題１１ | GB26: スーパーリ－グ 第１０回大会 Ｋブロック ２０１６ | GC26: 表題１１ | GD26: スーパーリ－グ 第１０回大会 Ｋブロック ２０１６ | GE26: 表題１１ | GF26: スーパーリ－グ 第１０回大会 Ｋブロック ２０１６ | GG26: 表題１１ | GH26: スーパーリ－グ 第１０回大会 Ｋブロック ２０１６ | GI26: 表題１１ | GJ26: スーパーリ－グ 第１０回大会 Ｋブロック ２０１６ | GK26: 表題１１ | GL26: スーパーリ－グ 第１０回大会 Ｋブロック ２０１６ | GM26: 表題１１ | GN26: スーパーリ－グ 第１０回大会 Ｋブロック ２０１６ | GO26: 表題１１ | GP26: スーパーリ－グ 第１０回大会 Ｋブロック ２０１６ | GQ26: 表題１１ | GR26: スーパーリ－グ 第１０回大会 Ｋブロック ２０１６ | GS26: 表題１１ | GT26: スーパーリ－グ 第１０回大会 Ｋブロック ２０１６ | GU26: 表題１１ | GV26: スーパーリ－グ 第１０回大会 Ｋブロック ２０１６ | GW26: 表題１１ | GX26: スーパーリ－グ 第１０回大会 Ｋブロック ２０１６ | GY26: 表題１１ | GZ26: スーパーリ－グ 第１０回大会 Ｋブロック ２０１６ | HA26: 表題１１ | HB26: スーパーリ－グ 第１０回大会 Ｋブロック ２０１６ | HC26: 表題１１ | HD26: スーパーリ－グ 第１０回大会 Ｋブロック ２０１６ | HE26: 表題１１ | HF26: スーパーリ－グ 第１０回大会 Ｋブロック ２０１６ | HG26: 表題１１ | HH26: スーパーリ－グ 第１０回大会 Ｋブロック ２０１６ | HI26: 表題１１ | HJ26: スーパーリ－グ 第１０回大会 Ｋブロック ２０１６ | HK26: 表題１１ | HL26: スーパーリ－グ 第１０回大会 Ｋブロック ２０１６ | HM26: 表題１１ | HN26: スーパーリ－グ 第１０回大会 Ｋブロック ２０１６ | HO26: 表題１１ | HP26: スーパーリ－グ 第１０回大会 Ｋブロック ２０１６ | HQ26: 表題１１ | HR26: スーパーリ－グ 第１０回大会 Ｋブロック ２０１６ | HS26: 表題１１ | HT26: スーパーリ－グ 第１０回大会 Ｋブロック ２０１６ | HU26: 表題１１ | HV26: スーパーリ－グ 第１０回大会 Ｋブロック ２０１６ | HW26: 表題１１ | HX26: スーパーリ－グ 第１０回大会 Ｋブロック ２０１６ | HY26: 表題１１ | HZ26: スーパーリ－グ 第１０回大会 Ｋブロック ２０１６ | IA26: 表題１１ | IB26: スーパーリ－グ 第１０回大会 Ｋブロック ２０１６ | IC26: 表題１１ | ID26: スーパーリ－グ 第１０回大会 Ｋブロック ２０１６ | IE26: 表題１１ | IF26: スーパーリ－グ 第１０回大会 Ｋブロック ２０１６ | IG26: 表題１１ | IH26: スーパーリ－グ 第１０回大会 Ｋブロック ２０１６ | II26: 表題１１ | IJ26: スーパーリ－グ 第１０回大会 Ｋブロック ２０１６ | IK26: 表題１１ | IL26: スーパーリ－グ 第１０回大会 Ｋブロック ２０１６ | IM26: 表題１１ | IN26: スーパーリ－グ 第１０回大会 Ｋブロック ２０１６ | IO26: 表題１１ | IP26: スーパーリ－グ 第１０回大会 Ｋブロック ２０１６ | IQ26: 表題１１ | IR26: スーパーリ－グ 第１０回大会 Ｋブロック ２０１６ | IS26: 表題１１ | IT26: スーパーリ－グ 第１０回大会 Ｋブロック ２０１６ | IU26: 表題１１ | IV26: スーパーリ－グ 第１０回大会 Ｋブロック ２０１６
A28: 表題１２ | B28: スーパーリ－グ 第１６回大会 Ｌブロック ２０２２ | C28: 表題１０ | D28: スーパーリ－グ 第１０回大会 Ｊブロック ２０１６ | E28: 表題１０ | F28: スーパーリ－グ 第１０回大会 Ｊブロック ２０１６ | G28: 表題１０ | H28: スーパーリ－グ 第１０回大会 Ｊブロック ２０１６ | I28: 表題１０ | J28: スーパーリ－グ 第１０回大会 Ｊブロック ２０１６ | K28: 表題１０ | L28: スーパーリ－グ 第１０回大会 Ｊブロック ２０１６ | M28: 表題１０ | N28: スーパーリ－グ 第１０回大会 Ｊブロック ２０１６ | O28: 表題１０ | P28: スーパーリ－グ 第１０回大会 Ｊブロック ２０１６ | Q28: 表題１０ | R28: スーパーリ－グ 第１０回大会 Ｊブロック ２０１６ | S28: 表題１０ | T28: スーパーリ－グ 第１０回大会 Ｊブロック ２０１６ | U28: 表題１０ | V28: スーパーリ－グ 第１０回大会 Ｊブロック ２０１６ | W28: 表題１０ | X28: スーパーリ－グ 第１０回大会 Ｊブロック ２０１６ | Y28: 表題１０ | Z28: スーパーリ－グ 第１０回大会 Ｊブロック ２０１６ | AA28: 表題１０ | AB28: スーパーリ－グ 第１０回大会 Ｊブロック ２０１６ | AC28: 表題１０ | AD28: スーパーリ－グ 第１０回大会 Ｊブロック ２０１６ | AE28: 表題１０ | AF28: スーパーリ－グ 第１０回大会 Ｊブロック ２０１６ | AG28: 表題１０ | AH28: スーパーリ－グ 第１０回大会 Ｊブロック ２０１６ | AI28: 表題１０ | AJ28: スーパーリ－グ 第１０回大会 Ｊブロック ２０１６ | AK28: 表題１０ | AL28: スーパーリ－グ 第１０回大会 Ｊブロック ２０１６ | AM28: 表題１０ | AN28: スーパーリ－グ 第１０回大会 Ｊブロック ２０１６ | AO28: 表題１０ | AP28: スーパーリ－グ 第１０回大会 Ｊブロック ２０１６ | AQ28: 表題１０ | AR28: スーパーリ－グ 第１０回大会 Ｊブロック ２０１６ | AS28: 表題１０ | AT28: スーパーリ－グ 第１０回大会 Ｊブロック ２０１６ | AU28: 表題１０ | AV28: スーパーリ－グ 第１０回大会 Ｊブロック ２０１６ | AW28: 表題１０ | AX28: スーパーリ－グ 第１０回大会 Ｊブロック ２０１６ | AY28: 表題１０ | AZ28: スーパーリ－グ 第１０回大会 Ｊブロック ２０１６ | BA28: 表題１０ | BB28: スーパーリ－グ 第１０回大会 Ｊブロック ２０１６ | BC28: 表題１０ | BD28: スーパーリ－グ 第１０回大会 Ｊブロック ２０１６ | BE28: 表題１０ | BF28: スーパーリ－グ 第１０回大会 Ｊブロック ２０１６ | BG28: 表題１０ | BH28: スーパーリ－グ 第１０回大会 Ｊブロック ２０１６ | BI28: 表題１０ | BJ28: スーパーリ－グ 第１０回大会 Ｊブロック ２０１６ | BK28: 表題１０ | BL28: スーパーリ－グ 第１０回大会 Ｊブロック ２０１６ | BM28: 表題１０ | BN28: スーパーリ－グ 第１０回大会 Ｊブロック ２０１６ | BO28: 表題１０ | BP28: スーパーリ－グ 第１０回大会 Ｊブロック ２０１６ | BQ28: 表題１０ | BR28: スーパーリ－グ 第１０回大会 Ｊブロック ２０１６ | BS28: 表題１０ | BT28: スーパーリ－グ 第１０回大会 Ｊブロック ２０１６ | BU28: 表題１０ | BV28: スーパーリ－グ 第１０回大会 Ｊブロック ２０１６ | BW28: 表題１０ | BX28: スーパーリ－グ 第１０回大会 Ｊブロック ２０１６ | BY28: 表題１０ | BZ28: スーパーリ－グ 第１０回大会 Ｊブロック ２０１６ | CA28: 表題１０ | CB28: スーパーリ－グ 第１０回大会 Ｊブロック ２０１６ | CC28: 表題１０ | CD28: スーパーリ－グ 第１０回大会 Ｊブロック ２０１６ | CE28: 表題１０ | CF28: スーパーリ－グ 第１０回大会 Ｊブロック ２０１６ | CG28: 表題１０ | CH28: スーパーリ－グ 第１０回大会 Ｊブロック ２０１６ | CI28: 表題１０ | CJ28: スーパーリ－グ 第１０回大会 Ｊブロック ２０１６ | CK28: 表題１０ | CL28: スーパーリ－グ 第１０回大会 Ｊブロック ２０１６ | CM28: 表題１０ | CN28: スーパーリ－グ 第１０回大会 Ｊブロック ２０１６ | CO28: 表題１０ | CP28: スーパーリ－グ 第１０回大会 Ｊブロック ２０１６ | CQ28: 表題１０ | CR28: スーパーリ－グ 第１０回大会 Ｊブロック ２０１６ | CS28: 表題１０ | CT28: スーパーリ－グ 第１０回大会 Ｊブロック ２０１６ | CU28: 表題１０ | CV28: スーパーリ－グ 第１０回大会 Ｊブロック ２０１６ | CW28: 表題１０ | CX28: スーパーリ－グ 第１０回大会 Ｊブロック ２０１６ | CY28: 表題１０ | CZ28: スーパーリ－グ 第１０回大会 Ｊブロック ２０１６ | DA28: 表題１０ | DB28: スーパーリ－グ 第１０回大会 Ｊブロック ２０１６ | DC28: 表題１０ | DD28: スーパーリ－グ 第１０回大会 Ｊブロック ２０１６ | DE28: 表題１０ | DF28: スーパーリ－グ 第１０回大会 Ｊブロック ２０１６ | DG28: 表題１０ | DH28: スーパーリ－グ 第１０回大会 Ｊブロック ２０１６ | DI28: 表題１０ | DJ28: スーパーリ－グ 第１０回大会 Ｊブロック ２０１６ | DK28: 表題１０ | DL28: スーパーリ－グ 第１０回大会 Ｊブロック ２０１６ | DM28: 表題１０ | DN28: スーパーリ－グ 第１０回大会 Ｊブロック ２０１６ | DO28: 表題１０ | DP28: スーパーリ－グ 第１０回大会 Ｊブロック ２０１６ | DQ28: 表題１０ | DR28: スーパーリ－グ 第１０回大会 Ｊブロック ２０１６ | DS28: 表題１０ | DT28: スーパーリ－グ 第１０回大会 Ｊブロック ２０１６ | DU28: 表題１０ | DV28: スーパーリ－グ 第１０回大会 Ｊブロック ２０１６ | DW28: 表題１０ | DX28: スーパーリ－グ 第１０回大会 Ｊブロック ２０１６ | DY28: 表題１０ | DZ28: スーパーリ－グ 第１０回大会 Ｊブロック ２０１６ | EA28: 表題１０ | EB28: スーパーリ－グ 第１０回大会 Ｊブロック ２０１６ | EC28: 表題１０ | ED28: スーパーリ－グ 第１０回大会 Ｊブロック ２０１６ | EE28: 表題１０ | EF28: スーパーリ－グ 第１０回大会 Ｊブロック ２０１６ | EG28: 表題１０ | EH28: スーパーリ－グ 第１０回大会 Ｊブロック ２０１６ | EI28: 表題１０ | EJ28: スーパーリ－グ 第１０回大会 Ｊブロック ２０１６ | EK28: 表題１０ | EL28: スーパーリ－グ 第１０回大会 Ｊブロック ２０１６ | EM28: 表題１０ | EN28: スーパーリ－グ 第１０回大会 Ｊブロック ２０１６ | EO28: 表題１０ | EP28: スーパーリ－グ 第１０回大会 Ｊブロック ２０１６ | EQ28: 表題１０ | ER28: スーパーリ－グ 第１０回大会 Ｊブロック ２０１６ | ES28: 表題１０ | ET28: スーパーリ－グ 第１０回大会 Ｊブロック ２０１６ | EU28: 表題１０ | EV28: スーパーリ－グ 第１０回大会 Ｊブロック ２０１６ | EW28: 表題１０ | EX28: スーパーリ－グ 第１０回大会 Ｊブロック ２０１６ | EY28: 表題１０ | EZ28: スーパーリ－グ 第１０回大会 Ｊブロック ２０１６ | FA28: 表題１０ | FB28: スーパーリ－グ 第１０回大会 Ｊブロック ２０１６ | FC28: 表題１０ | FD28: スーパーリ－グ 第１０回大会 Ｊブロック ２０１６ | FE28: 表題１０ | FF28: スーパーリ－グ 第１０回大会 Ｊブロック ２０１６ | FG28: 表題１０ | FH28: スーパーリ－グ 第１０回大会 Ｊブロック ２０１６ | FI28: 表題１０ | FJ28: スーパーリ－グ 第１０回大会 Ｊブロック ２０１６ | FK28: 表題１０ | FL28: スーパーリ－グ 第１０回大会 Ｊブロック ２０１６ | FM28: 表題１０ | FN28: スーパーリ－グ 第１０回大会 Ｊブロック ２０１６ | FO28: 表題１０ | FP28: スーパーリ－グ 第１０回大会 Ｊブロック ２０１６ | FQ28: 表題１０ | FR28: スーパーリ－グ 第１０回大会 Ｊブロック ２０１６ | FS28: 表題１０ | FT28: スーパーリ－グ 第１０回大会 Ｊブロック ２０１６ | FU28: 表題１０ | FV28: スーパーリ－グ 第１０回大会 Ｊブロック ２０１６ | FW28: 表題１０ | FX28: スーパーリ－グ 第１０回大会 Ｊブロック ２０１６ | FY28: 表題１０ | FZ28: スーパーリ－グ 第１０回大会 Ｊブロック ２０１６ | GA28: 表題１０ | GB28: スーパーリ－グ 第１０回大会 Ｊブロック ２０１６ | GC28: 表題１０ | GD28: スーパーリ－グ 第１０回大会 Ｊブロック ２０１６ | GE28: 表題１０ | GF28: スーパーリ－グ 第１０回大会 Ｊブロック ２０１６ | GG28: 表題１０ | GH28: スーパーリ－グ 第１０回大会 Ｊブロック ２０１６ | GI28: 表題１０ | GJ28: スーパーリ－グ 第１０回大会 Ｊブロック ２０１６ | GK28: 表題１０ | GL28: スーパーリ－グ 第１０回大会 Ｊブロック ２０１６ | GM28: 表題１０ | GN28: スーパーリ－グ 第１０回大会 Ｊブロック ２０１６ | GO28: 表題１０ | GP28: スーパーリ－グ 第１０回大会 Ｊブロック ２０１６ | GQ28: 表題１０ | GR28: スーパーリ－グ 第１０回大会 Ｊブロック ２０１６ | GS28: 表題１０ | GT28: スーパーリ－グ 第１０回大会 Ｊブロック ２０１６ | GU28: 表題１０ | GV28: スーパーリ－グ 第１０回大会 Ｊブロック ２０１６ | GW28: 表題１０ | GX28: スーパーリ－グ 第１０回大会 Ｊブロック ２０１６ | GY28: 表題１０ | GZ28: スーパーリ－グ 第１０回大会 Ｊブロック ２０１６ | HA28: 表題１０ | HB28: スーパーリ－グ 第１０回大会 Ｊブロック ２０１６ | HC28: 表題１０ | HD28: スーパーリ－グ 第１０回大会 Ｊブロック ２０１６ | HE28: 表題１０ | HF28: スーパーリ－グ 第１０回大会 Ｊブロック ２０１６ | HG28: 表題１０ | HH28: スーパーリ－グ 第１０回大会 Ｊブロック ２０１６ | HI28: 表題１０ | HJ28: スーパーリ－グ 第１０回大会 Ｊブロック ２０１６ | HK28: 表題１０ | HL28: スーパーリ－グ 第１０回大会 Ｊブロック ２０１６ | HM28: 表題１０ | HN28: スーパーリ－グ 第１０回大会 Ｊブロック ２０１６ | HO28: 表題１０ | HP28: スーパーリ－グ 第１０回大会 Ｊブロック ２０１６ | HQ28: 表題１０ | HR28: スーパーリ－グ 第１０回大会 Ｊブロック ２０１６ | HS28: 表題１０ | HT28: スーパーリ－グ 第１０回大会 Ｊブロック ２０１６ | HU28: 表題１０ | HV28: スーパーリ－グ 第１０回大会 Ｊブロック ２０１６ | HW28: 表題１０ | HX28: スーパーリ－グ 第１０回大会 Ｊブロック ２０１６ | HY28: 表題１０ | HZ28: スーパーリ－グ 第１０回大会 Ｊブロック ２０１６ | IA28: 表題１０ | IB28: スーパーリ－グ 第１０回大会 Ｊブロック ２０１６ | IC28: 表題１０ | ID28: スーパーリ－グ 第１０回大会 Ｊブロック ２０１６ | IE28: 表題１０ | IF28: スーパーリ－グ 第１０回大会 Ｊブロック ２０１６ | IG28: 表題１０ | IH28: スーパーリ－グ 第１０回大会 Ｊブロック ２０１６ | II28: 表題１０ | IJ28: スーパーリ－グ 第１０回大会 Ｊブロック ２０１６ | IK28: 表題１０ | IL28: スーパーリ－グ 第１０回大会 Ｊブロック ２０１６ | IM28: 表題１０ | IN28: スーパーリ－グ 第１０回大会 Ｊブロック ２０１６ | IO28: 表題１０ | IP28: スーパーリ－グ 第１０回大会 Ｊブロック ２０１６ | IQ28: 表題１０ | IR28: スーパーリ－グ 第１０回大会 Ｊブロック ２０１６ | IS28: 表題１０ | IT28: スーパーリ－グ 第１０回大会 Ｊブロック ２０１６ | IU28: 表題１０ | IV28: スーパーリ－グ 第１０回大会 Ｊブロック ２０１６
A30: 表題１３ | B30: スーパーリ－グ 第１６回大会 Ｍブロック ２０２２ | C30: 表題１１ | D30: スーパーリ－グ 第１０回大会 Ｋブロック ２０１６ | E30: 表題１１ | F30: スーパーリ－グ 第１０回大会 Ｋブロック ２０１６ | G30: 表題１１ | H30: スーパーリ－グ 第１０回大会 Ｋブロック ２０１６ | I30: 表題１１ | J30: スーパーリ－グ 第１０回大会 Ｋブロック ２０１６ | K30: 表題１１ | L30: スーパーリ－グ 第１０回大会 Ｋブロック ２０１６ | M30: 表題１１ | N30: スーパーリ－グ 第１０回大会 Ｋブロック ２０１６ | O30: 表題１１ | P30: スーパーリ－グ 第１０回大会 Ｋブロック ２０１６ | Q30: 表題１１ | R30: スーパーリ－グ 第１０回大会 Ｋブロック ２０１６ | S30: 表題１１ | T30: スーパーリ－グ 第１０回大会 Ｋブロック ２０１６ | U30: 表題１１ | V30: スーパーリ－グ 第１０回大会 Ｋブロック ２０１６ | W30: 表題１１ | X30: スーパーリ－グ 第１０回大会 Ｋブロック ２０１６ | Y30: 表題１１ | Z30: スーパーリ－グ 第１０回大会 Ｋブロック ２０１６ | AA30: 表題１１ | AB30: スーパーリ－グ 第１０回大会 Ｋブロック ２０１６ | AC30: 表題１１ | AD30: スーパーリ－グ 第１０回大会 Ｋブロック ２０１６ | AE30: 表題１１ | AF30: スーパーリ－グ 第１０回大会 Ｋブロック ２０１６ | AG30: 表題１１ | AH30: スーパーリ－グ 第１０回大会 Ｋブロック ２０１６ | AI30: 表題１１ | AJ30: スーパーリ－グ 第１０回大会 Ｋブロック ２０１６ | AK30: 表題１１ | AL30: スーパーリ－グ 第１０回大会 Ｋブロック ２０１６ | AM30: 表題１１ | AN30: スーパーリ－グ 第１０回大会 Ｋブロック ２０１６ | AO30: 表題１１ | AP30: スーパーリ－グ 第１０回大会 Ｋブロック ２０１６ | AQ30: 表題１１ | AR30: スーパーリ－グ 第１０回大会 Ｋブロック ２０１６ | AS30: 表題１１ | AT30: スーパーリ－グ 第１０回大会 Ｋブロック ２０１６ | AU30: 表題１１ | AV30: スーパーリ－グ 第１０回大会 Ｋブロック ２０１６ | AW30: 表題１１ | AX30: スーパーリ－グ 第１０回大会 Ｋブロック ２０１６ | AY30: 表題１１ | AZ30: スーパーリ－グ 第１０回大会 Ｋブロック ２０１６ | BA30: 表題１１ | BB30: スーパーリ－グ 第１０回大会 Ｋブロック ２０１６ | BC30: 表題１１ | BD30: スーパーリ－グ 第１０回大会 Ｋブロック ２０１６ | BE30: 表題１１ | BF30: スーパーリ－グ 第１０回大会 Ｋブロック ２０１６ | BG30: 表題１１ | BH30: スーパーリ－グ 第１０回大会 Ｋブロック ２０１６ | BI30: 表題１１ | BJ30: スーパーリ－グ 第１０回大会 Ｋブロック ２０１６ | BK30: 表題１１ | BL30: スーパーリ－グ 第１０回大会 Ｋブロック ２０１６ | BM30: 表題１１ | BN30: スーパーリ－グ 第１０回大会 Ｋブロック ２０１６ | BO30: 表題１１ | BP30: スーパーリ－グ 第１０回大会 Ｋブロック ２０１６ | BQ30: 表題１１ | BR30: スーパーリ－グ 第１０回大会 Ｋブロック ２０１６ | BS30: 表題１１ | BT30: スーパーリ－グ 第１０回大会 Ｋブロック ２０１６ | BU30: 表題１１ | BV30: スーパーリ－グ 第１０回大会 Ｋブロック ２０１６ | BW30: 表題１１ | BX30: スーパーリ－グ 第１０回大会 Ｋブロック ２０１６ | BY30: 表題１１ | BZ30: スーパーリ－グ 第１０回大会 Ｋブロック ２０１６ | CA30: 表題１１ | CB30: スーパーリ－グ 第１０回大会 Ｋブロック ２０１６ | CC30: 表題１１ | CD30: スーパーリ－グ 第１０回大会 Ｋブロック ２０１６ | CE30: 表題１１ | CF30: スーパーリ－グ 第１０回大会 Ｋブロック ２０１６ | CG30: 表題１１ | CH30: スーパーリ－グ 第１０回大会 Ｋブロック ２０１６ | CI30: 表題１１ | CJ30: スーパーリ－グ 第１０回大会 Ｋブロック ２０１６ | CK30: 表題１１ | CL30: スーパーリ－グ 第１０回大会 Ｋブロック ２０１６ | CM30: 表題１１ | CN30: スーパーリ－グ 第１０回大会 Ｋブロック ２０１６ | CO30: 表題１１ | CP30: スーパーリ－グ 第１０回大会 Ｋブロック ２０１６ | CQ30: 表題１１ | CR30: スーパーリ－グ 第１０回大会 Ｋブロック ２０１６ | CS30: 表題１１ | CT30: スーパーリ－グ 第１０回大会 Ｋブロック ２０１６ | CU30: 表題１１ | CV30: スーパーリ－グ 第１０回大会 Ｋブロック ２０１６ | CW30: 表題１１ | CX30: スーパーリ－グ 第１０回大会 Ｋブロック ２０１６ | CY30: 表題１１ | CZ30: スーパーリ－グ 第１０回大会 Ｋブロック ２０１６ | DA30: 表題１１ | DB30: スーパーリ－グ 第１０回大会 Ｋブロック ２０１６ | DC30: 表題１１ | DD30: スーパーリ－グ 第１０回大会 Ｋブロック ２０１６ | DE30: 表題１１ | DF30: スーパーリ－グ 第１０回大会 Ｋブロック ２０１６ | DG30: 表題１１ | DH30: スーパーリ－グ 第１０回大会 Ｋブロック ２０１６ | DI30: 表題１１ | DJ30: スーパーリ－グ 第１０回大会 Ｋブロック ２０１６ | DK30: 表題１１ | DL30: スーパーリ－グ 第１０回大会 Ｋブロック ２０１６ | DM30: 表題１１ | DN30: スーパーリ－グ 第１０回大会 Ｋブロック ２０１６ | DO30: 表題１１ | DP30: スーパーリ－グ 第１０回大会 Ｋブロック ２０１６ | DQ30: 表題１１ | DR30: スーパーリ－グ 第１０回大会 Ｋブロック ２０１６ | DS30: 表題１１ | DT30: スーパーリ－グ 第１０回大会 Ｋブロック ２０１６ | DU30: 表題１１ | DV30: スーパーリ－グ 第１０回大会 Ｋブロック ２０１６ | DW30: 表題１１ | DX30: スーパーリ－グ 第１０回大会 Ｋブロック ２０１６ | DY30: 表題１１ | DZ30: スーパーリ－グ 第１０回大会 Ｋブロック ２０１６ | EA30: 表題１１ | EB30: スーパーリ－グ 第１０回大会 Ｋブロック ２０１６ | EC30: 表題１１ | ED30: スーパーリ－グ 第１０回大会 Ｋブロック ２０１６ | EE30: 表題１１ | EF30: スーパーリ－グ 第１０回大会 Ｋブロック ２０１６ | EG30: 表題１１ | EH30: スーパーリ－グ 第１０回大会 Ｋブロック ２０１６ | EI30: 表題１１ | EJ30: スーパーリ－グ 第１０回大会 Ｋブロック ２０１６ | EK30: 表題１１ | EL30: スーパーリ－グ 第１０回大会 Ｋブロック ２０１６ | EM30: 表題１１ | EN30: スーパーリ－グ 第１０回大会 Ｋブロック ２０１６ | EO30: 表題１１ | EP30: スーパーリ－グ 第１０回大会 Ｋブロック ２０１６ | EQ30: 表題１１ | ER30: スーパーリ－グ 第１０回大会 Ｋブロック ２０１６ | ES30: 表題１１ | ET30: スーパーリ－グ 第１０回大会 Ｋブロック ２０１６ | EU30: 表題１１ | EV30: スーパーリ－グ 第１０回大会 Ｋブロック ２０１６ | EW30: 表題１１ | EX30: スーパーリ－グ 第１０回大会 Ｋブロック ２０１６ | EY30: 表題１１ | EZ30: スーパーリ－グ 第１０回大会 Ｋブロック ２０１６ | FA30: 表題１１ | FB30: スーパーリ－グ 第１０回大会 Ｋブロック ２０１６ | FC30: 表題１１ | FD30: スーパーリ－グ 第１０回大会 Ｋブロック ２０１６ | FE30: 表題１１ | FF30: スーパーリ－グ 第１０回大会 Ｋブロック ２０１６ | FG30: 表題１１ | FH30: スーパーリ－グ 第１０回大会 Ｋブロック ２０１６ | FI30: 表題１１ | FJ30: スーパーリ－グ 第１０回大会 Ｋブロック ２０１６ | FK30: 表題１１ | FL30: スーパーリ－グ 第１０回大会 Ｋブロック ２０１６ | FM30: 表題１１ | FN30: スーパーリ－グ 第１０回大会 Ｋブロック ２０１６ | FO30: 表題１１ | FP30: スーパーリ－グ 第１０回大会 Ｋブロック ２０１６ | FQ30: 表題１１ | FR30: スーパーリ－グ 第１０回大会 Ｋブロック ２０１６ | FS30: 表題１１ | FT30: スーパーリ－グ 第１０回大会 Ｋブロック ２０１６ | FU30: 表題１１ | FV30: スーパーリ－グ 第１０回大会 Ｋブロック ２０１６ | FW30: 表題１１ | FX30: スーパーリ－グ 第１０回大会 Ｋブロック ２０１６ | FY30: 表題１１ | FZ30: スーパーリ－グ 第１０回大会 Ｋブロック ２０１６ | GA30: 表題１１ | GB30: スーパーリ－グ 第１０回大会 Ｋブロック ２０１６ | GC30: 表題１１ | GD30: スーパーリ－グ 第１０回大会 Ｋブロック ２０１６ | GE30: 表題１１ | GF30: スーパーリ－グ 第１０回大会 Ｋブロック ２０１６ | GG30: 表題１１ | GH30: スーパーリ－グ 第１０回大会 Ｋブロック ２０１６ | GI30: 表題１１ | GJ30: スーパーリ－グ 第１０回大会 Ｋブロック ２０１６ | GK30: 表題１１ | GL30: スーパーリ－グ 第１０回大会 Ｋブロック ２０１６ | GM30: 表題１１ | GN30: スーパーリ－グ 第１０回大会 Ｋブロック ２０１６ | GO30: 表題１１ | GP30: スーパーリ－グ 第１０回大会 Ｋブロック ２０１６ | GQ30: 表題１１ | GR30: スーパーリ－グ 第１０回大会 Ｋブロック ２０１６ | GS30: 表題１１ | GT30: スーパーリ－グ 第１０回大会 Ｋブロック ２０１６ | GU30: 表題１１ | GV30: スーパーリ－グ 第１０回大会 Ｋブロック ２０１６ | GW30: 表題１１ | GX30: スーパーリ－グ 第１０回大会 Ｋブロック ２０１６ | GY30: 表題１１ | GZ30: スーパーリ－グ 第１０回大会 Ｋブロック ２０１６ | HA30: 表題１１ | HB30: スーパーリ－グ 第１０回大会 Ｋブロック ２０１６ | HC30: 表題１１ | HD30: スーパーリ－グ 第１０回大会 Ｋブロック ２０１６ | HE30: 表題１１ | HF30: スーパーリ－グ 第１０回大会 Ｋブロック ２０１６ | HG30: 表題１１ | HH30: スーパーリ－グ 第１０回大会 Ｋブロック ２０１６ | HI30: 表題１１ | HJ30: スーパーリ－グ 第１０回大会 Ｋブロック ２０１６ | HK30: 表題１１ | HL30: スーパーリ－グ 第１０回大会 Ｋブロック ２０１６ | HM30: 表題１１ | HN30: スーパーリ－グ 第１０回大会 Ｋブロック ２０１６ | HO30: 表題１１ | HP30: スーパーリ－グ 第１０回大会 Ｋブロック ２０１６ | HQ30: 表題１１ | HR30: スーパーリ－グ 第１０回大会 Ｋブロック ２０１６ | HS30: 表題１１ | HT30: スーパーリ－グ 第１０回大会 Ｋブロック ２０１６ | HU30: 表題１１ | HV30: スーパーリ－グ 第１０回大会 Ｋブロック ２０１６ | HW30: 表題１１ | HX30: スーパーリ－グ 第１０回大会 Ｋブロック ２０１６ | HY30: 表題１１ | HZ30: スーパーリ－グ 第１０回大会 Ｋブロック ２０１６ | IA30: 表題１１ | IB30: スーパーリ－グ 第１０回大会 Ｋブロック ２０１６ | IC30: 表題１１ | ID30: スーパーリ－グ 第１０回大会 Ｋブロック ２０１６ | IE30: 表題１１ | IF30: スーパーリ－グ 第１０回大会 Ｋブロック ２０１６ | IG30: 表題１１ | IH30: スーパーリ－グ 第１０回大会 Ｋブロック ２０１６ | II30: 表題１１ | IJ30: スーパーリ－グ 第１０回大会 Ｋブロック ２０１６ | IK30: 表題１１ | IL30: スーパーリ－グ 第１０回大会 Ｋブロック ２０１６ | IM30: 表題１１ | IN30: スーパーリ－グ 第１０回大会 Ｋブロック ２０１６ | IO30: 表題１１ | IP30: スーパーリ－グ 第１０回大会 Ｋブロック ２０１６ | IQ30: 表題１１ | IR30: スーパーリ－グ 第１０回大会 Ｋブロック ２０１６ | IS30: 表題１１ | IT30: スーパーリ－グ 第１０回大会 Ｋブロック ２０１６ | IU30: 表題１１ | IV30: スーパーリ－グ 第１０回大会 Ｋブロック ２０１６

Sheet データ２
B1: Aブロック長
A2: 1 | B2: 大島中央 | D2: 葛飾アニマルズ | E2: F | F2: 葛飾区
A4: 2 | B4: マッハブレーブス | D4: カバラホークス | E4: E | F4: 足立区
A6: 3 | B6: 本村クラブ | D6: 品川ドリームキッズ | E6: C | F6: 品川区
A8: 4 | B8: 駒込チャイルド | D8: ゼットタイガー | E8: M | F8: 大田区
A10: 5 | B10: ブラザースクラブ | D10: レッドサンズ | E10: G | F10: 文京区
A12: 6 | B12: 墨田スターズ | D12: ブルースカイズ | E12: J | F12: 北区
A14: 7 | B14: 番町エンジェルス | D14: 高島エイト | E14: I | F14: 板橋区
A16: 8 | B16: 新田ファイヤーズ | D16: 有馬スワローズ | E16: L | F16: 中央区
B17: Bブロック長
A18: 9 | B18: 大雲寺スターズ | D18: 大雲寺スターズ | E18: B | F18: 江戸川区
A20: 10 | B20: 渋谷レッドソックス | D20: 西田野球クラブ | E20: D | F20: 杉並区
A22: 11 | B22: 中央バンディーズ | D22: 南千住ペガサス | E22: H | F22: 荒川区
A24: 12 | B24: 烏山ウイングス | D24: 大島中央 | E24: A | F24: 江東区
A26: 13 | B26: 御殿山ファイターズ | D26: 北原少年野球クラブ | E26: K | F26: 練馬区
D27: ●葛飾、北、江戸川以外を入れる
A28: 14 | B28: 大島タイガース | D28: 金町ジャイアンツ | F28: 葛飾区
A30: 15 | B30: 目黒ペガサス | D30: リトルジャイアンツ | F30: 葛飾区
D31: ◎葛飾を入れる
A32: 16 | B32: ブラックキラーズ | D32: 城北メッツ | F32: 北区
B33: Cブロック長
A34: 17 | B34: 品川ドリームキッズ | D34: マッハブレーブス | F34: 北区
D35: ◎北を入れる
A36: 18 | B36: 金町ジャイアンツ | D36: 葛西ファイターズ | F36: 江戸川区
A38: 19 | B38: 勝どきD・Ｎ・Ｈ | D38: 雷サンダース | F38: 江戸川区
A40: 20 | B40: 茗荷谷クラブ | D40: しらさぎ | F40: 江戸川区
A42: 21 | B42: 桃五少年野球クラブ | D42: 本一色イーグルス | F42: 江戸川区
A44: 22 | B44: 越中島ブレーブス | D44: 南篠崎ランチャーズ | F44: 江戸川区
A46: 23 | B46: 麹町ドリームス | D46: 興宮ファイターズ | F46: 江戸川区
D47: ◎江戸川を入れる
A48: 24 | B48: 糀谷イーグルス | D48: 大向ベアーズ | F48: 渋谷区
B49: Dブロック長
A50: 25 | B50: 西田野球クラブ | D50: 渋谷レッドソックス | F50: 渋谷区
A52: 26 | B52: 大向ベアーズ | D52: ジャパンキングス | F52: 渋谷区
D53: ●中央以外を入れる
A54: 27 | B54: 麻布キッズ | D54: 勝どきD・Ｎ・Ｈ | F54: 中央区
A56: 28 | B56: 文京パワーズ | D56: 中央バンディーズ | F56: 中央区
A58: 29 | B58: トゥールスジュニア | D58: 中央フェニックス | F58: 中央区
A60: 30 | B60: 東雲メッツ | D60: 月島ライオンズ | F60: 中央区
A62: 31 | B62: 落合コメッツ | D62: 日本橋ファイターズ | F62: 中央区
A64: 32 | B64: ジュニアヤンガース | D64: 晴海アポローズ | F64: 中央区
B65: Eブロック長 | D65: ◎中央を入れる
A66: 33 | B66: カバラホークス | D66: オール麻布 | F66: 港区
A68: 34 | B68: リトルジャイアンツ | D68: 高輪クラブ | F68: 港区
A70: 35 | B70: 日本橋ファイターズ | D70: 高輪台ファイターズ | F70: 港区
A72: 36 | B72: 西千タイガース | D72: 本村クラブ | F72: 港区
A74: 37 | B74: エンジェルス | D74: 元芝ハヤブサ | F74: 港区
A76: 38 | B76: 七北クラブ | D76: 港南メッツ | F76: 港区
A78: 39 | B78: 浅草ＢＢＣ | D78: 麻布キッズ | F78: 港区
D79: ●文京以外を入れる
A80: 40 | B80: フレール | D80: 菊坂ファイヤーズ | F80: 文京区
B81: Fブロック長
A82: 41 | B82: 葛飾アニマルズ | D82: 文京パワーズ | F82: 文京区
A84: 42 | B84: 南篠崎ランチャーズ | D84: 茗荷谷クラブ | F84: 文京区
A86: 43 | B86: 港南メッツ | D86: 礫川 | F86: 文京区
A88: 44 | B88: 山野Ｒイーグルス | D88: 西千タイガース | F88: 文京区
A90: 45 | B90: 久我山イーグルス | D90: 駒込チャイルド | F90: 文京区
D91: ◎文京を入れる
A92: 46 | B92: 江東ファイターズ | D92: 山野レッドイーグルス | F92: 世田谷区
A94: 47 | B94: 落一アポロ | D94: ナインスターズ | F94: 世田谷区
A96: 48 | B96: 扇ターキーズ | D96: 烏山ウイングス | F96: 世田谷区
B97: Gブロック長
A98: 49 | B98: レッドサンズ | D98: ワイルドチーム | F98: 世田谷区
A100: 50 | B100: 城北メッツ | D100: 用賀ベアーズ | F100: 世田谷区
A102: 51 | B102: 晴海アポローズ | D102: KCRジャッカル | F102: 世田谷区
A104: 52 | B104: KCRジャッカル | D104: 船橋フェニックス | F104: 世田谷区
A106: 53 | B106: 大塚スネイクス | D106: 九品仏ペガサス | F106: 世田谷区
D107: ●品川、杉並、荒川以外を入れる
A108: 54 | B108: 江東ジョーズ | D108: 品川レインボーズ | F108: 品川区
A110: 55 | B110: 新宿ドリーム | D110: 御殿山ファイターズ | F110: 品川区
A112: 56 | B112: 球友ジュニアーズ | D112: 品川Ｂレーシング | F112: 品川区
B113: Hブロック長
A114: 57 | B114: 南千住ペガサス | D114: 旗の台クラブ | F114: 品川区
D115: ◎品川を入れる
A116: 58 | B116: ジャパンキングス | D116: 久我山イーグルス | F116: 杉並区
A118: 59 | B118: 中央フェニックス | D118: 高井戸東少年野球 | F118: 杉並区
A120: 60 | B120: 九品仏ペガサス | D120: 桃五少年野球クラブ | F120: 杉並区
D121: ◎杉並を入れる
A122: 61 | B122: 駒込ベアーズ | D122: ブラザースクラブ | F122: 荒川区
A124: 62 | B124: 東陽フェニックス | D124: 荒川コンドル | F124: 荒川区
A126: 63 | B126: 淀四ライオンズ | D126: エンジェルス | F126: 荒川区
A128: 64 | B128: 池雪ジュニアＳ | D128: トゥールスジュニア | F128: 荒川区
B129: Iブロック長 | D129: ◎荒川を入れる
A130: 65 | B130: 高島エイト | D130: 大塚スネイクス | F130: 豊島区
A132: 66 | B132: 興宮ファイターズ | D132: 駒込ベアーズ | F132: 豊島区
D133: ●江東以外を入れる
A134: 67 | B134: 高輪クラブ | D134: 大島タイガース | F134: 江東区
A136: 68 | B136: 礫川 | D136: ニュー愛宕 | F136: 江東区
A138: 69 | B138: 品川レインボーズ | D138: 越中島ブレーブス | F138: 江東区
A140: 70 | B140: 元加賀 | D140: 深川ジャイアンツ | F140: 江東区
A142: 71 | B142: 東山エイターズ | D142: 江東ファイターズ | F142: 江東区
A144: 72 | B144: レッドファイヤーズ | D144: 元加賀 | F144: 江東区
B145: Jブロック長
A146: 73 | B146: ブルースカイズ | D146: 東雲メッツ | F146: 江東区
A148: 74 | B148: 雷サンダース | D148: 東陽フェニックス | F148: 江東区
A150: 75 | B150: 元芝ハヤブサ | D150: 江東ジョーズ | F150: 江東区
A152: 76 | B152: 船橋フェニックス | D152: 七北クラブ | F152: 江東区
A154: 77 | B154: 高井戸東少年野球 | D154: 亀戸合同 | F154: 江東区
A156: 78 | B156: 亀戸合同 | D156: 深川レッドソックス | F156: 江東区
D157: ◎江東を入れる
A158: 79 | B158: リトルロジャース | D158: 墨田スターズ | F158: 墨田区
D159: ●フリー
A160: 80 | B160: 西伊興若潮ジュニア | D160: 淀四ライオンズ | F160: 新宿区
B161: Kブロック長
A162: 81 | B162: 北原少年野球クラブ | D162: 落一アポロ | F162: 新宿区
A164: 82 | B164: しらさぎ | D164: 落合コメッツ | F164: 新宿区
A166: 83 | B166: オール麻布 | D166: 新宿ドリーム | F166: 新宿区
A168: 84 | B168: 用賀ベアーズ | D168: いちがやチーターズ | F168: 新宿区
A170: 85 | B170: 荒川コンドル | D170: 東山エイターズ | F170: 目黒区
A172: 86 | B172: ニュー愛宕 | D172: 目黒ペガサス | F172: 目黒区
A174: 87 | B174: いちがやチーターズ | D174: 不動パイレーツ | F174: 目黒区
A176: 88 | B176: 東伊興シャインズ | D176: サンジュニア | F176: 台東区
B177: Lブロック長
A178: 89 | B178: 有馬スワローズ | D178: リトルロジャース | F178: 台東区
A180: 90 | B180: 本一色イーグルス | D180: 浅草ＢＢＣ | F180: 台東区
A182: 91 | B182: 高輪台ファイターズ | D182: 番町エンジェルス | F182: 千代田区
A184: 92 | B184: 菊坂ファイヤーズ | D184: 麹町ドリームス | F184: 千代田区
D185: ●大田以外を入れる
A186: 93 | B186: 旗の台クラブ | D186: 池雪ジュニアＳ | F186: 大田区
A188: 94 | B188: 深川ジャイアンツ | D188: 馬込ジャガーズ | F188: 大田区
A190: 95 | B190: 不動パイレーツ | D190: 球友ジュニアーズ | F190: 大田区
A192: 96 | B192: 馬込ジャガーズ | D192: フレール | F192: 大田区
B193: Mブロック長
A194: 97 | B194: ゼットタイガー | D194: 糀谷イーグルス | F194: 大田区
D195: ◎大田を入れる
A196: 98 | B196: 葛西ファイターズ | D196: 西伊興若潮ジュニア | F196: 足立区
A198: 99 | B198: 月島ライオンズ | D198: ブラックキラーズ | F198: 足立区
A200: 100 | B200: ナインスターズ | D200: レッドファイヤーズ | F200: 足立区
A202: 101 | B202: 品川Ｂレーシング | D202: 新田ファイヤーズ | F202: 足立区
A204: 102 | B204: 深川レッドソックス | D204: 東伊興シャインズ | F204: 足立区
A206: 103 | B206: サンジュニア | D206: 舎人スポーツ少年団 | F206: 足立区
A208: 104 | B208: 舎人スポーツ少年団 | D208: ジュニアヤンガース | F208: 足立区

Sheet 抽選順
B1: A | D1: B | F1: C | H1: D | J1: E | L1: F | N1: G
B2: 大島中央 | C2: 江東区 | D2: 大雲寺スターズ | E2: 江戸川区 | F2: 八潮ドリームキッズ | G2: 品川区 | H2: 西田野球クラブ | I2: 杉並区 | J2: カバラホークス | K2: 足立区 | L2: 葛飾アニマルズ | M2: 葛飾区 | N2: レッドサンズ | O2: 文京区
B3: H | D3: I | F3: J | H3: K | J3: L | L3: M
B4: 南千住ペガサス | C4: 荒川区 | D4: 高島エイト | E4: 板橋区 | F4: ブルースカイズ | G4: 北区 | H4: 北原少年 | I4: 練馬区 | J4: 有馬スワローズ | K4: 中央区 | L4: ゼットタイガー | M4: 大田区
A6: 1 | B6: 金町ジャイアンツ | C6: Fx | D6: 勝どきDナインホープ | E6: Lx | F6: 菊坂ファイヤーズ | G6: Gx | H6: 品川レインボーズ | I6: Cx | J6: 大島タイガース | K6: Ax | L6: 淀四ライオンズ | N6: 池雪ジュニアＳ | O6: Mx
A7: 2 | B7: リトルジャイアンツ | C7: Fx | D7: 中央バンディーズ | E7: Lx | F7: 文京パワーズ | G7: Gx | H7: 御殿山ファイターズ | I7: Cx | J7: ニュー愛宕 | K7: Ax | L7: 落一アポロ | N7: 馬込ジャガーズ | O7: Mx
A8: 3 | B8: 城北メッツ | C8: Jx | D8: 中央フェニックス | E8: Lx | F8: 茗荷谷クラブ | G8: Gx | H8: 品川Ｂレーシング | I8: Cx | J8: 越中島ブレーブス | K8: Ax | L8: 落合コメッツ | N8: 球友ジュニアーズ | O8: Mx
A9: 4 | B9: マッハブレーブス | C9: Jx | D9: 月島ライオンズ | E9: Lx | F9: 礫川 | G9: Gx | H9: 旗の台クラブ | I9: Cx | J9: 深川ジャイアンツ | K9: Ax | L9: 新宿ドリーム | N9: フレール | O9: Mx
A10: 5 | B10: 葛西ファイターズ | C10: Bx | D10: 日本橋ファイターズ | E10: Lx | F10: 西千タイガース | G10: Gx | H10: 久我山イーグルス | I10: Dx | J10: 江東ファイターズ | K10: Ax | L10: いちがやチーターズ | N10: 糀谷イーグルス | O10: Mx
A11: 6 | B11: 雷サンダース | C11: Bx | D11: 晴海アポローズ | E11: Lx | F11: 駒込チャイルド | G11: Gx | H11: 高井戸東少年野球 | I11: Dx | J11: 元加賀 | K11: Ax | L11: 東山エイターズ | N11: 西伊興若潮ジュニア | O11: Ex
A12: 7 | B12: しらさぎ | C12: Bx | D12: オール麻布 | F12: ナインスターズ | H12: 桃五少年野球クラブ | I12: Dx | J12: 東雲メッツ | K12: Ax | L12: 目黒ペガサス | N12: ブラックキラーズ | O12: Ex
A13: 8 | B13: 本一色イーグルス | C13: Bx | D13: 高輪クラブ | F13: 烏山ウイングス | H13: ブラザースクラブ | I13: Hx | J13: 東陽フェニックス | K13: Ax | L13: 不動パイレーツ | N13: レッドファイヤーズ | O13: Ex
A14: 9 | B14: 南篠崎ランチャーズ | C14: Bx | D14: 高輪台ファイターズ | F14: 用賀ベアーズ | H14: 荒川コンドル | I14: Hx | J14: 江東ジョーズ | K14: Ax | L14: サンジュニア | N14: 新田ファイヤーズ | O14: Ex
A15: 10 | B15: 興宮ファイターズ | C15: Bx | D15: 本村クラブ | F15: KCRジャッカル | H15: エンジェルス | I15: Hx | J15: 七北クラブ | K15: Ax | L15: リトルロジャース | N15: 東伊興シャインズ | O15: Ex
A16: 11 | B16: 大向ベアーズ | D16: 元芝ハヤブサ | F16: 船橋フェニックス | H16: トゥールスジュニア | I16: Hx | J16: 亀戸浅間 | K16: Ax | L16: 浅草BBC | N16: 舎人スポーツ少年団 | O16: Ex
A17: 12 | B17: 渋谷レッドソックス | D17: 港南メッツ | F17: 九品仏ペガサス | H17: 大塚スネイクス | J17: 深川レッドソックス | K17: Ax | L17: 番町エンジェルス | N17: ジュニアヤンガース | O17: Ex
A18: 13 | B18: ジャパンキングス | D18: 麻布キッズ | F18: 山野レッドイーグルス | H18: 駒込ベアーズ | J18: 墨田スターズ | L18: 麹町ドリームス | N18: 扇ターキーズ | O18: Ex
